Workbook

Sheet Árlista
G1: 1 | I1: 1 | J1: 1 | L1: -1 | N1: 340
B2: Cikkszám | C2: Termék megnevezése | D2: Nettó listaárak | E2: Típusa | F2: Termék fajtája | G2: Tömeg | H2: SP | I2: Nettó listaárak | J2: HUF | K2: WEBSHOP | L2: KOSÁR
A3: =IF(L3=FALSE,0,1) -> 0 | B3: 8951000156 | C3: RC2277 The Beast + Focilabda | D3: =IF(H3="SP",IF(J3>0,"SP: "&DOLLAR(J3*I$1,0),"SP: "&DOLLAR(I3*I$1,0)),IF(J3>0,"*("&DOLLAR(I3*I$1,0)&") "&DOLLAR(J3*J$1,0),DOLLAR(I3*I$1,0))) -> 0 Ft | G3: 5246
A4: =IF(L4=FALSE,0,COUNTIF(A$3:A3,">0")+1) -> 0 | B4: 8944077332X | C4: CP7733 1/2" IMPACT WRENCH 746Nm + Dugókulcs készlet + Mágnes takaró | D4: 0 Ft | G4: 2555
A5: =IF(L5=FALSE,0,COUNTIF(A$3:A4,">0")+1) -> 0 | B5: 4116092255 | C5: CLR 15/25 | D5: =IF(H5="SP",IF(J5>0,"SP: "&TEXT(J5*I$1,"# ###,-Ft "),"SP: "&TEXT(I5*I$1,"# ###,-Ft")),IF(J5>0,"*("&TEXT(I5*I$1,"# ###,-")&") "&TEXT(J5*J$1,"# ###,-Ft"),TEXT(I5*I$1,"# ###,-Ft "))) -> 204 000,-Ft | E5: CleanAir | G5: =I5/340 -> 600 | I5: 204000 | N5: MEGRENDELŐ
A6: =IF(L6=FALSE,0,COUNTIF(A$3:A5,">0")+1) -> 0 | B6: 4116092256 | C6: CLR 15/25 T | D6: =IF(H6="SP",IF(J6>0,"SP: "&TEXT(J6*I$1,"# ###,-Ft "),"SP: "&TEXT(I6*I$1,"# ###,-Ft")),IF(J6>0,"*("&TEXT(I6*I$1,"# ###,-")&") "&TEXT(J6*J$1,"# ###,-Ft"),TEXT(I6*I$1,"# ###,-Ft "))) -> 411 400,-Ft | E6: CleanAir | G6: =I6/340 -> 1210 | I6: 411400 | N6: TARTALOM
A7: =IF(L7=FALSE,0,COUNTIF(A$3:A6,">0")+1) -> 0 | B7: 4116092259 | C7: CLR 15/50 | D7: 217 600,-Ft | E7: CleanAir | G7: 640 | I7: 217600 | N7: Árlista
A8: =IF(L8=FALSE,0,COUNTIF(A$3:A7,">0")+1) -> 0 | B8: 4116092260 | C8: CLR 15/50 T | D8: 431 800,-Ft | E8: CleanAir | G8: 1270 | I8: 431800 | N8: Megrendelő
A9: =IF(L9=FALSE,0,COUNTIF(A$3:A8,">0")+1) -> 0 | B9: 4116092257 | C9: CLR 20/25 | D9: 241 400,-Ft | E9: CleanAir | G9: 710 | I9: 241400 | N9: ABAC dugattyús kompresszorok
A10: =IF(L10=FALSE,0,COUNTIF(A$3:A9,">0")+1) -> 0 | B10: 4116092258 | C10: CLR 20/25 T | D10: 448 800,-Ft | E10: CleanAir | G10: 1320 | I10: 448800 | N10: ABAC CleanAir fogászati kompresszor
A11: =IF(L11=FALSE,0,COUNTIF(A$3:A10,">0")+1) -> 0 | B11: 4116092261 | C11: CLR 20/50 | D11: 251 600,-Ft | E11: CleanAir | G11: 740 | I11: 251600 | N11: AGRE ipari dugattyús kompresszorok
A12: =IF(L12=FALSE,0,COUNTIF(A$3:A11,">0")+1) -> 0 | B12: 4116092262 | C12: CLR 20/50 T | D12: 472 600,-Ft | E12: CleanAir | G12: 1390 | I12: 472600 | N12: ALUP SONETTO csavarkomp 2,2-15kW
A13: =IF(L13=FALSE,0,COUNTIF(A$3:A12,">0")+1) -> 0 | B13: 4116092289 | C13: CLR 25/50 | D13: 489 600,-Ft | E13: CleanAir | G13: 1440 | I13: 489600 | N13: ALUP SCK csavarkomp 4-75kW
A14: =IF(L14=FALSE,0,COUNTIF(A$3:A13,">0")+1) -> 0 | B14: 4116092290 | C14: CLR 25/50 T | D14: 595 000,-Ft | E14: CleanAir | G14: 1750 | I14: 595000 | N14: ALUP LARGO, ALLEGRO csavarkompr
A15: =IF(L15=FALSE,0,COUNTIF(A$3:A14,">0")+1) -> 0 | B15: 4116092267 | C15: CLR 15/30 S | D15: 435 200,-Ft | E15: CleanAir | G15: 1280 | I15: 435200 | N15: ALUP Hűtveszárítók
A16: =IF(L16=FALSE,0,COUNTIF(A$3:A15,">0")+1) -> 0 | B16: 4116092268 | C16: CLR 15/30 S T | D16: 612 000,-Ft | E16: CleanAir | G16: 1800 | I16: 612000 | N16: ALUP szűrők
A17: =IF(L17=FALSE,0,COUNTIF(A$3:A16,">0")+1) -> 0 | B17: 4116092269 | C17: CLR 20/30 S | D17: 472 600,-Ft | E17: CleanAir | G17: 1390 | I17: 472600 | N17: ALUP SpiralAir -Scroll kompresszor
A18: =IF(L18=FALSE,0,COUNTIF(A$3:A17,">0")+1) -> 0 | B18: 4116092270 | C18: CLR 20/30 S T | D18: =IF(H18="SP",IF(J18>0,"SP: "&TEXT(J18*I$1,"# ###,-Ft "),"SP: "&TEXT(I18*I$1,"# ###,-Ft")),IF(J18>0,"*("&TEXT(I18*I$1,"# ###,-")&") "&TEXT(J18*J$1,"# ###,-Ft"),TEXT(I18*I$1,"# ###,-Ft "))) -> 646 000,-Ft | E18: CleanAir | G18: 1900 | I18: 646000 | N18: ALUP dugattyús kompresszorok
A19: =IF(L19=FALSE,0,COUNTIF(A$3:A18,">0")+1) -> 0 | B19: 8115465687 | C19: CNR 75/BM S YD 400/3/50 | D19: =IF(H19="SP",IF(J19>0,"SP: "&TEXT(J19/340*I$1,"# ###,-Ft "),"SP: "&TEXT(I19/340*I$1,"# ###,-€")),IF(J19>0,"*("&TEXT(I19/340*I$1,"# ###,-")&") "&TEXT(J19/340*J$1,"# ###,-€"),TEXT(I19/340*I$1,"# ###,-€ "))) -> 9 370,-€ | E19: CleanAir | G19: 9370 | I19: =G19*340 -> 3185800 | N19: OMEGA vonali szűrők
A20: =IF(L20=FALSE,0,COUNTIF(A$3:A19,">0")+1) -> 0 | B20: 8115465695 | C20: CNR 75/270 S YD 400/3/50 | D20: 12 150,-€ | E20: CleanAir | G20: 12150 | I20: =G20*340 -> 4131000 | N20: OMEGA ciklonszűrők
A21: =IF(L21=FALSE,0,COUNTIF(A$3:A20,">0")+1) -> 0 | B21: 8115465703 | C21: CNR 75/500 S YD 400/3/50 | D21: 12 770,-€ | E21: CleanAir | G21: 12770 | I21: 4341800 | N21: OMEGA olaj-víz szétválasztók
A22: =IF(L22=FALSE,0,COUNTIF(A$3:A21,">0")+1) -> 0 | B22: 8115475439 | C22: CNR 100/BM S YD 400/3/50 | D22: 10 710,-€ | E22: CleanAir | G22: 10710 | I22: 3641400 | N22: ABAC sűrítők
A23: =IF(L23=FALSE,0,COUNTIF(A$3:A22,">0")+1) -> 0 | B23: 8115475462 | C23: CNR 100/270 S YD 400/3/50 | D23: 14 320,-€ | E23: CleanAir | G23: 14320 | I23: 4868800 | N23: CONDOR nyomáskapcsolók
A24: =IF(L24=FALSE,0,COUNTIF(A$3:A23,">0")+1) -> 0 | B24: 8115475496 | C24: CNR 100/500 S YD 400/3/50 | D24: 14 940,-€ | E24: CleanAir | G24: 14940 | I24: 5079600 | N24: Tartályok
A25: =IF(L25=FALSE,0,COUNTIF(A$3:A24,">0")+1) -> 0 | B25: 4153126616 | C25: AKK 301-W | D25: 1 139,-€ | E25: AGRE | G25: 1210 | I25: 387200 | N25: Egyéb alaktrészek
A26: =IF(L26=FALSE,0,COUNTIF(A$3:A25,">0")+1) -> 0 | B26: 4153126607 | C26: AKK 301-D | D26: 1 035,-€ | E26: AGRE | G26: 1100 | I26: 352000
A27: =IF(L27=FALSE,0,COUNTIF(A$3:A26,">0")+1) -> 0 | B27: 4153126614 | C27: AEK 461-W | D27: 1 365,-€ | E27: AGRE | G27: 1450 | I27: 464000
A28: =IF(L28=FALSE,0,COUNTIF(A$3:A27,">0")+1) -> 0 | B28: 4153126617 | C28: AEK 461-D | D28: 1 252,-€ | E28: AGRE | G28: 1330 | I28: 425600
A29: =IF(L29=FALSE,0,COUNTIF(A$3:A28,">0")+1) -> 0 | B29: 4153126618 | C29: AEK 601 | D29: 1 412,-€ | E29: AGRE | G29: 1500 | I29: 480000
A30: =IF(L30=FALSE,0,COUNTIF(A$3:A29,">0")+1) -> 0 | B30: 4153126402 | C30: AGK-N-271 | D30: 1 308,-€ | E30: AGRE | G30: 1390 | I30: 444800
A31: =IF(L31=FALSE,0,COUNTIF(A$3:A30,">0")+1) -> 0 | B31: 4153126611 | C31: AGK-N-551 | D31: 1 732,-€ | E31: AGRE | G31: 1840 | I31: 588800
A32: =IF(L32=FALSE,0,COUNTIF(A$3:A31,">0")+1) -> 0 | B32: 4153126604 | C32: AEK 851 | D32: 1 939,-€ | E32: AGRE | G32: 2060 | I32: 659200
A33: =IF(L33=FALSE,0,COUNTIF(A$3:A32,">0")+1) -> 0 | B33: 4153126401 | C33: AGK-H-271 | D33: 1 346,-€ | E33: AGRE | G33: 1430 | I33: 457600
A34: =IF(L34=FALSE,0,COUNTIF(A$3:A33,">0")+1) -> 0 | B34: 4153126610 | C34: AGK-H-551 | D34: 1 638,-€ | E34: AGRE | G34: 1740 | I34: 556800
A35: =IF(L35=FALSE,0,COUNTIF(A$3:A34,">0")+1) -> 0 | B35: 4153126608 | C35: AGK-H-751 | D35: 1 995,-€ | E35: AGRE | G35: 2120 | I35: 678400
A36: =IF(L36=FALSE,0,COUNTIF(A$3:A35,">0")+1) -> 0 | B36: 4153126612 | C36: AKK-O-236-D | D36: 1 525,-€ | E36: AGRE | G36: 1620 | I36: 518400
A37: =IF(L37=FALSE,0,COUNTIF(A$3:A36,">0")+1) -> 0 | B37: 4153126400 | C37: AGK-O-271 | D37: 2 024,-€ | E37: AGRE | G37: 2150 | I37: 688000
A38: =IF(L38=FALSE,0,COUNTIF(A$3:A37,">0")+1) -> 0 | B38: 4153126613 | C38: AGK-O-551 | D38: 2 551,-€ | E38: AGRE | G38: 2710 | I38: 867200
A39: =IF(L39=FALSE,0,COUNTIF(A$3:A38,">0")+1) -> 0 | B39: 4153126606 | C39: AGK-O-751 | D39: 2 880,-€ | E39: AGRE | G39: 3060 | I39: 979200
A40: =IF(L40=FALSE,0,COUNTIF(A$3:A39,">0")+1) -> 0 | B40: AF 0056 | C40: Alumínium AF szűrőház -3/8’’ | D40: =IF(H40="SP",IF(J40>0,"SP: "&TEXT(J40*I$1,"# ###,-Ft "),"SP: "&TEXT(I40*I$1,"# ###,-Ft")),IF(J40>0,"*("&TEXT(I40*I$1,"# ###,-")&") "&TEXT(J40*J$1,"# ###,-Ft"),TEXT(I40*I$1,"# ###,-Ft "))) -> 13 930,-Ft | E40: OMEGA | G40: 50.5318 | I40: 13930
A41: =IF(L41=FALSE,0,COUNTIF(A$3:A40,">0")+1) -> 0 | B41: AF 0076 | C41: Alumínium AF szűrőház -1/2’’ | D41: =IF(H41="SP",IF(J41>0,"SP: "&TEXT(J41*I$1,"# ###,-Ft "),"SP: "&TEXT(I41*I$1,"# ###,-Ft")),IF(J41>0,"*("&TEXT(I41*I$1,"# ###,-")&") "&TEXT(J41*J$1,"# ###,-Ft"),TEXT(I41*I$1,"# ###,-Ft "))) -> 15 670,-Ft | E41: OMEGA | G41: 56.8251 | I41: 15670
A42: =IF(L42=FALSE,0,COUNTIF(A$3:A41,">0")+1) -> 0 | B42: AF 0106 | C42: Alumínium AF szűrőház -3/4’’ | D42: 18 470,-Ft | E42: OMEGA | G42: 66.9706 | I42: 18470
A43: =IF(L43=FALSE,0,COUNTIF(A$3:A42,">0")+1) -> 0 | B43: AF 0186 | C43: Alumínium AF szűrőház -1’’ | D43: 26 470,-Ft | E43: OMEGA | G43: 95.9857 | I43: 26470
A44: =IF(L44=FALSE,0,COUNTIF(A$3:A43,">0")+1) -> 0 | B44: AF 0306 | C44: Alumínium AF szűrőház -1’’ | D44: 28 030,-Ft | E44: OMEGA | G44: 104.8128 | I44: 28030
A45: =IF(L45=FALSE,0,COUNTIF(A$3:A44,">0")+1) -> 0 | B45: AF 0476 | C45: Alumínium AF szűrőház -1 1/2’’ | D45: 33 110,-Ft | E45: OMEGA | G45: 123.7957 | I45: 33110
A46: =IF(L46=FALSE,0,COUNTIF(A$3:A45,">0")+1) -> 0 | B46: AF 0706 | C46: Alumínium AF szűrőház -1 1/2’’ | D46: 39 520,-Ft | E46: OMEGA | G46: 147.7432 | I46: 39520
A47: =IF(L47=FALSE,0,COUNTIF(A$3:A46,">0")+1) -> 0 | B47: AF 0946 | C47: Alumínium AF szűrőház -2’’ | D47: 67 910,-Ft | E47: OMEGA | G47: 253.8744 | I47: 67910
A48: =IF(L48=FALSE,0,COUNTIF(A$3:A47,">0")+1) -> 0 | B48: AF 1506 | C48: Alumínium AF szűrőház -2’’ | D48: 82 420,-Ft | E48: OMEGA | G48: 308.1554 | I48: 82420
A49: =IF(L49=FALSE,0,COUNTIF(A$3:A48,">0")+1) -> 0 | B49: AF 1756 | C49: Alumínium AF szűrőház -2 1/2’’ | D49: 135 210,-Ft | E49: OMEGA | G49: 521.6538 | I49: 135210
A50: =IF(L50=FALSE,0,COUNTIF(A$3:A49,">0")+1) -> 0 | B50: AF 2006 | C50: Alumínium AF szűrőház -3 | D50: 163 040,-Ft | E50: OMEGA | G50: 629.0107 | I50: 163040
A51: =IF(L51=FALSE,0,COUNTIF(A$3:A50,">0")+1) -> 0 | B51: AF 2406 | C51: Alumínium AF szűrőház -3 | D51: 201 360,-Ft | E51: OMEGA | G51: 776.8569 | I51: 201360
A52: =IF(L52=FALSE,0,COUNTIF(A$3:A51,">0")+1) -> 0 | B52: 6050B | C52: Szűrőbetét B -AF 0056 | D52: 6 790,-Ft | E52: OMEGA | G52: 24.6067 | I52: 6790
A53: =IF(L53=FALSE,0,COUNTIF(A$3:A52,">0")+1) -> 0 | B53: 7050B | C53: Szűrőbetét B -AF 0076 | D53: 8 400,-Ft | E53: OMEGA | G53: 30.4468 | I53: 8400
A54: =IF(L54=FALSE,0,COUNTIF(A$3:A53,">0")+1) -> 0 | B54: 14050B | C54: Szűrőbetét B -AF 0106 | D54: 10 830,-Ft | E54: OMEGA | G54: 39.2739 | I54: 10830
A55: =IF(L55=FALSE,0,COUNTIF(A$3:A54,">0")+1) -> 0 | B55: 12075B | C55: Szűrőbetét B -AF 0186 | D55: 14 210,-Ft | E55: OMEGA | G55: 51.5309 | I55: 14210
A56: =IF(L56=FALSE,0,COUNTIF(A$3:A55,">0")+1) -> 0 | B56: 22075B | C56: Szűrőbetét B -AF 0306 | D56: 20 050,-Ft | E56: OMEGA | G56: 72.718 | I56: 20050
A57: =IF(L57=FALSE,0,COUNTIF(A$3:A56,">0")+1) -> 0 | B57: 32075B | C57: Szűrőbetét B -AF 0476 | D57: 24 250,-Ft | E57: OMEGA | G57: 87.9414 | I57: 24250
A58: =IF(L58=FALSE,0,COUNTIF(A$3:A57,">0")+1) -> 0 | B58: 50075B | C58: Szűrőbetét B -AF 0706 | D58: 28 750,-Ft | E58: OMEGA | G58: 107.4702 | I58: 28750
A59: =IF(L59=FALSE,0,COUNTIF(A$3:A58,">0")+1) -> 0 | B59: 51090B | C59: Szűrőbetét B -AF 0946 | D59: 41 200,-Ft | E59: OMEGA | G59: 154.0262 | I59: 41200
A60: =IF(L60=FALSE,0,COUNTIF(A$3:A59,">0")+1) -> 0 | B60: 76090B | C60: Szűrőbetét B -AF 1506 | D60: 50 140,-Ft | E60: OMEGA | G60: 187.46 | I60: 50140
A61: =IF(L61=FALSE,0,COUNTIF(A$3:A60,">0")+1) -> 0 | B61: 76090B | C61: Szűrőbetét B -AF 1756 | D61: 50 140,-Ft | E61: OMEGA | G61: 187.46 | I61: 50140
A62: =IF(L62=FALSE,0,COUNTIF(A$3:A61,">0")+1) -> 0 | B62: 51140B | C62: Szűrőbetét B -AF 2006 | D62: 60 940,-Ft | E62: OMEGA | G62: 227.836 | I62: 60940
A63: =IF(L63=FALSE,0,COUNTIF(A$3:A62,">0")+1) -> 0 | B63: 75140B | C63: Szűrőbetét B -AF 2406 | D63: 70 620,-Ft | E63: OMEGA | G63: 264.0302 | I63: 70620
A64: =IF(L64=FALSE,0,COUNTIF(A$3:A63,">0")+1) -> 0 | B64: 6050P | C64: Szűrőbetét P -AF 0056 | D64: 5 900,-Ft | E64: OMEGA | G64: 21.4137 | I64: 5900
A65: =IF(L65=FALSE,0,COUNTIF(A$3:A64,">0")+1) -> 0 | B65: 7050P | C65: Szűrőbetét P -AF 0076 | D65: 7 300,-Ft | E65: OMEGA | G65: 26.4813 | I65: 7300
A66: =IF(L66=FALSE,0,COUNTIF(A$3:A65,">0")+1) -> 0 | B66: 14050P | C66: Szűrőbetét P -AF 0106 | D66: 9 400,-Ft | E66: OMEGA | G66: 34.093 | I66: 9400
A67: =IF(L67=FALSE,0,COUNTIF(A$3:A66,">0")+1) -> 0 | B67: 12075P | C67: Szűrőbetét P -AF 0186 | D67: 11 840,-Ft | E67: OMEGA | G67: 42.9201 | I67: 11840
A68: =IF(L68=FALSE,0,COUNTIF(A$3:A67,">0")+1) -> 0 | B68: 22075P | C68: Szűrőbetét P -AF 0306 | D68: 16 700,-Ft | E68: OMEGA | G68: 60.5743 | I68: 16700
A69: =IF(L69=FALSE,0,COUNTIF(A$3:A68,">0")+1) -> 0 | B69: 32075P | C69: Szűrőbetét P -AF 0476 | D69: 20 200,-Ft | E69: OMEGA | G69: 73.2639 | I69: 20200
A70: =IF(L70=FALSE,0,COUNTIF(A$3:A69,">0")+1) -> 0 | B70: 50075P | C70: Szűrőbetét P -AF 0706 | D70: 25 770,-Ft | E70: OMEGA | G70: 93.4519 | I70: 25770
A71: =IF(L71=FALSE,0,COUNTIF(A$3:A70,">0")+1) -> 0 | B71: 51090P | C71: Szűrőbetét P -AF 0946 | D71: 35 800,-Ft | E71: OMEGA | G71: 133.8279 | I71: 35800
A72: =IF(L72=FALSE,0,COUNTIF(A$3:A71,">0")+1) -> 0 | B72: 76090P | C72: Szűrőbetét P -AF 1506 | D72: 43 590,-Ft | E72: OMEGA | G72: 162.9666 | I72: 43590
A73: =IF(L73=FALSE,0,COUNTIF(A$3:A72,">0")+1) -> 0 | B73: 76090P | C73: Szűrőbetét P -AF 1756 | D73: 43 590,-Ft | E73: OMEGA | G73: 162.9666 | I73: 43590
A74: =IF(L74=FALSE,0,COUNTIF(A$3:A73,">0")+1) -> 0 | B74: 51140P | C74: Szűrőbetét P -AF 2006 | D74: 55 390,-Ft | E74: OMEGA | G74: 207.1021 | I74: 55390
A75: =IF(L75=FALSE,0,COUNTIF(A$3:A74,">0")+1) -> 0 | B75: 75140P | C75: Szűrőbetét P -AF 2406 | D75: 64 190,-Ft | E75: OMEGA | G75: 239.9797 | I75: 64190
A76: =IF(L76=FALSE,0,COUNTIF(A$3:A75,">0")+1) -> 0 | B76: 6050R | C76: Szűrőbetét R -AF 0056 | D76: 5 900,-Ft | E76: OMEGA | G76: 21.4137 | I76: 5900
A77: =IF(L77=FALSE,0,COUNTIF(A$3:A76,">0")+1) -> 0 | B77: 7050R | C77: Szűrőbetét R -AF 0076 | D77: 7 300,-Ft | E77: OMEGA | G77: 26.4813 | I77: 7300
A78: =IF(L78=FALSE,0,COUNTIF(A$3:A77,">0")+1) -> 0 | B78: 14050R | C78: Szűrőbetét R -AF 0106 | D78: 9 400,-Ft | E78: OMEGA | G78: 34.093 | I78: 9400
A79: =IF(L79=FALSE,0,COUNTIF(A$3:A78,">0")+1) -> 0 | B79: 12075R | C79: Szűrőbetét R -AF 0186 | D79: 11 840,-Ft | E79: OMEGA | G79: 42.9201 | I79: 11840
A80: =IF(L80=FALSE,0,COUNTIF(A$3:A79,">0")+1) -> 0 | B80: 22075R | C80: Szűrőbetét R -AF 0306 | D80: 16 700,-Ft | E80: OMEGA | G80: 60.5743 | I80: 16700
A81: =IF(L81=FALSE,0,COUNTIF(A$3:A80,">0")+1) -> 0 | B81: 32075R | C81: Szűrőbetét R -AF 0476 | D81: 20 200,-Ft | E81: OMEGA | G81: 73.2639 | I81: 20200
A82: =IF(L82=FALSE,0,COUNTIF(A$3:A81,">0")+1) -> 0 | B82: 50075R | C82: Szűrőbetét R -AF 0706 | D82: 25 770,-Ft | E82: OMEGA | G82: 93.4519 | I82: 25770
A83: =IF(L83=FALSE,0,COUNTIF(A$3:A82,">0")+1) -> 0 | B83: 51090R | C83: Szűrőbetét R -AF 0946 | D83: 35 800,-Ft | E83: OMEGA | G83: 133.8279 | I83: 35800
A84: =IF(L84=FALSE,0,COUNTIF(A$3:A83,">0")+1) -> 0 | B84: 76090R | C84: Szűrőbetét R -AF 1506 | D84: 43 590,-Ft | E84: OMEGA | G84: 162.9666 | I84: 43590
A85: =IF(L85=FALSE,0,COUNTIF(A$3:A84,">0")+1) -> 0 | B85: 76090R | C85: Szűrőbetét R -AF 1756 | D85: 43 590,-Ft | E85: OMEGA | G85: 162.9666 | I85: 43590
A86: =IF(L86=FALSE,0,COUNTIF(A$3:A85,">0")+1) -> 0 | B86: 51140R | C86: Szűrőbetét R -AF 2006 | D86: 55 390,-Ft | E86: OMEGA | G86: 207.1021 | I86: 55390
A87: =IF(L87=FALSE,0,COUNTIF(A$3:A86,">0")+1) -> 0 | B87: 75140R | C87: Szűrőbetét R -AF 2406 | D87: 64 190,-Ft | E87: OMEGA | G87: 239.9797 | I87: 64190
A88: =IF(L88=FALSE,0,COUNTIF(A$3:A87,">0")+1) -> 0 | B88: 6050M | C88: Szűrőbetét M -AF 0056 | D88: 5 900,-Ft | E88: OMEGA | G88: 21.4137 | I88: 5900
A89: =IF(L89=FALSE,0,COUNTIF(A$3:A88,">0")+1) -> 0 | B89: 7050M | C89: Szűrőbetét M -AF 0076 | D89: 7 300,-Ft | E89: OMEGA | G89: 26.4813 | I89: 7300
A90: =IF(L90=FALSE,0,COUNTIF(A$3:A89,">0")+1) -> 0 | B90: 14050M | C90: Szűrőbetét M -AF 0106 | D90: 9 400,-Ft | E90: OMEGA | G90: 34.093 | I90: 9400
A91: =IF(L91=FALSE,0,COUNTIF(A$3:A90,">0")+1) -> 0 | B91: 12075M | C91: Szűrőbetét M -AF 0186 | D91: 11 840,-Ft | E91: OMEGA | G91: 42.9201 | I91: 11840
A92: =IF(L92=FALSE,0,COUNTIF(A$3:A91,">0")+1) -> 0 | B92: 22075M | C92: Szűrőbetét M -AF 0306 | D92: 16 700,-Ft | E92: OMEGA | G92: 60.5743 | I92: 16700
A93: =IF(L93=FALSE,0,COUNTIF(A$3:A92,">0")+1) -> 0 | B93: 32075M | C93: Szűrőbetét M -AF 0476 | D93: 20 200,-Ft | E93: OMEGA | G93: 73.2639 | I93: 20200
A94: =IF(L94=FALSE,0,COUNTIF(A$3:A93,">0")+1) -> 0 | B94: 50075M | C94: Szűrőbetét M -AF 0706 | D94: 25 770,-Ft | E94: OMEGA | G94: 93.4519 | I94: 25770
A95: =IF(L95=FALSE,0,COUNTIF(A$3:A94,">0")+1) -> 0 | B95: 51090M | C95: Szűrőbetét M -AF 0946 | D95: 35 800,-Ft | E95: OMEGA | G95: 133.8279 | I95: 35800
A96: =IF(L96=FALSE,0,COUNTIF(A$3:A95,">0")+1) -> 0 | B96: 76090M | C96: Szűrőbetét M -AF 1506 | D96: 43 590,-Ft | E96: OMEGA | G96: 162.9666 | I96: 43590
A97: =IF(L97=FALSE,0,COUNTIF(A$3:A96,">0")+1) -> 0 | B97: 76090M | C97: Szűrőbetét M -AF 1756 | D97: 43 590,-Ft | E97: OMEGA | G97: 162.9666 | I97: 43590
A98: =IF(L98=FALSE,0,COUNTIF(A$3:A97,">0")+1) -> 0 | B98: 51140M | C98: Szűrőbetét M -AF 2006 | D98: 55 390,-Ft | E98: OMEGA | G98: 207.1021 | I98: 55390
A99: =IF(L99=FALSE,0,COUNTIF(A$3:A98,">0")+1) -> 0 | B99: 75140M | C99: Szűrőbetét M -AF 2406 | D99: 64 190,-Ft | E99: OMEGA | G99: 239.9797 | I99: 64190
A100: =IF(L100=FALSE,0,COUNTIF(A$3:A99,">0")+1) -> 0 | B100: 6050S | C100: Szűrőbetét S -AF 0056 | D100: 5 900,-Ft | E100: OMEGA | G100: 21.4137 | I100: 5900
A101: =IF(L101=FALSE,0,COUNTIF(A$3:A100,">0")+1) -> 0 | B101: 7050S | C101: Szűrőbetét S -AF 0076 | D101: 7 300,-Ft | E101: OMEGA | G101: 26.4813 | I101: 7300
A102: =IF(L102=FALSE,0,COUNTIF(A$3:A101,">0")+1) -> 0 | B102: 14050S | C102: Szűrőbetét S -AF 0106 | D102: 9 400,-Ft | E102: OMEGA | G102: 34.093 | I102: 9400
A103: =IF(L103=FALSE,0,COUNTIF(A$3:A102,">0")+1) -> 0 | B103: 12075S | C103: Szűrőbetét S -AF 0186 | D103: 11 840,-Ft | E103: OMEGA | G103: 42.9201 | I103: 11840
A104: =IF(L104=FALSE,0,COUNTIF(A$3:A103,">0")+1) -> 0 | B104: 22075S | C104: Szűrőbetét S -AF 0306 | D104: 16 700,-Ft | E104: OMEGA | G104: 60.5743 | I104: 16700
A105: =IF(L105=FALSE,0,COUNTIF(A$3:A104,">0")+1) -> 0 | B105: 32075S | C105: Szűrőbetét S -AF 0476 | D105: =IF(H105="SP",IF(J105>0,"SP: "&TEXT(J105*I$1,"# ###,-Ft "),"SP: "&TEXT(I105*I$1,"# ###,-Ft")),IF(J105>0,"*("&TEXT(I105*I$1,"# ###,-")&") "&TEXT(J105*J$1,"# ###,-Ft"),TEXT(I105*I$1,"# ###,-Ft "))) -> 20 200,-Ft | E105: OMEGA | G105: 73.2639 | I105: 20200
A106: =IF(L106=FALSE,0,COUNTIF(A$3:A105,">0")+1) -> 0 | B106: 50075S | C106: Szűrőbetét S -AF 0706 | D106: 25 770,-Ft | E106: OMEGA | G106: 93.4519 | I106: 25770
A107: =IF(L107=FALSE,0,COUNTIF(A$3:A106,">0")+1) -> 0 | B107: 51090S | C107: Szűrőbetét S -AF 0946 | D107: 35 800,-Ft | E107: OMEGA | G107: 133.8279 | I107: 35800
A108: =IF(L108=FALSE,0,COUNTIF(A$3:A107,">0")+1) -> 0 | B108: 76090S | C108: Szűrőbetét S -AF 1506 | D108: 43 590,-Ft | E108: OMEGA | G108: 162.9666 | I108: 43590
A109: =IF(L109=FALSE,0,COUNTIF(A$3:A108,">0")+1) -> 0 | B109: 76090S | C109: Szűrőbetét S -AF 1756 | D109: 43 590,-Ft | E109: OMEGA | G109: 162.9666 | I109: 43590
A110: =IF(L110=FALSE,0,COUNTIF(A$3:A109,">0")+1) -> 0 | B110: 51140S | C110: Szűrőbetét S -AF 2006 | D110: 55 390,-Ft | E110: OMEGA | G110: 207.1021 | I110: 55390
A111: =IF(L111=FALSE,0,COUNTIF(A$3:A110,">0")+1) -> 0 | B111: 75140S | C111: Szűrőbetét S -AF 2406 | D111: 64 190,-Ft | E111: OMEGA | G111: 239.9797 | I111: 64190
A112: =IF(L112=FALSE,0,COUNTIF(A$3:A111,">0")+1) -> 0 | B112: 6050A | C112: Szűrőbetét A -AF 0056 | D112: 5 900,-Ft | E112: OMEGA | G112: 21.4137 | I112: 5900
A113: =IF(L113=FALSE,0,COUNTIF(A$3:A112,">0")+1) -> 0 | B113: 7050A | C113: Szűrőbetét A -AF 0076 | D113: 7 300,-Ft | E113: OMEGA | G113: 26.4813 | I113: 7300
A114: =IF(L114=FALSE,0,COUNTIF(A$3:A113,">0")+1) -> 0 | B114: 14050A | C114: Szűrőbetét A -AF 0106 | D114: 9 400,-Ft | E114: OMEGA | G114: 34.093 | I114: 9400
A115: =IF(L115=FALSE,0,COUNTIF(A$3:A114,">0")+1) -> 0 | B115: 12075A | C115: Szűrőbetét A -AF 0186 | D115: 11 840,-Ft | E115: OMEGA | G115: 42.9201 | I115: 11840
A116: =IF(L116=FALSE,0,COUNTIF(A$3:A115,">0")+1) -> 0 | B116: 22075A | C116: Szűrőbetét A -AF 0306 | D116: 16 700,-Ft | E116: OMEGA | G116: 60.5743 | I116: 16700
A117: =IF(L117=FALSE,0,COUNTIF(A$3:A116,">0")+1) -> 0 | B117: 32075A | C117: Szűrőbetét A -AF 0476 | D117: 20 200,-Ft | E117: OMEGA | G117: 73.2639 | I117: 20200
A118: =IF(L118=FALSE,0,COUNTIF(A$3:A117,">0")+1) -> 0 | B118: 50075A | C118: Szűrőbetét A -AF 0706 | D118: 25 770,-Ft | E118: OMEGA | G118: 93.4519 | I118: 25770
A119: =IF(L119=FALSE,0,COUNTIF(A$3:A118,">0")+1) -> 0 | B119: 51090A | C119: Szűrőbetét A -AF 0946 | D119: 35 800,-Ft | E119: OMEGA | G119: 133.8279 | I119: 35800
A120: =IF(L120=FALSE,0,COUNTIF(A$3:A119,">0")+1) -> 0 | B120: 76090A | C120: Szűrőbetét A -AF 1506 | D120: 43 590,-Ft | E120: OMEGA | G120: 162.9666 | I120: 43590
A121: =IF(L121=FALSE,0,COUNTIF(A$3:A120,">0")+1) -> 0 | B121: 76090A | C121: Szűrőbetét A -AF 1756 | D121: 43 590,-Ft | E121: OMEGA | G121: 162.9666 | I121: 43590
A122: =IF(L122=FALSE,0,COUNTIF(A$3:A121,">0")+1) -> 0 | B122: 51140A | C122: Szűrőbetét A -AF 2006 | D122: 55 390,-Ft | E122: OMEGA | G122: 207.1021 | I122: 55390
A123: =IF(L123=FALSE,0,COUNTIF(A$3:A122,">0")+1) -> 0 | B123: 75140A | C123: Szűrőbetét A -AF 2406 | D123: 64 190,-Ft | E123: OMEGA | G123: 239.9797 | I123: 64190
A124: =IF(L124=FALSE,0,COUNTIF(A$3:A123,">0")+1) -> 0 | B124: 7050A² | C124: Szűrőbetét A2 -AF 0076 | D124: 21 150,-Ft | E124: OMEGA | G124: 76.6835 | I124: 21150
A125: =IF(L125=FALSE,0,COUNTIF(A$3:A124,">0")+1) -> 0 | B125: 14050A² | C125: Szűrőbetét A2 -AF 0106 | D125: 23 370,-Ft | E125: OMEGA | G125: 84.7381 | I125: 23370
A126: =IF(L126=FALSE,0,COUNTIF(A$3:A125,">0")+1) -> 0 | B126: 12075A² | C126: Szűrőbetét A2 -AF 0186 | D126: 28 650,-Ft | E126: OMEGA | G126: 107.1303 | I126: 28650
A127: =IF(L127=FALSE,0,COUNTIF(A$3:A126,">0")+1) -> 0 | B127: 22075A² | C127: Szűrőbetét A2 -AF 0306 | D127: 32 230,-Ft | E127: OMEGA | G127: 120.4894 | I127: 32230
A128: =IF(L128=FALSE,0,COUNTIF(A$3:A127,">0")+1) -> 0 | B128: 32075A² | C128: Szűrőbetét A2 -AF 0476 | D128: 35 240,-Ft | E128: OMEGA | G128: 131.7473 | I128: 35240
A129: =IF(L129=FALSE,0,COUNTIF(A$3:A128,">0")+1) -> 0 | B129: 50075A² | C129: Szűrőbetét A2 -AF 0706 | D129: 39 690,-Ft | E129: OMEGA | G129: 148.4024 | I129: 39690
A130: =IF(L130=FALSE,0,COUNTIF(A$3:A129,">0")+1) -> 0 | B130: 7050H² | C130: Szűrőbetét H2 -AF 0076 | D130: 24 310,-Ft | E130: OMEGA | G130: 88.1577 | I130: 24310
A131: =IF(L131=FALSE,0,COUNTIF(A$3:A130,">0")+1) -> 0 | B131: 14050H² | C131: Szűrőbetét H2 -AF 0106 | D131: 31 130,-Ft | E131: OMEGA | G131: 116.4003 | I131: 31130
A132: =IF(L132=FALSE,0,COUNTIF(A$3:A131,">0")+1) -> 0 | B132: 12075H² | C132: Szűrőbetét H2 -AF 0186 | D132: 38 310,-Ft | E132: OMEGA | G132: 143.2112 | I132: 38310
A133: =IF(L133=FALSE,0,COUNTIF(A$3:A132,">0")+1) -> 0 | B133: 22075H² | C133: Szűrőbetét H2 -AF 0306 | D133: 60 730,-Ft | E133: OMEGA | G133: 227.0635 | I133: 60730
A134: =IF(L134=FALSE,0,COUNTIF(A$3:A133,">0")+1) -> 0 | B134: 32075H² | C134: Szűrőbetét H2 -AF 0476 | D134: 84 110,-Ft | E134: OMEGA | G134: 314.4487 | I134: 84110
A135: =IF(L135=FALSE,0,COUNTIF(A$3:A134,">0")+1) -> 0 | B135: 50075H² | C135: Szűrőbetét H2 -AF 0706 | D135: 130 130,-Ft | E135: OMEGA | G135: 502.022 | I135: 130130
A136: =IF(L136=FALSE,0,COUNTIF(A$3:A135,">0")+1) -> 0 | B136: 7050MS² | C136: Szűrőbetét MS2 -AF 0076 | D136: 22 070,-Ft | E136: OMEGA | G136: 80.0207 | I136: 22070
A137: =IF(L137=FALSE,0,COUNTIF(A$3:A136,">0")+1) -> 0 | B137: 14050MS² | C137: Szűrőbetét MS2 -AF 0106 | D137: 26 410,-Ft | E137: OMEGA | G137: 98.7255 | I137: 26410
A138: =IF(L138=FALSE,0,COUNTIF(A$3:A137,">0")+1) -> 0 | B138: 12075MS² | C138: Szűrőbetét MS2 -AF 0186 | D138: 33 390,-Ft | E138: OMEGA | G138: 124.8154 | I138: 33390
A139: =IF(L139=FALSE,0,COUNTIF(A$3:A138,">0")+1) -> 0 | B139: 22075MS² | C139: Szűrőbetét MS2 -AF 0306 | D139: 37 550,-Ft | E139: OMEGA | G139: 140.3684 | I139: 37550
A140: =IF(L140=FALSE,0,COUNTIF(A$3:A139,">0")+1) -> 0 | B140: 32075MS² | C140: Szűrőbetét MS2 -AF 0476 | D140: 41 050,-Ft | E140: OMEGA | G140: 153.4906 | I140: 41050
A141: =IF(L141=FALSE,0,COUNTIF(A$3:A140,">0")+1) -> 0 | B141: 50075MS² | C141: Szűrőbetét MS2 -AF 0706 | D141: 46 250,-Ft | E141: OMEGA | G141: 172.8958 | I141: 46250
A142: =IF(L142=FALSE,0,COUNTIF(A$3:A141,">0")+1) -> 0 | B142: AAF 0016 | C142: Alumínium AFF szűrőház -1/8'' | D142: 15 180,-Ft | E142: OMEGA | G142: 55.0638 | I142: 15180
A143: =IF(L143=FALSE,0,COUNTIF(A$3:A142,">0")+1) -> 0 | B143: AAF 0026 | C143: Alumínium AFF szűrőház -1/4'' | D143: 16 560,-Ft | E143: OMEGA | G143: 60.049 | I143: 16560
A144: =IF(L144=FALSE,0,COUNTIF(A$3:A143,">0")+1) -> 0 | B144: AAF 0036 | C144: Alumínium AFF szűrőház -3/8'' | D144: 17 410,-Ft | E144: OMEGA | G144: 63.1287 | I144: 17410
A145: =IF(L145=FALSE,0,COUNTIF(A$3:A144,">0")+1) -> 0 | B145: AAF 0046 | C145: Alumínium AFF szűrőház -1/4'' | D145: 19 480,-Ft | E145: OMEGA | G145: 70.658 | I145: 19480
A146: =IF(L146=FALSE,0,COUNTIF(A$3:A145,">0")+1) -> 0 | B146: AAF 0056 | C146: Alumínium AFF szűrőház -3/8'' | D146: 20 450,-Ft | E146: OMEGA | G146: 74.16 | I146: 20450
A147: =IF(L147=FALSE,0,COUNTIF(A$3:A146,">0")+1) -> 0 | B147: AAF 0076 | C147: Alumínium AFF szűrőház -1/2'' | D147: 21 800,-Ft | E147: OMEGA | G147: 79.0422 | I147: 21800
A148: =IF(L148=FALSE,0,COUNTIF(A$3:A147,">0")+1) -> 0 | B148: AAF 0106 | C148: Alumínium AFF szűrőház -3/4'' | D148: 23 370,-Ft | E148: OMEGA | G148: 84.769 | I148: 23370
A149: =IF(L149=FALSE,0,COUNTIF(A$3:A148,">0")+1) -> 0 | B149: 3528AA-P | C149: Szűrőbetét P -AAF 0016 | D149: 5 530,-Ft | E149: OMEGA | G149: 20.0541 | I149: 5530
A150: =IF(L150=FALSE,0,COUNTIF(A$3:A149,">0")+1) -> 0 | B150: 3844AA-P | C150: Szűrőbetét P -AAF 0026 | D150: 5 710,-Ft | E150: OMEGA | G150: 20.6927 | I150: 5710
A151: =IF(L151=FALSE,0,COUNTIF(A$3:A150,">0")+1) -> 0 | B151: 3844AA-P | C151: Szűrőbetét P -AAF 0036 | D151: 5 710,-Ft | E151: OMEGA | G151: 20.6927 | I151: 5710
A152: =IF(L152=FALSE,0,COUNTIF(A$3:A151,">0")+1) -> 0 | B152: 6050AA-P | C152: Szűrőbetét P -AAF 0046 | D152: 5 900,-Ft | E152: OMEGA | G152: 21.4137 | I152: 5900
A153: =IF(L153=FALSE,0,COUNTIF(A$3:A152,">0")+1) -> 0 | B153: 6050AA-P | C153: Szűrőbetét P -AAF 0056 | D153: 5 900,-Ft | E153: OMEGA | G153: 21.4137 | I153: 5900
A154: =IF(L154=FALSE,0,COUNTIF(A$3:A153,">0")+1) -> 0 | B154: 7050AA-P | C154: Szűrőbetét P -AAF 0076 | D154: 7 300,-Ft | E154: OMEGA | G154: 26.4813 | I154: 7300
A155: =IF(L155=FALSE,0,COUNTIF(A$3:A154,">0")+1) -> 0 | B155: 14050AA-P | C155: Szűrőbetét P -AAF 0106 | D155: 9 400,-Ft | E155: OMEGA | G155: 34.093 | I155: 9400
A156: =IF(L156=FALSE,0,COUNTIF(A$3:A155,">0")+1) -> 0 | B156: 3528AA-R | C156: Szűrőbetét R -AAF 0016 | D156: 5 530,-Ft | E156: OMEGA | G156: 20.0541 | I156: 5530
A157: =IF(L157=FALSE,0,COUNTIF(A$3:A156,">0")+1) -> 0 | B157: 3844AA-R | C157: Szűrőbetét R -AAF 0026 | D157: 5 710,-Ft | E157: OMEGA | G157: 20.6927 | I157: 5710
A158: =IF(L158=FALSE,0,COUNTIF(A$3:A157,">0")+1) -> 0 | B158: 3844AA-R | C158: Szűrőbetét R -AAF 0036 | D158: 5 710,-Ft | E158: OMEGA | G158: 20.6927 | I158: 5710
A159: =IF(L159=FALSE,0,COUNTIF(A$3:A158,">0")+1) -> 0 | B159: 6050AA-R | C159: Szűrőbetét R -AAF 0046 | D159: 5 900,-Ft | E159: OMEGA | G159: 21.4137 | I159: 5900
A160: =IF(L160=FALSE,0,COUNTIF(A$3:A159,">0")+1) -> 0 | B160: 6050AA-R | C160: Szűrőbetét R -AAF 0056 | D160: 5 900,-Ft | E160: OMEGA | G160: 21.4137 | I160: 5900
A161: =IF(L161=FALSE,0,COUNTIF(A$3:A160,">0")+1) -> 0 | B161: 7050AA-R | C161: Szűrőbetét R -AAF 0076 | D161: 7 300,-Ft | E161: OMEGA | G161: 26.4813 | I161: 7300
A162: =IF(L162=FALSE,0,COUNTIF(A$3:A161,">0")+1) -> 0 | B162: 14050AA-R | C162: Szűrőbetét R -AAF 0106 | D162: 9 400,-Ft | E162: OMEGA | G162: 34.093 | I162: 9400
A163: =IF(L163=FALSE,0,COUNTIF(A$3:A162,">0")+1) -> 0 | B163: 3528AA-M | C163: Szűrőbetét M -AAF 0016 | D163: 5 530,-Ft | E163: OMEGA | G163: 20.0541 | I163: 5530
A164: =IF(L164=FALSE,0,COUNTIF(A$3:A163,">0")+1) -> 0 | B164: 3844AA-M | C164: Szűrőbetét M -AAF 0026 | D164: 5 710,-Ft | E164: OMEGA | G164: 20.6927 | I164: 5710
A165: =IF(L165=FALSE,0,COUNTIF(A$3:A164,">0")+1) -> 0 | B165: 3844AA-M | C165: Szűrőbetét M -AAF 0036 | D165: 5 710,-Ft | E165: OMEGA | G165: 20.6927 | I165: 5710
A166: =IF(L166=FALSE,0,COUNTIF(A$3:A165,">0")+1) -> 0 | B166: 6050AA-M | C166: Szűrőbetét M -AAF 0046 | D166: 5 900,-Ft | E166: OMEGA | G166: 21.4137 | I166: 5900
A167: =IF(L167=FALSE,0,COUNTIF(A$3:A166,">0")+1) -> 0 | B167: 6050AA-M | C167: Szűrőbetét M -AAF 0056 | D167: 5 900,-Ft | E167: OMEGA | G167: 21.4137 | I167: 5900
A168: =IF(L168=FALSE,0,COUNTIF(A$3:A167,">0")+1) -> 0 | B168: 7050AA-M | C168: Szűrőbetét M -AAF 0076 | D168: 7 300,-Ft | E168: OMEGA | G168: 26.4813 | I168: 7300
A169: =IF(L169=FALSE,0,COUNTIF(A$3:A168,">0")+1) -> 0 | B169: 14050AA-M | C169: Szűrőbetét M -AAF 0106 | D169: =IF(H169="SP",IF(J169>0,"SP: "&TEXT(J169*I$1,"# ###,-Ft "),"SP: "&TEXT(I169*I$1,"# ###,-Ft")),IF(J169>0,"*("&TEXT(I169*I$1,"# ###,-")&") "&TEXT(J169*J$1,"# ###,-Ft"),TEXT(I169*I$1,"# ###,-Ft "))) -> 9 400,-Ft | E169: OMEGA | G169: 34.093 | I169: 9400
A170: =IF(L170=FALSE,0,COUNTIF(A$3:A169,">0")+1) -> 0 | B170: 3528AA-S | C170: Szűrőbetét S -AAF 0016 | D170: 5 530,-Ft | E170: OMEGA | G170: 20.0541 | I170: 5530
A171: =IF(L171=FALSE,0,COUNTIF(A$3:A170,">0")+1) -> 0 | B171: 3844AA-S | C171: Szűrőbetét S -AAF 0026 | D171: 5 710,-Ft | E171: OMEGA | G171: 20.6927 | I171: 5710
A172: =IF(L172=FALSE,0,COUNTIF(A$3:A171,">0")+1) -> 0 | B172: 3844AA-S | C172: Szűrőbetét S -AAF 0036 | D172: 5 710,-Ft | E172: OMEGA | G172: 20.6927 | I172: 5710
A173: =IF(L173=FALSE,0,COUNTIF(A$3:A172,">0")+1) -> 0 | B173: 6050AA-S | C173: Szűrőbetét S -AAF 0046 | D173: 5 900,-Ft | E173: OMEGA | G173: 21.4137 | I173: 5900
A174: =IF(L174=FALSE,0,COUNTIF(A$3:A173,">0")+1) -> 0 | B174: 6050AA-S | C174: Szűrőbetét S -AAF 0056 | D174: 5 900,-Ft | E174: OMEGA | G174: 21.4137 | I174: 5900
A175: =IF(L175=FALSE,0,COUNTIF(A$3:A174,">0")+1) -> 0 | B175: 7050AA-S | C175: Szűrőbetét S -AAF 0076 | D175: 7 300,-Ft | E175: OMEGA | G175: 26.4813 | I175: 7300
A176: =IF(L176=FALSE,0,COUNTIF(A$3:A175,">0")+1) -> 0 | B176: 14050AA-S | C176: Szűrőbetét S -AAF 0106 | D176: 9 400,-Ft | E176: OMEGA | G176: 34.093 | I176: 9400
A177: =IF(L177=FALSE,0,COUNTIF(A$3:A176,">0")+1) -> 0 | B177: 3528AA-A | C177: Szűrőbetét A -AAF 0016 | D177: 5 530,-Ft | E177: OMEGA | G177: 20.0541 | I177: 5530
A178: =IF(L178=FALSE,0,COUNTIF(A$3:A177,">0")+1) -> 0 | B178: 3844AA-A | C178: Szűrőbetét A -AAF 0026 | D178: 5 710,-Ft | E178: OMEGA | G178: 20.6927 | I178: 5710
A179: =IF(L179=FALSE,0,COUNTIF(A$3:A178,">0")+1) -> 0 | B179: 3844AA-A | C179: Szűrőbetét A -AAF 0036 | D179: 5 710,-Ft | E179: OMEGA | G179: 20.6927 | I179: 5710
A180: =IF(L180=FALSE,0,COUNTIF(A$3:A179,">0")+1) -> 0 | B180: 6050AA-A | C180: Szűrőbetét A -AAF 0046 | D180: 5 900,-Ft | E180: OMEGA | G180: 21.4137 | I180: 5900
A181: =IF(L181=FALSE,0,COUNTIF(A$3:A180,">0")+1) -> 0 | B181: 6050AA-A | C181: Szűrőbetét A -AAF 0056 | D181: 5 900,-Ft | E181: OMEGA | G181: 21.4137 | I181: 5900
A182: =IF(L182=FALSE,0,COUNTIF(A$3:A181,">0")+1) -> 0 | B182: 7050AA-A | C182: Szűrőbetét A -AAF 0076 | D182: 7 300,-Ft | E182: OMEGA | G182: 26.4813 | I182: 7300
A183: =IF(L183=FALSE,0,COUNTIF(A$3:A182,">0")+1) -> 0 | B183: 14050AA-A | C183: Szűrőbetét A -AAF 0106 | D183: 9 400,-Ft | E183: OMEGA | G183: 34.093 | I183: 9400
A184: =IF(L184=FALSE,0,COUNTIF(A$3:A183,">0")+1) -> 0 | B184: 3528CKL-AAF | C184: Szűrőbetét CKL-AAF -AAF 0016 | D184: 5 440,-Ft | E184: OMEGA | G184: 19.7348 | I184: 5440
A185: =IF(L185=FALSE,0,COUNTIF(A$3:A184,">0")+1) -> 0 | B185: 3844CKL-AAF | C185: Szűrőbetét CKL-AAF -AAF 0026 | D185: 5 590,-Ft | E185: OMEGA | G185: 20.2601 | I185: 5590
A186: =IF(L186=FALSE,0,COUNTIF(A$3:A185,">0")+1) -> 0 | B186: 3844CKL-AAF | C186: Szűrőbetét CKL-AAF -AAF 0036 | D186: 5 590,-Ft | E186: OMEGA | G186: 20.2601 | I186: 5590
A187: =IF(L187=FALSE,0,COUNTIF(A$3:A186,">0")+1) -> 0 | B187: 6050CKL-AAF | C187: Szűrőbetét CKL-AAF -AAF 0046 | D187: 5 720,-Ft | E187: OMEGA | G187: 20.7442 | I187: 5720
A188: =IF(L188=FALSE,0,COUNTIF(A$3:A187,">0")+1) -> 0 | B188: 6050CKL-AAF | C188: Szűrőbetét CKL-AAF -AAF 0056 | D188: 5 720,-Ft | E188: OMEGA | G188: 20.7442 | I188: 5720
A189: =IF(L189=FALSE,0,COUNTIF(A$3:A188,">0")+1) -> 0 | B189: 7050CKL-AAF | C189: Szűrőbetét CKL-AAF -AAF 0076 | D189: 5 720,-Ft | E189: OMEGA | G189: 20.7442 | I189: 5720
A190: =IF(L190=FALSE,0,COUNTIF(A$3:A189,">0")+1) -> 0 | B190: 14050CKL-AAF | C190: Szűrőbetét CKL-AAF -AAF 0106 | D190: 7 060,-Ft | E190: OMEGA | G190: 25.6161 | I190: 7060
A191: =IF(L191=FALSE,0,COUNTIF(A$3:A190,">0")+1) -> 0 | B191: MCD-B | C191: Kond. leeresztő manuális 0-16bar | D191: 2 020,-Ft | E191: OMEGA | G191: 7.3233 | I191: 2020
A192: =IF(L192=FALSE,0,COUNTIF(A$3:A191,">0")+1) -> 0 | B192: MCD | C192: Kond. leeresztő manuális 0-20bar | D192: 2 620,-Ft | E192: OMEGA | G192: 9.4863 | I192: 2620
A193: =IF(L193=FALSE,0,COUNTIF(A$3:A192,">0")+1) -> 0 | B193: AOK16B | C193: Belső Kond. leeresztő automata 0-16bar | D193: 7 060,-Ft | E193: OMEGA | G193: 25.5955 | I193: 7060
A194: =IF(L194=FALSE,0,COUNTIF(A$3:A193,">0")+1) -> 0 | B194: AOK 20B | C194: Kond. leeresztő automata gömb 0-20bar | D194: 11 130,-Ft | E194: OMEGA | G194: 40.376 | I194: 11130
A195: =IF(L195=FALSE,0,COUNTIF(A$3:A194,">0")+1) -> 0 | B195: TD 16M | C195: Idővezérelt mágnesszelep leürítő | D195: 21 150,-Ft | E195: OMEGA | G195: 76.6835 | I195: 21150
A196: =IF(L196=FALSE,0,COUNTIF(A$3:A195,">0")+1) -> 0 | B196: TD 25M | C196: Idővezérelt mágnesszelep leürítő 25 bar | D196: 29 160,-Ft | E196: OMEGA | G196: 109.0049 | I196: 29160
A197: =IF(L197=FALSE,0,COUNTIF(A$3:A196,">0")+1) -> 0 | B197: TD 16Mcr | C197: Idővezérelt mágnesszelep leürítő | D197: 36 500,-Ft | E197: OMEGA | G197: 136.475 | I197: 36500
A198: =IF(L198=FALSE,0,COUNTIF(A$3:A197,">0")+1) -> 0 | B198: IED | C198: Idővezérelt mágnesszelep leürítő | D198: 24 110,-Ft | E198: OMEGA | G198: 87.447 | I198: 24110
A199: =IF(L199=FALSE,0,COUNTIF(A$3:A198,">0")+1) -> 0 | B199: CDI 16B | C199: Kondenzátum leeresztő | D199: 39 520,-Ft | E199: OMEGA | G199: 147.7432 | I199: 39520
A200: =IF(L200=FALSE,0,COUNTIF(A$3:A199,">0")+1) -> 0 | B200: EMD 15B | C200: Elektronikus kondenzátum leeresztő | D200: 46 160,-Ft | E200: OMEGA | G200: 172.5662 | I200: 46160
... 639 more rows

Sheet Megrendelő
AD1: Verzió: | AF1: 2020-02-01
C2: MEGRENDELŐ
A4: Cég neve:
A5: Számlázási cím: | H5: Adószám:
A6: Szállítási cím:
A7: Megrendelő neve: | D7: Fizetési mód: | G7: 1 | H7: Pénznem: | I7: 1
A8: Telefon: | D8: Kedvezmény: | G8: 0 | H8: Szállítás: | I8: 1
D9: Árfolyam: | E9: =F9-3 -> 1 | F9: 4 | G9: 340 | H9: HUF/EU | I9: =ROUND(G9/5,0)*5 -> 340
B11: Cikkszám | C11: Megnevezés | D11: Mennyiség | E11: Kedvez- mény | F11: Súly | G11: Nettó listaár | H11: ="Nettó kedvezményes egységár "&IF($I$7=1,"HUF","EUR") -> Nettó kedvezményes egységár HUF | I11: ="Összesen "&IF($I$7=1,"HUF","EUR") -> Összesen HUF | L11: MEGRENDELŐ
A12: 1 | B12: =IFERROR(IF(ST!C3>0,ST!C3,""),"") ->  | C12: =IFERROR(IF(ST!D3>0,ST!D3,""),"") ->  | E12: =IFERROR(IF(ISNUMBER(G12),IF(AND(0.15<G$8,0.21>G$8),IF(ST!G3>0,0.15,G$8),IF(G$8>0.2,G$8-ST!G3,G$8)),""),"") ->  | F12: =IFERROR(ST!H3*D12,"") ->  | G12: =IFERROR(IF(AND(E$8="ws",ST!L3>0),ST!L3,IF(ST!K3>0,ST!K3,IF(ST!J3>0,ST!J3,""))),"") ->  | H12: =IFERROR(ROUND(IF(G12>0,IF(I$7>1,(1-E12)*G12/340,(1-E12)*G12/340*I$9),""),E$9),"") ->  | I12: =IFERROR(H12*D12,"") ->  | L12: TARTALOM
A13: 2 | B13: =IFERROR(IF(ST!C4>0,ST!C4,""),"") ->  | C13: =IFERROR(IF(ST!D4>0,ST!D4,""),"") ->  | E13: =IFERROR(IF(ISNUMBER(G13),IF(AND(0.15<G$8,0.21>G$8),IF(ST!G4>0,0.15,G$8),IF(G$8>0.2,G$8-ST!G4,G$8)),""),"") ->  | F13: =IFERROR(ST!H4*D13,"") ->  | G13: =IFERROR(IF(AND(E$8="ws",ST!L4>0),ST!L4,IF(ST!K4>0,ST!K4,IF(ST!J4>0,ST!J4,""))),"") ->  | H13: =IFERROR(ROUND(IF(G13>0,IF(I$7>1,(1-E13)*G13/340,(1-E13)*G13/340*I$9),""),E$9),"") ->  | I13: =IFERROR(H13*D13,"") ->  | L13: Árlista
A14: 3 | B14: =IFERROR(IF(ST!C5>0,ST!C5,""),"") ->  | C14: =IFERROR(IF(ST!D5>0,ST!D5,""),"") ->  | E14: =IFERROR(IF(ISNUMBER(G14),IF(AND(0.15<G$8,0.21>G$8),IF(ST!G5>0,0.15,G$8),IF(G$8>0.2,G$8-ST!G5,G$8)),""),"") ->  | F14: =IFERROR(ST!H5*D14,"") ->  | G14: =IFERROR(IF(AND(E$8="ws",ST!L5>0),ST!L5,IF(ST!K5>0,ST!K5,IF(ST!J5>0,ST!J5,""))),"") ->  | L14: Megrendelő
A15: 4 | B15: =IFERROR(IF(ST!C6>0,ST!C6,""),"") ->  | C15: =IFERROR(IF(ST!D6>0,ST!D6,""),"") ->  | E15: =IFERROR(IF(ISNUMBER(G15),IF(AND(0.15<G$8,0.21>G$8),IF(ST!G6>0,0.15,G$8),IF(G$8>0.2,G$8-ST!G6,G$8)),""),"") ->  | F15: =IFERROR(ST!H6*D15,"") ->  | G15: =IFERROR(IF(AND(E$8="ws",ST!L6>0),ST!L6,IF(ST!K6>0,ST!K6,IF(ST!J6>0,ST!J6,""))),"") ->  | L15: ABAC dugattyús kompresszorok
A16: 5 | B16: =IFERROR(IF(ST!C7>0,ST!C7,""),"") ->  | C16: =IFERROR(IF(ST!D7>0,ST!D7,""),"") ->  | E16: =IFERROR(IF(ISNUMBER(G16),IF(AND(0.15<G$8,0.21>G$8),IF(ST!G7>0,0.15,G$8),IF(G$8>0.2,G$8-ST!G7,G$8)),""),"") ->  | F16: =IFERROR(ST!H7*D16,"") ->  | G16: =IFERROR(IF(AND(E$8="ws",ST!L7>0),ST!L7,IF(ST!K7>0,ST!K7,IF(ST!J7>0,ST!J7,""))),"") ->  | L16: ABAC CleanAir fogászati kompresszor
A17: 6 | B17: =IFERROR(IF(ST!C8>0,ST!C8,""),"") ->  | C17: =IFERROR(IF(ST!D8>0,ST!D8,""),"") ->  | E17: =IFERROR(IF(ISNUMBER(G17),IF(AND(0.15<G$8,0.21>G$8),IF(ST!G8>0,0.15,G$8),IF(G$8>0.2,G$8-ST!G8,G$8)),""),"") ->  | F17: =IFERROR(ST!H8*D17,"") ->  | G17: =IFERROR(IF(AND(E$8="ws",ST!L8>0),ST!L8,IF(ST!K8>0,ST!K8,IF(ST!J8>0,ST!J8,""))),"") ->  | L17: AGRE ipari dugattyús kompresszorok | S17: ABAC dugattyús | V17: CleanAir olajmentes | Y17: AGRE ipari | AB17: EngineAir bemzin és dizel | AE17: MEGRENDELŐ
A18: 7 | B18: =IFERROR(IF(ST!C9>0,ST!C9,""),"") ->  | C18: =IFERROR(IF(ST!D9>0,ST!D9,""),"") ->  | E18: =IFERROR(IF(ISNUMBER(G18),IF(AND(0.15<G$8,0.21>G$8),IF(ST!G9>0,0.15,G$8),IF(G$8>0.2,G$8-ST!G9,G$8)),""),"") ->  | F18: =IFERROR(ST!H9*D18,"") ->  | G18: =IFERROR(IF(AND(E$8="ws",ST!L9>0),ST!L9,IF(ST!K9>0,ST!K9,IF(ST!J9>0,ST!J9,""))),"") ->  | L18: ALUP SONETTO csavarkomp 2,2-15kW | S18: garázsipari kompresszorok | V18: dugattyús kompresszorok | Y18: dugattyús kompresszorok | AB18: üzemű dugattyús kompr
A19: 8 | B19: =IFERROR(IF(ST!C10>0,ST!C10,""),"") ->  | C19: =IFERROR(IF(ST!D10>0,ST!D10,""),"") ->  | E19: =IFERROR(IF(ISNUMBER(G19),IF(AND(0.15<G$8,0.21>G$8),IF(ST!G10>0,0.15,G$8),IF(G$8>0.2,G$8-ST!G10,G$8)),""),"") ->  | F19: =IFERROR(ST!H10*D19,"") ->  | G19: =IFERROR(IF(AND(E$8="ws",ST!L10>0),ST!L10,IF(ST!K10>0,ST!K10,IF(ST!J10>0,ST!J10,""))),"") ->  | L19: ALUP SCK csavarkomp 4-75kW
A20: 9 | B20: =IFERROR(IF(ST!C11>0,ST!C11,""),"") ->  | C20: =IFERROR(IF(ST!D11>0,ST!D11,""),"") ->  | E20: =IFERROR(IF(ISNUMBER(G20),IF(AND(0.15<G$8,0.21>G$8),IF(ST!G11>0,0.15,G$8),IF(G$8>0.2,G$8-ST!G11,G$8)),""),"") ->  | F20: =IFERROR(ST!H11*D20,"") ->  | G20: =IFERROR(IF(AND(E$8="ws",ST!L11>0),ST!L11,IF(ST!K11>0,ST!K11,IF(ST!J11>0,ST!J11,""))),"") ->  | L20: ALUP LARGO, ALLEGRO csavarkompr
A21: 10 | B21: =IFERROR(IF(ST!C12>0,ST!C12,""),"") ->  | C21: =IFERROR(IF(ST!D12>0,ST!D12,""),"") ->  | E21: =IFERROR(IF(ISNUMBER(G21),IF(AND(0.15<G$8,0.21>G$8),IF(ST!G12>0,0.15,G$8),IF(G$8>0.2,G$8-ST!G12,G$8)),""),"") ->  | F21: =IFERROR(ST!H12*D21,"") ->  | G21: =IFERROR(IF(AND(E$8="ws",ST!L12>0),ST!L12,IF(ST!K12>0,ST!K12,IF(ST!J12>0,ST!J12,""))),"") ->  | L21: ALUP Hűtveszárítók
A22: 11 | B22: =IFERROR(IF(ST!C13>0,ST!C13,""),"") ->  | C22: =IFERROR(IF(ST!D13>0,ST!D13,""),"") ->  | E22: =IFERROR(IF(ISNUMBER(G22),IF(AND(0.15<G$8,0.21>G$8),IF(ST!G13>0,0.15,G$8),IF(G$8>0.2,G$8-ST!G13,G$8)),""),"") ->  | F22: =IFERROR(ST!H13*D22,"") ->  | G22: =IFERROR(IF(AND(E$8="ws",ST!L13>0),ST!L13,IF(ST!K13>0,ST!K13,IF(ST!J13>0,ST!J13,""))),"") ->  | L22: ALUP szűrők
A23: 12 | B23: =IFERROR(IF(ST!C14>0,ST!C14,""),"") ->  | C23: =IFERROR(IF(ST!D14>0,ST!D14,""),"") ->  | E23: =IFERROR(IF(ISNUMBER(G23),IF(AND(0.15<G$8,0.21>G$8),IF(ST!G14>0,0.15,G$8),IF(G$8>0.2,G$8-ST!G14,G$8)),""),"") ->  | F23: =IFERROR(ST!H14*D23,"") ->  | G23: =IFERROR(IF(AND(E$8="ws",ST!L14>0),ST!L14,IF(ST!K14>0,ST!K14,IF(ST!J14>0,ST!J14,""))),"") ->  | L23: ALUP SpiralAir -Scroll kompresszor
A24: 13 | B24: =IFERROR(IF(ST!C15>0,ST!C15,""),"") ->  | C24: =IFERROR(IF(ST!D15>0,ST!D15,""),"") ->  | E24: =IFERROR(IF(ISNUMBER(G24),IF(AND(0.15<G$8,0.21>G$8),IF(ST!G15>0,0.15,G$8),IF(G$8>0.2,G$8-ST!G15,G$8)),""),"") ->  | F24: =IFERROR(ST!H15*D24,"") ->  | G24: =IFERROR(IF(AND(E$8="ws",ST!L15>0),ST!L15,IF(ST!K15>0,ST!K15,IF(ST!J15>0,ST!J15,""))),"") ->  | L24: ALUP dugattyús kompresszorok
A25: 14 | B25: =IFERROR(IF(ST!C16>0,ST!C16,""),"") ->  | C25: =IFERROR(IF(ST!D16>0,ST!D16,""),"") ->  | E25: =IFERROR(IF(ISNUMBER(G25),IF(AND(0.15<G$8,0.21>G$8),IF(ST!G16>0,0.15,G$8),IF(G$8>0.2,G$8-ST!G16,G$8)),""),"") ->  | F25: =IFERROR(ST!H16*D25,"") ->  | G25: =IFERROR(IF(AND(E$8="ws",ST!L16>0),ST!L16,IF(ST!K16>0,ST!K16,IF(ST!J16>0,ST!J16,""))),"") ->  | L25: OMEGA vonali szűrők
A26: 15 | B26: =IFERROR(IF(ST!C17>0,ST!C17,""),"") ->  | C26: =IFERROR(IF(ST!D17>0,ST!D17,""),"") ->  | E26: =IFERROR(IF(ISNUMBER(G26),IF(AND(0.15<G$8,0.21>G$8),IF(ST!G17>0,0.15,G$8),IF(G$8>0.2,G$8-ST!G17,G$8)),""),"") ->  | F26: =IFERROR(ST!H17*D26,"") ->  | G26: =IFERROR(IF(AND(E$8="ws",ST!L17>0),ST!L17,IF(ST!K17>0,ST!K17,IF(ST!J17>0,ST!J17,""))),"") ->  | L26: OMEGA ciklonszűrők
A27: 16 | B27: =IFERROR(IF(ST!C18>0,ST!C18,""),"") ->  | C27: =IFERROR(IF(ST!D18>0,ST!D18,""),"") ->  | E27: =IFERROR(IF(ISNUMBER(G27),IF(AND(0.15<G$8,0.21>G$8),IF(ST!G18>0,0.15,G$8),IF(G$8>0.2,G$8-ST!G18,G$8)),""),"") ->  | F27: =IFERROR(ST!H18*D27,"") ->  | G27: =IFERROR(IF(AND(E$8="ws",ST!L18>0),ST!L18,IF(ST!K18>0,ST!K18,IF(ST!J18>0,ST!J18,""))),"") ->  | L27: OMEGA olaj-víz szétválasztók | S27: ALUP SCK sorozatú ékszíjas | V27: ALUP LARGO és ALLEGRO | Y27: ALUP Sonetto és SCK mini | AB27: SpiralAir olajmentes
A28: 17 | B28: =IFERROR(IF(ST!C19>0,ST!C19,""),"") ->  | C28: =IFERROR(IF(ST!D19>0,ST!D19,""),"") ->  | E28: =IFERROR(IF(ISNUMBER(G28),IF(AND(0.15<G$8,0.21>G$8),IF(ST!G19>0,0.15,G$8),IF(G$8>0.2,G$8-ST!G19,G$8)),""),"") ->  | F28: =IFERROR(ST!H19*D28,"") ->  | G28: =IFERROR(IF(AND(E$8="ws",ST!L19>0),ST!L19,IF(ST!K19>0,ST!K19,IF(ST!J19>0,ST!J19,""))),"") ->  | L28: ABAC sűrítők | S28: csavarkompresszor 4-75kW | V28: csavarkompr 7,5-250kW | Y28: csavarkompr. 2,2-15kW | AB28: spirálkompresszorok
A29: 18 | B29: =IFERROR(IF(ST!C20>0,ST!C20,""),"") ->  | C29: =IFERROR(IF(ST!D20>0,ST!D20,""),"") ->  | E29: =IFERROR(IF(ISNUMBER(G29),IF(AND(0.15<G$8,0.21>G$8),IF(ST!G20>0,0.15,G$8),IF(G$8>0.2,G$8-ST!G20,G$8)),""),"") ->  | F29: =IFERROR(ST!H20*D29,"") ->  | G29: =IFERROR(IF(AND(E$8="ws",ST!L20>0),ST!L20,IF(ST!K20>0,ST!K20,IF(ST!J20>0,ST!J20,""))),"") ->  | L29: CONDOR nyomáskapcsolók
A30: 19 | B30: =IFERROR(IF(ST!C21>0,ST!C21,""),"") ->  | C30: =IFERROR(IF(ST!D21>0,ST!D21,""),"") ->  | E30: =IFERROR(IF(ISNUMBER(G30),IF(AND(0.15<G$8,0.21>G$8),IF(ST!G21>0,0.15,G$8),IF(G$8>0.2,G$8-ST!G21,G$8)),""),"") ->  | F30: =IFERROR(ST!H21*D30,"") ->  | G30: =IFERROR(IF(AND(E$8="ws",ST!L21>0),ST!L21,IF(ST!K21>0,ST!K21,IF(ST!J21>0,ST!J21,""))),"") ->  | L30: Tartályok
A31: 20 | B31: =IFERROR(IF(ST!C22>0,ST!C22,""),"") ->  | C31: =IFERROR(IF(ST!D22>0,ST!D22,""),"") ->  | E31: =IFERROR(IF(ISNUMBER(G31),IF(AND(0.15<G$8,0.21>G$8),IF(ST!G22>0,0.15,G$8),IF(G$8>0.2,G$8-ST!G22,G$8)),""),"") ->  | F31: =IFERROR(ST!H22*D31,"") ->  | G31: =IFERROR(IF(AND(E$8="ws",ST!L22>0),ST!L22,IF(ST!K22>0,ST!K22,IF(ST!J22>0,ST!J22,""))),"") ->  | L31: Egyéb alaktrészek
A32: 21 | B32: =IFERROR(IF(ST!C23>0,ST!C23,""),"") ->  | C32: =IFERROR(IF(ST!D23>0,ST!D23,""),"") ->  | E32: =IFERROR(IF(ISNUMBER(G32),IF(AND(0.15<G$8,0.21>G$8),IF(ST!G23>0,0.15,G$8),IF(G$8>0.2,G$8-ST!G23,G$8)),""),"") ->  | F32: =IFERROR(ST!H23*D32,"") ->  | G32: =IFERROR(IF(AND(E$8="ws",ST!L23>0),ST!L23,IF(ST!K23>0,ST!K23,IF(ST!J23>0,ST!J23,""))),"") -> 
A33: 22 | B33: =IFERROR(IF(ST!C24>0,ST!C24,""),"") ->  | C33: =IFERROR(IF(ST!D24>0,ST!D24,""),"") ->  | E33: =IFERROR(IF(ISNUMBER(G33),IF(AND(0.15<G$8,0.21>G$8),IF(ST!G24>0,0.15,G$8),IF(G$8>0.2,G$8-ST!G24,G$8)),""),"") ->  | F33: =IFERROR(ST!H24*D33,"") ->  | G33: =IFERROR(IF(AND(E$8="ws",ST!L24>0),ST!L24,IF(ST!K24>0,ST!K24,IF(ST!J24>0,ST!J24,""))),"") -> 
A34: 23 | B34: =IFERROR(IF(ST!C25>0,ST!C25,""),"") ->  | C34: =IFERROR(IF(ST!D25>0,ST!D25,""),"") ->  | E34: =IFERROR(IF(ISNUMBER(G34),IF(AND(0.15<G$8,0.21>G$8),IF(ST!G25>0,0.15,G$8),IF(G$8>0.2,G$8-ST!G25,G$8)),""),"") ->  | F34: =IFERROR(ST!H25*D34,"") ->  | G34: =IFERROR(IF(AND(E$8="ws",ST!L25>0),ST!L25,IF(ST!K25>0,ST!K25,IF(ST!J25>0,ST!J25,""))),"") -> 
A35: 24 | B35: =IFERROR(IF(ST!C26>0,ST!C26,""),"") ->  | C35: =IFERROR(IF(ST!D26>0,ST!D26,""),"") ->  | E35: =IFERROR(IF(ISNUMBER(G35),IF(AND(0.15<G$8,0.21>G$8),IF(ST!G26>0,0.15,G$8),IF(G$8>0.2,G$8-ST!G26,G$8)),""),"") ->  | F35: =IFERROR(ST!H26*D35,"") ->  | G35: =IFERROR(IF(AND(E$8="ws",ST!L26>0),ST!L26,IF(ST!K26>0,ST!K26,IF(ST!J26>0,ST!J26,""))),"") -> 
A36: 25 | B36: =IFERROR(IF(ST!C27>0,ST!C27,""),"") ->  | C36: =IFERROR(IF(ST!D27>0,ST!D27,""),"") ->  | E36: =IFERROR(IF(ISNUMBER(G36),IF(AND(0.15<G$8,0.21>G$8),IF(ST!G27>0,0.15,G$8),IF(G$8>0.2,G$8-ST!G27,G$8)),""),"") ->  | F36: =IFERROR(ST!H27*D36,"") ->  | G36: =IFERROR(IF(AND(E$8="ws",ST!L27>0),ST!L27,IF(ST!K27>0,ST!K27,IF(ST!J27>0,ST!J27,""))),"") -> 
A37: 26 | B37: =IFERROR(IF(ST!C28>0,ST!C28,""),"") ->  | C37: =IFERROR(IF(ST!D28>0,ST!D28,""),"") ->  | E37: =IFERROR(IF(ISNUMBER(G37),IF(AND(0.15<G$8,0.21>G$8),IF(ST!G28>0,0.15,G$8),IF(G$8>0.2,G$8-ST!G28,G$8)),""),"") ->  | F37: =IFERROR(ST!H28*D37,"") ->  | G37: =IFERROR(IF(AND(E$8="ws",ST!L28>0),ST!L28,IF(ST!K28>0,ST!K28,IF(ST!J28>0,ST!J28,""))),"") ->  | S37: ALUP ADQ és COOL | V37: ALUP | Y37: OMEGA | AB37: OMEGA | AE37: OMEGA
A38: 27 | B38: =IFERROR(IF(ST!C29>0,ST!C29,""),"") ->  | C38: =IFERROR(IF(ST!D29>0,ST!D29,""),"") ->  | E38: =IFERROR(IF(ISNUMBER(G38),IF(AND(0.15<G$8,0.21>G$8),IF(ST!G29>0,0.15,G$8),IF(G$8>0.2,G$8-ST!G29,G$8)),""),"") ->  | F38: =IFERROR(ST!H29*D38,"") ->  | G38: =IFERROR(IF(AND(E$8="ws",ST!L29>0),ST!L29,IF(ST!K29>0,ST!K29,IF(ST!J29>0,ST!J29,""))),"") ->  | S38: hűtveszárítók | V38: vonali szűrők | Y38: vonali szűrők | AB38: ciklon leválasztók | AE38: Olaj-víz szétválasztók
A39: Súly (kg): | C39: =SUM(F12:F38)/1000 -> 0 | D39: ="Nettó ár összesen "&IF($I$7=1,"HUF","EUR") -> Nettó ár összesen HUF | I39: =SUM(I12:I38) -> 0
A40: Szállítási mód: | C40: 1 | D40: ="ÁFA "&IF($I$7=1,"HUF","EUR") -> ÁFA HUF | I40: =I39*0.27 -> 0
A41: 30 | B41: =A41*I9 -> 10200 | C41: =IF($I$7=1,B41,A41) -> 10200 | D41: =IF($I$7=1,I39,I39*I$9) -> 0 | I41: =IF($I$7=2,I39,I39/I$9) -> 0
B42: =IF(C39<3,3,IF(C39<5,5,IF(C39<10,10,IF(C39<15,15,IF(C39<20,20,IF(C39<25,25,IF(C39<31,31,IF(C39<50,50,"túlsúly")))))))) -> 3 | C42: =IF($I$7=1,D42+H42,(D42+H42)/I9) -> 1566 | D42: =VLOOKUP(B42,Segéd!A$25:C$33,3,0) -> 1166 | G42: =IF(D41<50000,50000,IF(D41<100000,100000,IF(D41<300000,300000,IF(D41<500000,500000,"Limit")))) -> 50000 | H42: =IF(OR(G7=4,AND(I8=1,G7=1)),VLOOKUP(G$42,Segéd!A$35:B$38,2,0),0) -> 400
A43: ="Szállítási díj: "&IF($I$7=1,"HUF","EUR") -> Szállítási díj: HUF | C43: =IF(I8=2,0,(IF(C40=1,IF(D41>50000,0,C42),IF(I41>400,0,C41)))) -> 1566 | D43: ="Bruttó ár öszesen "&IF($I$7=1,"HUF","EUR") -> Bruttó ár öszesen HUF | I43: =I39+I40+C43 -> 1566
S48: Légtartályok 11, 16, 35 bar | V48: Condor és NE-MA | Y48: ABAC sűrítők és | AB48: Általános kompresszor
S49: 90- 10 000l-ig | T49: Légtartályok | V49: nyomáskapcsolók | Y49: alkatrészeik | AB49: alkatrészek
C59: +36-30/626 8687 | G59: +36-30/201-4931
C60: ertekesites@kapitarkft.hu | G60: info@techtomat.hu

Sheet ABAC Kompresszor
A1: r | B1: TARTALOM
B2: Árlista
B3: Megrendelő
B4: ABAC dugattyús kompresszorok
B5: ABAC CleanAir fogászati kompresszor
B6: AGRE ipari dugattyús kompresszorok
B7: ALUP SONETTO csavarkomp 2,2-15kW
B8: ALUP SCK csavarkomp 4-75kW
B9: ALUP LARGO, ALLEGRO csavarkompr
B10: ALUP Hűtveszárítók
B11: ALUP szűrők
B12: ALUP SpiralAir -Scroll kompresszor
B13: ALUP dugattyús kompresszorok
B14: OMEGA vonali szűrők
B15: OMEGA ciklonszűrők
B16: OMEGA olaj-víz szétválasztók
B17: ABAC sűrítők
B18: CONDOR nyomáskapcsolók
B19: Tartályok
B20: Egyéb alaktrészek
E32: ABAC BASE LINE SZÉRIA
D38: Cikkszám | E38: Model | F38: Leirat | G38: Henger/ Fokozat | H38: Tartály l | I38: Szívott l/min | J38: Teljes. HP | K38: Teljes. kW | L38: Ford sz. rpm | M38: Volt | N38: Max Bar | O38: dB(A) | P38: Méret (mm) | Q38: Tömeg kg | R38: Nettó ár
A39: 1 | D39: 1129100008 | E39: VENTO B15 baseline | F39: Direkthajt, olajkenés | G39: 1 / 1 | H39: 6 | I39: 160 | J39: 1.2 | K39: 1.5 | L39: 3400 | M39: 230/1/50 | N39: 8 | O39: 97 | P39: 330x360x350 | Q39: 4.5 | R39: =VLOOKUP(D39,Árlista!B:I,8,0) -> 32100
D40: 1129100009 | E40: POLE POSITION B15 baseline | F40: Direkthajt, olajkenés | G40: 1 / 1 | H40: 24 | I40: 160 | J40: 1.2 | K40: 1.5 | L40: 3400 | M40: 230/1/50 | N40: 8 | O40: 97 | P40: 250x565x420 | Q40: 12 | R40: =VLOOKUP(D40,Árlista!B:I,8,0) -> 36100
A41: 2 | D41: 1129100007 | E41: POLE POSITION B20 baseline | F41: Direkthajt, olajkenés | G41: 1 / 1 | H41: 24 | I41: 190 | J41: 1.5 | K41: 2 | L41: 3400 | M41: 230/1/50 | N41: 8 | O41: 97 | P41: 250x565x420 | Q41: 20 | R41: =VLOOKUP(D41,Árlista!B:I,8,0) -> 37500
A42: 3 | D42: 1129100006 | E42: MONTECARLO B20 baseline | F42: Direkthajt, olajkenés | G42: 1 / 1 | H42: 50 | I42: 190 | J42: 1.5 | K42: 2 | L42: 3400 | M42: 230/1/50 | N42: 8 | O42: 97 | P42: 250x565x420 | Q42: 20 | R42: =VLOOKUP(D42,Árlista!B:I,8,0) -> 47900
E45: Megkötésekkel rendelhető
E46: Raktáron lévő
E47: Rendelésre
D50: Cikkszám | E50: Model | F50: Leirat | G50: Henger/ Fokozat | H50: Tartály l | I50: Szívott l/min | J50: Teljes. HP | K50: Teljes. kW | L50: Ford sz. rpm | M50: Volt | N50: Max Bar | O50: dB(A) | P50: Méret (mm) | Q50: Tömeg kg | R50: Nettó ár
A51: 7 | D51: 1121450003 | E51: B26/50CM2 230/50CE BASELINE | F51: Ékszíj, mobil | G51: 1 / 1 | H51: 50 | I51: 210 | J51: 1.5 | K51: 2 | L51: 1075 | M51: 230/1/50 | N51: 10 | O51: 93 | P51: 870x370x780 | Q51: 45 | R51: =VLOOKUP(D51,Árlista!B:I,8,0) -> 131400
A52: 8 | D52: 1121450004 | E52: B26/90CM2 230/50CE BASELINE | F52: Ékszíj, mobil | G52: 1 / 1 | H52: -90 | I52: 210 | J52: 1.5 | K52: 2 | L52: 1075 | M52: 230/1/50 | N52: 10 | O52: 93 | P52: 1010x415x900 | Q52: 52 | R52: =VLOOKUP(D52,Árlista!B:I,8,0) -> 141000
A53: 9 | D53: 1121450005 | E53: B26B/90CM3 230/50CE BASELINE | F53: Ékszíj, mobil | G53: 1 / 1 | H53: -90 | I53: 240 | J53: 2.2 | K53: 3 | L53: 1300 | M53: 230/1/50 | N53: 10 | O53: 93 | P53: 1010x415x900 | Q53: 55 | R53: =VLOOKUP(D53,Árlista!B:I,8,0) -> 147300
A54: 10 | D54: 1121450006 | E54: B26B/150 CM3 V230 BASELINE | F54: Ékszíj, mobil | G54: 1 / 1 | H54: 150 | I54: 240 | J54: 2.2 | K54: 3 | L54: 1300 | M54: 230/1/50 | N54: 10 | O54: 93 | P54: 1375x420x950 | Q54: 82 | R54: =VLOOKUP(D54,Árlista!B:I,8,0) -> 168300
A55: 11 | D55: 1121450007 | E55: B26B/200 FM3 BASELINE | F55: Ékszíj, telepített | G55: 1 / 1 | H55: 200 | I55: 240 | J55: 2.2 | K55: 3 | L55: 1300 | M55: 230/1/50 | N55: 10 | O55: 95 | P55: 1500x470x1110 | Q55: 88 | R55: =VLOOKUP(D55,Árlista!B:I,8,0) -> 172400
D66: Cikkszám | E66: Model | F66: Leirat | G66: Henger/ Fokozat | H66: Tartály l | I66: Szívott l/min | J66: Teljes. HP | K66: Teljes. kW | L66: Ford sz. rpm | M66: Volt | N66: Max Bar | O66: dB(A) | P66: Méret (mm) | Q66: Tömeg kg | R66: Nettó ár
D67: 1121010040 | E67: MULTIBOX COMPRESSOR | F67: Bordásszíj, olajment | G67: 1 / 1 | H67: 6 | I67: 160 | J67: 1.5 | K67: 1.1 | M67: 230/1/50 | N67: 8 | O67: 68 | P67: 396x296x322 | Q67: 12.7 | R67: =VLOOKUP(D67,Árlista!B:I,8,0) -> 99000
D68: 1121010041 | E68: MULTIBOX COMBY | F68: Bordásszíj, olajment | G68: 1 / 1 | H68: 6 | I68: 160 | J68: 1.5 | K68: 1.1 | M68: 230/1/50 | N68: 8 | O68: 68 | P68: 520x360x618 | Q68: 16.8 | R68: =VLOOKUP(D68,Árlista!B:I,8,0) -> 124000
D77: Cikkszám | E77: Model | F77: Leirat | G77: Henger/ Fokozat | H77: Tartály l | I77: Szívott l/min | J77: Teljes. HP | K77: Teljes. kW | L77: Ford sz. rpm | M77: Volt | N77: Max Bar | O77: dB(A) | P77: Méret (mm) | Q77: Tömeg kg | R77: Nettó ár
D78: 8973005553 | E78: MINI 20 AUTOM. | G78: 1 / 1 | H78: 1.5 | I78: 20 | K78: 0.13 | M78: 230/1/50 | N78: 8 | O78: 38 | P78: 220 x 470 x 340 | Q78: 18.5 | R78: =VLOOKUP(D78,Árlista!B:I,8,0) -> 105200
D79: 8973005554 | E79: JUNIOR 30 AUT. | G79: 1 / 1 | H79: 6 | I79: 30 | K79: 0.19 | M79: 230/1/50 | N79: 8 | O79: 40 | P79: 340x340x500 | Q79: 18.8 | R79: =VLOOKUP(D79,Árlista!B:I,8,0) -> 119500
D80: 8973005552 | E80: PRO 50 | G80: 1 / 1 | H80: 9 | I80: 50 | K80: 0.34 | M80: 230/1/50 | N80: 8 | O80: 43 | P80: 350 x 350 x 500 | Q80: 24.4 | R80: =VLOOKUP(D80,Árlista!B:I,8,0) -> 167600
E81: ABAC LINE SZÉRIA
D87: Cikkszám | E87: Model | F87: Leirat | G87: Henger/ Fokozat | H87: Tartály l | I87: Szívott l/min | J87: Teljes. HP | K87: Teljes. kW | L87: Ford sz. rpm | M87: Volt | N87: Max Bar | O87: dB(A) | P87: Méret (mm) | Q87: Tömeg kg | R87: Nettó ár
A88: 1 | D88: 1129100032 | E88: COMPY O15 új | F88: Bordásszíj, olajment | G88: 1 / 1 | H88: 0 | I88: 180 | J88: 1.5 | K88: 1.1 | L88: 3400 | M88: 230/1/50 | N88: 8 | O88: 97 | P88: 280x180x347 | Q88: 4.5 | R88: =VLOOKUP(D88,Árlista!B:I,8,0) -> 28600
A89: 2 | D89: 1129100029 | E89: START O15 új | F89: Bordásszíj, olajment | G89: 1 / 1 | H89: 6 | I89: 180 | J89: 1.5 | K89: 1.1 | L89: 3400 | M89: 230/1/50 | N89: 8 | O89: 97 | P89: 330x360x350 | Q89: 9.5 | R89: =VLOOKUP(D89,Árlista!B:I,8,0) -> 36800
A90: 3 | D90: 1129100049 | E90: POLE POSITION O15 új | F90: Bordásszíj, olajment | G90: 1 / 1 | H90: 24 | I90: 180 | J90: 1.5 | K90: 1.1 | L90: 3400 | M90: 230/1/50 | N90: 8 | O90: 97 | P90: 250x565x420 | Q90: 20 | R90: =VLOOKUP(D90,Árlista!B:I,8,0) -> 42500
D91: 1129740357 | E91: ABAC XPN O15 | F91: 10 m tömlődobba | G91: 1 / 1 | H91: 0 | I91: 160 | J91: 1.5 | K91: 1.1 | L91: 2450 | M91: 230/1/50 | N91: 8 | O91: 97 | P91: 278x378x442 | Q91: 8.5 | R91: =VLOOKUP(D91,Árlista!B:I,8,0) -> 64700
E94: Megkötésekkel rendelhető
E95: Raktáron lévő
E96: Rendelésre
D99: Cikkszám | E99: Model | F99: Leirat | G99: Henger/ Fokozat | H99: Tartály l | I99: Szívott l/min | J99: Teljes. HP | K99: Teljes. kW | L99: Ford sz. rpm | M99: Volt | N99: Max Bar | O99: dB(A) | P99: Méret (mm) | Q99: Tömeg kg | R99: Nettó ár
A100: 4 | D100: 1129100034 | E100: START L20 új | F100: Direkt | G100: 1 / 1 | H100: 6 | I100: 220 | J100: 2 | K100: 1.5 | L100: 2850 | M100: 230/1/50 | N100: 10 | O100: 94 | P100: 535x215x535 | Q100: 18.4 | R100: =VLOOKUP(D100,Árlista!B:I,8,0) -> 38900
A101: 5 | D101: 1129100021 | E101: POLE POSITION L20 új | F101: Direkt | G101: 1 / 1 | H101: 24 | I101: 220 | J101: 2 | K101: 1.5 | L101: 2850 | M101: 230/1/50 | N101: 10 | O101: 94 | P101: 570x255x590 | Q101: 24.6 | R101: =VLOOKUP(D101,Árlista!B:I,8,0) -> 42100
A102: 6 | D102: 1129100023 | E102: MONTECARLO L20 új | F102: Direkt | G102: 1 / 1 | H102: 50 | I102: 220 | J102: 2 | K102: 1.5 | L102: 2850 | M102: 230/1/50 | N102: 10 | O102: 94 | P102: 770x310x645 | Q102: 32.6 | R102: =VLOOKUP(D102,Árlista!B:I,8,0) -> 54200
D109: Cikkszám | E109: Model | F109: Leirat | G109: Henger/ Fokozat | H109: Tartály l | I109: Szívott l/min | J109: Teljes. HP | K109: Teljes. kW | L109: Ford sz. rpm | M109: Volt | N109: Max Bar | O109: dB(A) | P109: Méret (mm) | Q109: Tömeg kg | R109: Nettó ár
A110: 7 | D110: 4116024261 | E110: A29 27 CM2 | F110: Ékszíj | G110: 2 / 1 | H110: 27 | I110: 255 | J110: 2 | K110: 1.5 | L110: 1075 | M110: 230/1/50 | N110: 10 | O110: 93 | P110: 810x390x710 | Q110: 43 | R110: =VLOOKUP(D110,Árlista!B:I,8,0) -> 133400
A111: 8 | D111: 4116024262 | E111: A29 50 CM2 | F111: Ékszíj | G111: 2 / 1 | H111: 50 | I111: 255 | J111: 2 | K111: 1.5 | L111: 1075 | M111: 230/1/50 | N111: 10 | O111: 93 | P111: 870x370x780 | Q111: 49 | R111: =VLOOKUP(D111,Árlista!B:I,8,0) -> 139700
A112: 9 | D112: 4116024335 | E112: A29 90 CM2 | F112: Ékszíj | G112: 2 / 1 | H112: 90 | I112: 255 | J112: 2 | K112: 1.5 | L112: 1075 | M112: 230/1/50 | N112: 10 | O112: 93 | P112: 1010x415x900 | Q112: 56 | R112: =VLOOKUP(D112,Árlista!B:I,8,0) -> 150800
A113: 10 | D113: 4116024254 | E113: A29 150 CM2 | F113: Ékszíj | G113: 2 / 1 | H113: 150 | I113: 255 | J113: 2 | K113: 1.5 | L113: 1075 | M113: 230/1/50 | N113: 10 | O113: 93 | P113: 1375x420x950 | Q113: 87 | R113: =VLOOKUP(D113,Árlista!B:I,8,0) -> 166500
A114: 11 | D114: 4116024257 | E114: A29B 50 CM3 | F114: Ékszíj | G114: 2 / 1 | H114: 50 | I114: 320 | J114: 3 | K114: 2.2 | L114: 1300 | M114: 230/1/50 | N114: 10 | O114: 95 | P114: 940x410x800 | Q114: 58 | R114: =VLOOKUP(D114,Árlista!B:I,8,0) -> 150400
A115: 12 | D115: 4116024531 | E115: A29B 50 CT3 | F115: Ékszíj | G115: 2 / 1 | H115: 50 | I115: 320 | J115: 3 | K115: 2.2 | L115: 1300 | M115: 400/3/50 | N115: 10 | O115: 95 | P115: 940x410x800 | Q115: 58 | R115: =VLOOKUP(D115,Árlista!B:I,8,0) -> 150400
A116: 14 | D116: 4116024518 | E116: A29B 90 CT3 | F116: Ékszíj | G116: 2 / 1 | H116: 90 | I116: 320 | J116: 3 | K116: 2.2 | L116: 1300 | M116: 400/3/50 | N116: 10 | O116: 95 | P116: 1010x415x900 | Q116: 56 | R116: =VLOOKUP(D116,Árlista!B:I,8,0) -> 158800
D117: 4116024564 | E117: A29B 100CM3 | F117: Ékszíj | G117: 2 / 1 | H117: 100 | I117: 320 | J117: 3 | K117: 2.2 | L117: 1300 | M117: 230/1/50 | N117: 10 | O117: 95 | P117: 1010x415x900 | Q117: 56 | R117: =VLOOKUP(D117,Árlista!B:I,8,0) -> 162200
D118: 4116024565 | E118: A29B 100 CT3 | F118: Ékszíj | G118: 2 / 1 | H118: 100 | I118: 320 | J118: 3 | K118: 2.2 | L118: 1300 | M118: 400/3/50 | N118: 10 | O118: 95 | P118: 1010x415x900 | Q118: 56 | R118: =VLOOKUP(D118,Árlista!B:I,8,0) -> 162200
A119: 15 | D119: 4116024137 | E119: A29B 150 CM3 | F119: Ékszíj | G119: 2 / 1 | H119: 150 | I119: 320 | J119: 3 | K119: 2.2 | L119: 1300 | M119: 230/1/50 | N119: 10 | O119: 95 | P119: 1375x420x950 | Q119: 87 | R119: =VLOOKUP(D119,Árlista!B:I,8,0) -> 184900
A120: 16 | D120: 4116024138 | E120: A29B 150 CT3 | F120: Ékszíj | G120: 2 / 1 | H120: 150 | I120: 320 | J120: 3 | K120: 2.2 | L120: 1300 | M120: 400/3/50 | N120: 10 | O120: 95 | P120: 1375x420x950 | Q120: 87 | R120: =VLOOKUP(D120,Árlista!B:I,8,0) -> 184900
A121: 17 | D121: 4116024534 | E121: A29B 200 CM3 | F121: Ékszíj | G121: 2 / 1 | H121: 200 | I121: 320 | J121: 3 | K121: 2.2 | L121: 1300 | M121: 230/1/50 | N121: 10 | O121: 95 | P121: 1500x470x1110 | Q121: 91 | R121: =VLOOKUP(D121,Árlista!B:I,8,0) -> 199800
A122: 18 | D122: 4116024535 | E122: A29B 200 CT3 | F122: Ékszíj | G122: 2 / 1 | H122: 200 | I122: 320 | J122: 3 | K122: 2.2 | L122: 1300 | M122: 400/3/50 | N122: 10 | O122: 95 | P122: 1500x470x1110 | Q122: 91 | R122: =VLOOKUP(D122,Árlista!B:I,8,0) -> 199800
D130: Cikkszám | E130: Model | F130: Leirat | G130: Henger/ Fokozat | H130: Tartály l | I130: Szívott l/min | J130: Teljes. HP | K130: Teljes. kW | L130: Ford sz. rpm | M130: Volt | N130: Max Bar | O130: dB(A) | P130: Méret (mm) | Q130: Tömeg kg | R130: Nettó ár
D131: 4116024519 | E131: A39 90 CM3 | F131: Ékszíj | G131: 2 / 1 | H131: 90 | I131: 393 | J131: 3 | K131: 2.2 | L131: 1050 | M131: 230/1/50 | N131: 10 | O131: 93 | P131: 1180x460x930 | Q131: 72 | R131: =VLOOKUP(D131,Árlista!B:I,8,0) -> 188700
D132: 4116024520 | E132: A39 90 CT3 | F132: Ékszíj | G132: 2 / 1 | H132: 90 | I132: 393 | J132: 3 | K132: 2.2 | L132: 1050 | M132: 400/3/50 | N132: 10 | O132: 93 | P132: 1180x460x930 | Q132: 72 | R132: =VLOOKUP(D132,Árlista!B:I,8,0) -> 188700
A133: 19 | D133: 4116024149 | E133: A39 150 CM3 | F133: Ékszíj | G133: 2 / 1 | H133: 150 | I133: 393 | J133: 3 | K133: 2.2 | L133: 1050 | M133: 230/1/50 | N133: 10 | O133: 93 | P133: 1375x420x950 | Q133: 87 | R133: =VLOOKUP(D133,Árlista!B:I,8,0) -> 204300
D134: 4116024150 | E134: A39 150 CT3 | F134: Ékszíj | G134: 2 / 1 | H134: 150 | I134: 393 | J134: 3 | K134: 2.2 | L134: 1050 | M134: 400/3/50 | N134: 10 | O134: 93 | P134: 1375x420x950 | Q134: 87 | R134: =VLOOKUP(D134,Árlista!B:I,8,0) -> 204300
A135: 21 | D135: 4116024151 | E135: A39 200 CM3 | F135: Ékszíj | G135: 2 / 1 | H135: 200 | I135: 393 | J135: 3 | K135: 2.2 | L135: 1050 | M135: 230/1/50 | N135: 10 | O135: 93 | P135: 1500x470x1110 | Q135: 91 | R135: =VLOOKUP(D135,Árlista!B:I,8,0) -> 219400
A136: 22 | D136: 4116024152 | E136: A39 200 CT3 | F136: Ékszíj | G136: 2 / 1 | H136: 200 | I136: 393 | J136: 3 | K136: 2.2 | L136: 1050 | M136: 400/3/50 | N136: 10 | O136: 93 | P136: 1500x470x1110 | Q136: 91 | R136: =VLOOKUP(D136,Árlista!B:I,8,0) -> 219400
A137: 23 | D137: 4116024548 | E137: A39 270 CM3 | F137: Ékszíj | G137: 2 / 1 | H137: 270 | I137: 393 | J137: 3 | K137: 2.2 | L137: 1050 | M137: 230/1/50 | N137: 10 | O137: 93 | P137: 1530x595x1160 | Q137: 138 | R137: =VLOOKUP(D137,Árlista!B:I,8,0) -> 232700
A138: 24 | D138: 4116024549 | E138: A39 270 CT3 | F138: Ékszíj | G138: 2 / 1 | H138: 270 | I138: 393 | J138: 3 | K138: 2.2 | L138: 1050 | M138: 400/3/50 | N138: 10 | O138: 93 | P138: 1530x595x1160 | Q138: 138 | R138: =VLOOKUP(D138,Árlista!B:I,8,0) -> 232700
A139: 25
A140: 26
E141: ABAC PRO SZÉRIA
D147: Cikkszám | E147: Model | F147: Leirat | G147: Henger/ Fokozat | H147: Tartály l | I147: Szívott l/min | J147: Teljes. HP | K147: Teljes. kW | L147: Ford sz. rpm | M147: Volt | N147: Max Bar | O147: dB(A) | P147: Méret (mm) | Q147: Tömeg kg | R147: Nettó ár
D148: 1121020388 | E148: START O20P | F148: Direkt, olajmentes | G148: 1 / 1 | H148: 6 | I148: 230 | J148: 2 | K148: 1.5 | L148: 2850 | M148: 230/1/50 | N148: 8 | O148: 95 | P148: 535x215x535 | Q148: 15.88 | R148: =VLOOKUP(D148,Árlista!B:I,8,0) -> 49800
A149: 0 | D149: 1121210969 | E149: POLE POSITION O20P | F149: Direkt, olajmentes | G149: 1 / 1 | H149: 24 | I149: 230 | J149: 2 | K149: 1.5 | L149: 2850 | M149: 230/1/50 | N149: 8 | O149: 95 | P149: 570x250x590 | Q149: 24.5 | R149: =VLOOKUP(D149,Árlista!B:I,8,0) -> 55500
A150: 27 | D150: 1121360898 | E150: MONTECARLO O20P | F150: Direkt, olajmentes | G150: 1 / 1 | H150: 50 | I150: 230 | J150: 2 | K150: 1.5 | L150: 2850 | M150: 230/1/50 | N150: 8 | O150: 95 | P150: 770x310x645 | Q150: 30.5 | R150: =VLOOKUP(D150,Árlista!B:I,8,0) -> 68400
A151: 28
D169: Cikkszám | E169: Model | F169: Leirat | G169: Henger/ Fokozat | H169: Tartály l | I169: Szívott l/min | J169: Teljes. HP | K169: Teljes. kW | L169: Ford sz. rpm | M169: Volt | N169: Max Bar | O169: SPL dB(A) | P169: Méret (mm) | Q169: Tömeg kg | R169: Nettó ár
D170: 1129740290 | E170: START SILENT OS7P | F170: Direkt, olajmentes | G170: 2 / 1 | H170: 6 | I170: 140 | J170: 0.75 | K170: 0.56 | L170: 1420 | M170: 230/1/50 | N170: 8 | O170: 59 | P170: 363x279x521 | Q170: 17 | R170: =VLOOKUP(D170,Árlista!B:I,8,0) -> 54200
D171: 1129740325 | E171: START SILENT OS10P | F171: Direkt, olajmentes | G171: 2 / 1 | H171: 6 | I171: 165 | J171: 1 | K171: 0.75 | L171: 1420 | M171: 230/1/50 | N171: 8 | O171: 59 | P171: 570x250x590 | Q171: 17 | R171: =VLOOKUP(D171,Árlista!B:I,8,0) -> 59400
D172: 1129740291 | E172: START SILENT OS15P | F172: Direkt, olajmentes | G172: 2 / 1 | H172: 6 | I172: 195 | J172: 1.5 | K172: 1.1 | L172: 1420 | M172: 230/1/50 | N172: 8 | O172: 59 | P172: 770x310x645 | Q172: 19 | R172: =VLOOKUP(D172,Árlista!B:I,8,0) -> 57300
D173: 1129740292 | E173: START SILENT OS20P | F173: Direkt, olajmentes | G173: 2 / 1 | H173: 6 | I173: 230 | J173: 2 | K173: 1.5 | L173: 1420 | M173: 230/1/50 | N173: 8 | O173: 59 | P173: 770x310x645 | Q173: 19 | R173: =VLOOKUP(D173,Árlista!B:I,8,0) -> 65900
D174: 1129740293 | E174: SILVERSTONE OS7P | F174: Direkt, olajmentes | G174: 2 / 1 | H174: 10 | I174: 140 | J174: 0.75 | K174: 0.56 | L174: 1420 | M174: 230/1/50 | N174: 9 | O174: 59 | P174: 398x332x627 | Q174: 22 | R174: =VLOOKUP(D174,Árlista!B:I,8,0) -> 59700
D175: 1129740330 | E175: SILVERSTONE OS15P | F175: Direkt, olajmentes | G175: 2 / 1 | H175: 10 | I175: 195 | J175: 1.5 | K175: 1.1 | L175: 1420 | M175: 230/1/50 | N175: 9 | O175: 59 | P175: 398x332x627 | Q175: 24 | R175: =VLOOKUP(D175,Árlista!B:I,8,0) -> 65100
D176: 1129740295 | E176: SILVERSTONE OS20P | F176: Direkt, olajmentes | G176: 2 / 1 | H176: 10 | I176: 230 | J176: 2 | K176: 1.5 | L176: 1420 | M176: 230/1/50 | N176: 9 | O176: 59 | P176: 398x332x627 | Q176: 24 | R176: =VLOOKUP(D176,Árlista!B:I,8,0) -> 0
D177: 1129740335 | E177: HOCHENHEIM OS15P | F177: Direkt, olajmentes | G177: 2 / 1 | H177: 20 | I177: 195 | J177: 1.5 | K177: 1.1 | L177: 1420 | M177: 230/1/50 | N177: 9 | O177: 59 | P177: 479x385x793 | Q177: 33 | R177: =VLOOKUP(D177,Árlista!B:I,8,0) -> 0
D178: 1129740336 | E178: HOCHENHEIM OS20P | F178: Direkt, olajmentes | G178: 2 / 1 | H178: 20 | I178: 230 | J178: 2 | K178: 1.5 | L178: 1420 | M178: 230/1/50 | N178: 9 | O178: 59 | P178: 479x385x793 | Q178: 33 | R178: =VLOOKUP(D178,Árlista!B:I,8,0) -> 80500
D179: 1129740344 | E179: PORTABLE ROLLCAGE OS15P | F179: Direkt, olajmentes | G179: 2 / 1 | H179: 9 | I179: 195 | J179: 1.5 | K179: 1.1 | L179: 1420 | M179: 230/1/50 | N179: 9 | O179: 59 | P179: 497x480x477 | Q179: 34 | R179: =VLOOKUP(D179,Árlista!B:I,8,0) -> 0
D180: 1129740300 | E180: PORTABLE ROLLCAGE OS20P | F180: Direkt, olajmentes | G180: 2 / 1 | H180: 9 | I180: 230 | J180: 2 | K180: 1.5 | L180: 1420 | M180: 230/1/50 | N180: 9 | O180: 59 | P180: 497x480x477 | Q180: 34 | R180: =VLOOKUP(D180,Árlista!B:I,8,0) -> 94500
D181: 1129740296 | E181: POLE POSITION OS15P | F181: Direkt, olajmentes | G181: 2 / 1 | H181: 24 | I181: 195 | J181: 1.5 | K181: 1.1 | L181: 1420 | M181: 230/1/50 | N181: 9 | O181: 59 | P181: 616x300x574 | Q181: 24 | R181: =VLOOKUP(D181,Árlista!B:I,8,0) -> 59700
D182: 1129740297 | E182: POLE POSITION OS20P | F182: Direkt, olajmentes | G182: 2 / 1 | H182: 24 | I182: 230 | J182: 2 | K182: 1.5 | L182: 1420 | M182: 230/1/50 | N182: 9 | O182: 59 | P182: 616x300x574 | Q182: 24 | R182: =VLOOKUP(D182,Árlista!B:I,8,0) -> 68300
D183: 1129740298 | E183: MONTECARLO OS15P | F183: Direkt, olajmentes | G183: 2 / 1 | H183: 50 | I183: 195 | J183: 1.5 | K183: 1.1 | L183: 1420 | M183: 230/1/50 | N183: 9 | O183: 59 | P183: 806x385x609 | Q183: 32 | R183: =VLOOKUP(D183,Árlista!B:I,8,0) -> 67500
D184: 1129740299 | E184: MONTECARLO OS20P | F184: Direkt, olajmentes | G184: 2 / 1 | H184: 50 | I184: 230 | J184: 2 | K184: 1.5 | L184: 1420 | M184: 230/1/50 | N184: 9 | O184: 59 | P184: 806x385x609 | Q184: 32 | R184: =VLOOKUP(D184,Árlista!B:I,8,0) -> 76100
A189: 29
E190: Megkötésekkel rendelhető
E191: Raktáron lévő
E192: Rendelésre
D196: Cikkszám | E196: Model | F196: Leirat | G196: Henger/ Fokozat | H196: Tartály l | I196: Szívott l/min | J196: Teljes. HP | K196: Teljes. kW | L196: Ford sz. rpm | M196: Volt | N196: Max Bar | O196: dB(A) | P196: Méret (mm) | Q196: Tömeg kg | R196: Nettó ár
D197: 1129100042 | E197: POLE POSITION L25P | F197: Direkt | G197: 1 / 1 | H197: 24 | I197: 270 | J197: 2.5 | K197: 2 | L197: 2850 | M197: 230/1/50 | N197: 10 | O197: 96 | P197: 570x255x590 | Q197: 24.5 | R197: =VLOOKUP(D197,Árlista!B:I,8,0) -> 59800
D198: 1129100048 | E198: MONTECARLO L25P | F198: Direkt | G198: 1 / 1 | H198: 50 | I198: 270 | J198: 2.5 | K198: 2 | L198: 2850 | M198: 230/1/50 | N198: 10 | O198: 96 | P198: 770x310x645 | Q198: 31 | R198: =VLOOKUP(D198,Árlista!B:I,8,0) -> 76600
A199: 30 | D199: 1129100045 | E199: POLE POSITION L30P | F199: Direkt | G199: 1 / 1 | H199: 24 | I199: 310 | J199: 3 | K199: 2.2 | L199: 2850 | M199: 230/1/50 | N199: 10 | O199: 97 | P199: 570x255x590 | Q199: 33 | R199: =VLOOKUP(D199,Árlista!B:I,8,0) -> 76400
A200: 31 | D200: 1129100037 | E200: MONTECARLO L30P | F200: Direkt | G200: 1 / 1 | H200: 50 | I200: 310 | J200: 3 | K200: 2.2 | L200: 2850 | M200: 230/1/50 | N200: 10 | O200: 97 | P200: 770x310x645 | Q200: 36.5 | R200: =VLOOKUP(D200,Árlista!B:I,8,0) -> 87600 | S200: =IFERROR(MATCH($D200,Árlista!$B:$B,0),"") -> 617
A201: 32 | D201: 1121390600 | E201: ESTORIL L30P | F201: Direkt | G201: 1 / 1 | H201: 90 | I201: 310 | J201: 3 | K201: 2.2 | L201: 2850 | M201: 230/1/50 | N201: 10 | O201: 97 | P201: 1060x385x730 | Q201: 48 | R201: =VLOOKUP(D201,Árlista!B:I,8,0) -> 110300
A202: 33
A203: 34
D210: Cikkszám | E210: Model | F210: Leirat | G210: Henger/ Fokozat | H210: Tartály l | I210: Szívott l/min | J210: Teljes. HP | K210: Teljes. kW | L210: Ford sz. rpm | M210: Volt | N210: Max Bar | O210: dB(A) | P210: Méret (mm) | Q210: Tömeg kg | R210: Nettó ár
D211: 1121020309 | E211: START ROLLCAGE O20P | F211: Direkt, olajmentes | G211: 1 / 1 | H211: 9 | I211: 230 | J211: 1.5 | K211: 2 | L211: 2850 | M211: 230/1/50 | N211: 8 | O211: 95 | P211: 455x475x500 | Q211: 22 | R211: =VLOOKUP(D211,Árlista!B:I,8,0) -> 80700
D212: 1121090033 | E212: SILVERSTONE O20P | F212: Direkt, olajmentes | G212: 1 / 1 | H212: 10 | I212: 230 | J212: 1.5 | K212: 2 | L212: 2850 | M212: 230/1/50 | N212: 8 | O212: 95 | P212: 420x360x700 | Q212: 22 | R212: =VLOOKUP(D212,Árlista!B:I,8,0) -> 78400
A213: 38 | D213: 1129100051 | E213: START ROLLCAGE L25P | F213: Direkt | G213: 1 / 1 | H213: 9 | I213: 270 | J213: 2 | K213: 2.5 | L213: 2850 | M213: 230/1/50 | N213: 10 | O213: 96 | P213: 480x510x550 | Q213: 31 | R213: =VLOOKUP(D213,Árlista!B:I,8,0) -> 79000
D214: 1129100062 | E214: SILVERSTONE L25P | F214: Direkt | G214: 1 / 1 | H214: 10 | I214: 270 | J214: 2 | K214: 2.5 | L214: 2850 | M214: 230/1/50 | N214: 10 | O214: 96 | P214: 420x360x700 | Q214: 25 | R214: =VLOOKUP(D214,Árlista!B:I,8,0) -> 80800
D215: 1129100060 | E215: PORTABLE ROLLCAGE L30P | F215: Direkt | G215: 1 / 1 | H215: 9 | I215: 310 | J215: 2.2 | K215: 3 | L215: 2850 | M215: 230/1/50 | N215: 10 | O215: 97 | P215: 480x510x550 | Q215: 26 | R215: =VLOOKUP(D215,Árlista!B:I,8,0) -> 118000
A216: 39 | D216: 1129100063 | E216: HOCKENHEIM L30P | F216: Direkt | G216: 1 / 1 | H216: 20 | I216: 310 | J216: 2.2 | K216: 3 | L216: 2850 | M216: 230/1/50 | N216: 10 | O216: 97 | P216: 420x640x770 | Q216: 28 | R216: =VLOOKUP(D216,Árlista!B:I,8,0) -> 112100
A217: 40
A218: 41
D225: Cikkszám | E225: Model | F225: Leirat | G225: Henger/ Fokozat | H225: Tartály l | I225: Szívott l/min | J225: Teljes. HP | K225: Teljes. kW | L225: Ford sz. rpm | M225: Volt | N225: Max Bar | O225: dB(A) | P225: Méret (mm) | Q225: Tömeg kg | R225: Nettó ár
D226: 1121440197 | E226: V30/9+9 CM 3 | F226: Direkt, V2 | G226: 2 / 1 | H226: 9+9 | I226: 330 | J226: 3 | K226: 2.2 | L226: 1450 | M226: 230/1/50 | N226: 10 | O226: 93 | P226: 650x790x670 | Q226: 60 | R226: =VLOOKUP(D226,Árlista!B:I,8,0) -> 251500
D227: 1121090851 | E227: V30/20 PCM 3 | F227: Direkt, V2 | G227: 2 / 1 | H227: 20 | I227: 330 | J227: 3 | K227: 2.2 | L227: 1450 | M227: 230/1/50 | N227: 10 | O227: 93 | P227: 490x645x810 | Q227: 48 | R227: =VLOOKUP(D227,Árlista!B:I,8,0) -> 205200
A228: 42 | D228: 1121430329 | E228: V30/50 VERTICAL CM3 | F228: Direkt, V2 | G228: 2 / 1 | H228: 50 | I228: 330 | J228: 3 | K228: 2.2 | L228: 1450 | M228: 230/1/50 | N228: 10 | O228: 93 | P228: 820x410x800 | Q228: 54 | R228: =VLOOKUP(D228,Árlista!B:I,8,0) -> 220200
A229: 43 | D229: 1121360249 | E229: V30/50 CM 3 | F229: Direkt, V2 | G229: 2 / 1 | H229: 50 | I229: 330 | J229: 3 | K229: 2.2 | L229: 1450 | M229: 230/1/50 | N229: 10 | O229: 93 | P229: 520x520x960 | Q229: 50 | R229: =VLOOKUP(D229,Árlista!B:I,8,0) -> 184500
A230: 44 | D230: 1121370226 | E230: V30/90 CM 3 | F230: Direkt, V2 | G230: 2 / 1 | H230: 90 | I230: 330 | J230: 3 | K230: 2.2 | L230: 1450 | M230: 230/1/50 | N230: 10 | O230: 93 | P230: 1000x410x900 | Q230: 77 | R230: =VLOOKUP(D230,Árlista!B:I,8,0) -> 197800
A231: 45
A232: 46
D239: Cikkszám | E239: Model | F239: Leirat | G239: Henger/ Fokozat | H239: Tartály l | I239: Szívott l/min | J239: Teljes. HP | K239: Teljes. kW | L239: Ford sz. rpm | M239: Volt | N239: Max Bar | O239: dB(A) | P239: Méret (mm) | Q239: Tömeg kg | R239: Nettó ár
D240: 4116024264 | E240: PRO A29B 27 CM2 | F240: Ékszíj, 230V | G240: 2 / 1 | H240: 27 | I240: 255 | J240: 2 | K240: 1.5 | L240: 1075 | M240: 230/1/50 | N240: 10 | O240: 93 | P240: 870x370x780 | Q240: 49 | R240: =VLOOKUP(D240,Árlista!B:I,8,0) -> 150800
D241: 4116024265 | E241: PRO A29B 27 CT2 | F241: Ékszíj, 400V | G241: 2 / 1 | H241: 27 | I241: 255 | J241: 2 | K241: 1.5 | L241: 1075 | M241: 400/3/50 | N241: 10 | O241: 93 | P241: 870x370x780 | Q241: 49 | R241: =VLOOKUP(D241,Árlista!B:I,8,0) -> 150800
A242: 47 | D242: 4116024266 | E242: PRO A29B 50 CM2 | F242: Ékszíj, 230V | G242: 2 / 1 | H242: 50 | I242: 255 | J242: 2 | K242: 1.5 | L242: 1075 | M242: 230/1/50 | N242: 10 | O242: 93 | P242: 870x370x780 | Q242: 49 | R242: =VLOOKUP(D242,Árlista!B:I,8,0) -> 154300
A243: 48 | D243: 4116024267 | E243: PRO A29B 50 CT2 | F243: Ékszíj, 400V | G243: 2 / 1 | H243: 50 | I243: 255 | J243: 2 | K243: 1.5 | L243: 1075 | M243: 400/3/50 | N243: 10 | O243: 93 | P243: 870x370x780 | Q243: 49 | R243: =VLOOKUP(D243,Árlista!B:I,8,0) -> 154300
A244: 49 | D244: 4116024568 | E244: PRO A29B 100 CM2 | F244: Ékszíj, 230V | G244: 2 / 1 | H244: 100 | I244: 255 | J244: 2 | K244: 1.5 | L244: 1075 | M244: 230/1/50 | N244: 10 | O244: 93 | P244: 1010x415x900 | Q244: 56 | R244: =VLOOKUP(D244,Árlista!B:I,8,0) -> 172700
A245: 50 | D245: 4116024569 | E245: PRO A29B 100 CT2 | F245: Ékszíj, 400V | G245: 2 / 1 | H245: 100 | I245: 255 | J245: 2 | K245: 1.5 | L245: 1075 | M245: 400/3/50 | N245: 10 | O245: 93 | P245: 1010x415x900 | Q245: 56 | R245: =VLOOKUP(D245,Árlista!B:I,8,0) -> 172700
A246: 51 | D246: 4116024536 | E246: PRO A29B 150 CM2 | F246: Ékszíj, 230V | G246: 2 / 1 | H246: 150 | I246: 255 | J246: 2 | K246: 1.5 | L246: 1075 | M246: 230/1/50 | N246: 10 | O246: 93 | P246: 1375x420x950 | Q246: 87 | R246: =VLOOKUP(D246,Árlista!B:I,8,0) -> 184900
A247: 52 | D247: 4116024537 | E247: PRO A29B 150 CT2 | F247: Ékszíj, 400V | G247: 2 / 1 | H247: 150 | I247: 255 | J247: 2 | K247: 1.5 | L247: 1075 | M247: 400/3/50 | N247: 10 | O247: 93 | P247: 1375x420x950 | Q247: 87 | R247: =VLOOKUP(D247,Árlista!B:I,8,0) -> 184900
A248: 53
A249: 54
D256: Cikkszám | E256: Model | F256: Leirat | G256: Henger/ Fokozat | H256: Tartály l | I256: Szívott l/min | J256: Teljes. HP | K256: Teljes. kW | L256: Ford sz. rpm | M256: Volt | N256: Max Bar | O256: dB(A) | P256: Méret (mm) | Q256: Tömeg kg | R256: Nettó ár
D257: 4116024523 | E257: PRO A39B 90 CM3 | F257: Ékszíj, 230V | G257: 2 / 1 | H257: 90 | I257: 393 | J257: 3 | K257: 2.2 | L257: 1050 | M257: 230/1/50 | N257: 10 | O257: 93 | P257: 1180x460x930 | Q257: 72 | R257: =VLOOKUP(D257,Árlista!B:I,8,0) -> 190800
D258: 4116024524 | E258: PRO A39B 90 CT3 | F258: Ékszíj, 400V | G258: 2 / 1 | H258: 90 | I258: 393 | J258: 3 | K258: 2.2 | L258: 1050 | M258: 400/3/50 | N258: 10 | O258: 93 | P258: 1180x460x930 | Q258: 72 | R258: =VLOOKUP(D258,Árlista!B:I,8,0) -> 190800
A259: 55 | D259: 4116024278 | E259: PRO A39B 100 CM3 | F259: Ékszíj, 230V | G259: 2 / 1 | H259: 100 | I259: 393 | J259: 3 | K259: 2.2 | L259: 1050 | M259: 230/1/50 | N259: 10 | O259: 93 | P259: 1180x460x930 | Q259: 72 | R259: =VLOOKUP(D259,Árlista!B:I,8,0) -> 193400
A260: 56 | D260: 4116024279 | E260: PRO A39B 100 CT3 | F260: Ékszíj, 400V | G260: 2 / 1 | H260: 100 | I260: 393 | J260: 3 | K260: 2.2 | L260: 1050 | M260: 400/3/50 | N260: 10 | O260: 93 | P260: 1180x460x930 | Q260: 72 | R260: =VLOOKUP(D260,Árlista!B:I,8,0) -> 193400
D261: 4116024614 | E261: PRO A39B 90 CT4 | F261: Ékszíj, 400V | G261: 2 / 1 | H261: 90 | I261: 486 | J261: 4 | K261: 3 | L261: 1300 | M261: 400/3/50 | N261: 10 | O261: 93 | P261: 1180x460x930 | Q261: 80 | R261: =VLOOKUP(D261,Árlista!B:I,8,0) -> 196300
D262: 4116024280 | E262: PRO A39B 150 CM3 | F262: Ékszíj, 230V | G262: 2 / 1 | H262: 150 | I262: 393 | J262: 3 | K262: 2.2 | L262: 1050 | M262: 230/1/50 | N262: 10 | O262: 93 | P262: 1375x420x950 | Q262: 87 | R262: =VLOOKUP(D262,Árlista!B:I,8,0) -> 207300
D263: 4116024281 | E263: PRO A39B 150 CT3 | F263: Ékszíj, 400V | G263: 2 / 1 | H263: 150 | I263: 393 | J263: 3 | K263: 2.2 | L263: 1050 | M263: 400/3/50 | N263: 10 | O263: 93 | P263: 1375x420x950 | Q263: 87 | R263: =VLOOKUP(D263,Árlista!B:I,8,0) -> 207300
A264: 58 | D264: 4116024282 | E264: PRO A39B 200 CM3 | F264: Ékszíj, 230V | G264: 2 / 1 | H264: 200 | I264: 393 | J264: 3 | K264: 2.2 | L264: 1050 | M264: 230/1/50 | N264: 10 | O264: 93 | P264: 1500x470x1110 | Q264: 91 | R264: =VLOOKUP(D264,Árlista!B:I,8,0) -> 231600
A265: 59 | D265: 4116024283 | E265: PRO A39B 200 CT3 | F265: Ékszíj, 400V | G265: 2 / 1 | H265: 200 | I265: 393 | J265: 3 | K265: 2.2 | L265: 1050 | M265: 400/3/50 | N265: 10 | O265: 93 | P265: 1500x470x1110 | Q265: 91 | R265: =VLOOKUP(D265,Árlista!B:I,8,0) -> 231600
A266: 60 | D266: 4116024285 | E266: PRO A39B 270 CM3 | F266: Ékszíj, 230V | G266: 2 / 1 | H266: 270 | I266: 393 | J266: 3 | K266: 2.2 | L266: 1050 | M266: 230/1/50 | N266: 10 | O266: 93 | P266: 1530x595x1160 | Q266: 98 | R266: =VLOOKUP(D266,Árlista!B:I,8,0) -> 246200
A267: 61 | D267: 4116024286 | E267: PRO A39B 270 CT3 | F267: Ékszíj, 400V | G267: 2 / 1 | H267: 270 | I267: 393 | J267: 3 | K267: 2.2 | L267: 1050 | M267: 400/3/50 | N267: 10 | O267: 93 | P267: 1530x595x1160 | Q267: 98 | R267: =VLOOKUP(D267,Árlista!B:I,8,0) -> 246200
A268: 62 | D268: 4116024166 | E268: PRO A39B 200 CT4 | F268: Ékszíj, 400V | G268: 2 / 1 | H268: 200 | I268: 486 | J268: 4 | K268: 3 | L268: 1300 | M268: 400/3/50 | N268: 10 | O268: 96 | P268: 1500x470x1110 | Q268: 91 | R268: =VLOOKUP(D268,Árlista!B:I,8,0) -> 237000
A269: 63 | D269: 4116024287 | E269: PRO A39B 270 CT4 | F269: Ékszíj, 400V | G269: 2 / 1 | H269: 270 | I269: 486 | J269: 4 | K269: 3 | L269: 1300 | M269: 400/3/50 | N269: 10 | O269: 96 | P269: 1530x595x1160 | Q269: 98 | R269: =VLOOKUP(D269,Árlista!B:I,8,0) -> 254900
D278: Cikkszám | E278: Model | F278: Leirat | G278: Henger/ Fokozat | H278: Tartály l | I278: Szívott l/min | J278: Teljes. HP | K278: Teljes. kW | L278: Ford sz. rpm | M278: Volt | N278: Max Bar | O278: dB(A) | P278: Méret (mm) | Q278: Tömeg kg | R278: Nettó ár
D279: 4116000250 | E279: PRO A49B 100 CM3 | F279: Ékszíj, 230V, mobil | G279: 2 / 2 | H279: 100 | I279: 444 | J279: 3 | K279: 2.2 | L279: 1050 | M279: 230/1/50 | N279: 10 | O279: 91 | P279: 1006x480x927 | Q279: 70 | R279: =VLOOKUP(D279,Árlista!B:I,8,0) -> 212700
D280: 4116000251 | E280: PRO A49B 150 CM3 | F280: Ékszíj, 230V, mobil | G280: 2 / 2 | H280: 150 | I280: 444 | J280: 3 | K280: 2.2 | L280: 1050 | M280: 230/1/50 | N280: 10 | O280: 91 | P280: 1305x501x1006 | Q280: 84 | R280: =VLOOKUP(D280,Árlista!B:I,8,0) -> 228100
D281: 4116000252 | E281: PRO A49B 200 CM3 | F281: Ékszíj, 230V, mobil | G281: 2 / 2 | H281: 200 | I281: 444 | J281: 3 | K281: 2.2 | L281: 1050 | M281: 230/1/50 | N281: 10 | O281: 91 | P281: 1437x573x1058 | Q281: 109 | R281: =VLOOKUP(D281,Árlista!B:I,8,0) -> 254700
D282: 4116000253 | E282: PRO A49B 270 FM3 | F282: Ékszíj, 230V, mobil | G282: 2 / 2 | H282: 270 | I282: 444 | J282: 3 | K282: 2.2 | L282: 1050 | M282: 230/1/50 | N282: 10 | O282: 91 | P282: 1530x595x1160 | Q282: 118 | R282: =VLOOKUP(D282,Árlista!B:I,8,0) -> 257700
D283: 4116000249 | E283: PRO A49B 270 FT3 | F283: Ékszíj, 400V, telepít | G283: 2 / 2 | H283: 270 | I283: 444 | J283: 3 | K283: 2.2 | L283: 1050 | M283: 400/3/50 | N283: 10 | O283: 91 | P283: 1530x595x1160 | Q283: 118 | R283: =VLOOKUP(D283,Árlista!B:I,8,0) -> 257700
D284: 4116000232 | E284: PRO A49B 100 CT3 | F284: Ékszíj, 400V, mobil | G284: 2 / 2 | H284: 100 | I284: 444 | J284: 3 | K284: 2.2 | L284: 1050 | M284: 400/3/50 | N284: 10 | O284: 91 | P284: 1006x480x927 | Q284: 70 | R284: =VLOOKUP(D284,Árlista!B:I,8,0) -> 212700
D285: 4116000233 | E285: PRO A49B 150 CT3 | F285: Ékszíj, 400V, mobil | G285: 2 / 2 | H285: 150 | I285: 444 | J285: 3 | K285: 2.2 | L285: 1050 | M285: 400/3/50 | N285: 10 | O285: 91 | P285: 1305x501x1006 | Q285: 84 | R285: =VLOOKUP(D285,Árlista!B:I,8,0) -> 228100
D286: 4116000234 | E286: PRO A49B 200 CT3 | F286: Ékszíj, 400V, mobil | G286: 2 / 2 | H286: 200 | I286: 444 | J286: 3 | K286: 2.2 | L286: 1050 | M286: 400/3/50 | N286: 10 | O286: 91 | P286: 1437x573x1058 | Q286: 109 | R286: =VLOOKUP(D286,Árlista!B:I,8,0) -> 254700
D294: Cikkszám | E294: Model | F294: Leirat | G294: Henger/ Fokozat | H294: Tartály l | I294: Szívott l/min | J294: Teljes. HP | K294: Teljes. kW | L294: Ford sz. rpm | M294: Volt | N294: Max Bar | O294: dB(A) | P294: Méret (mm) | Q294: Tömeg kg | R294: Nettó ár
D295: 4116000235 | E295: PRO A49B 200 CT4 | F295: Ékszíj, 400V, mobil | G295: 2 / 2 | H295: 200 | I295: 553 | J295: 4 | K295: 3 | L295: 1300 | M295: 400/3/50 | N295: 10 | O295: 93 | P295: 1437x573x1058 | Q295: 105 | R295: =VLOOKUP(D295,Árlista!B:I,8,0) -> 259200
D296: 4116000237 | E296: PRO A49B 270 CT4 | F296: Ékszíj, 400V, mobil | G296: 2 / 2 | H296: 270 | I296: 553 | J296: 4 | K296: 3 | L296: 1300 | M296: 400/3/50 | N296: 10 | O296: 93 | P296: 1530x595x1160 | Q296: 120 | R296: =VLOOKUP(D296,Árlista!B:I,8,0) -> 298700
D297: 4116000236 | E297: PRO A49B 200 FT4 | F297: Ékszíj, 400V, telepít | G297: 2 / 2 | H297: 200 | I297: 553 | J297: 4 | K297: 3 | L297: 1300 | M297: 400/3/50 | N297: 10 | O297: 93 | P297: 1437x573x1058 | Q297: 105 | R297: =VLOOKUP(D297,Árlista!B:I,8,0) -> 260800
D298: 4116000238 | E298: PRO A49B 270 FT4 | F298: Ékszíj, 400V, telepít | G298: 2 / 2 | H298: 270 | I298: 533 | J298: 4 | K298: 3 | L298: 1300 | M298: 400/3/50 | N298: 10 | O298: 93 | P298: 1530x595x1160 | Q298: 120 | R298: =VLOOKUP(D298,Árlista!B:I,8,0) -> 284600
D299: 4116000239 | E299: PRO A49B 200 VT4 | F299: Ékszíj, 400V, álló tart | G299: 2 / 2 | H299: 200V | I299: 533 | J299: 4 | K299: 3 | L299: 1300 | M299: 400/3/50 | N299: 11 | O299: 93 | P299: 850x970x2050 | Q299: 130 | R299: =VLOOKUP(D299,Árlista!B:I,8,0) -> 360000
D305: Cikkszám | E305: Model | F305: Leirat | G305: Henger/ Fokozat | H305: Tartály l | I305: Szívott l/min | J305: Teljes. HP | K305: Teljes. kW | L305: Ford sz. rpm | M305: Volt | N305: Max Bar | O305: dB(A) | P305: Méret (mm) | Q305: Tömeg kg | R305: Nettó ár
D306: 4116000241 | E306: PRO A49B 200 CT5,5 | F306: Ékszíj, 400V, mobil | G306: 2 / 2 | H306: 200 | I306: 595 | J306: 5.5 | K306: 4 | L306: 1400 | M306: 400/3/50 | N306: 10 | O306: 95 | P306: 1530x595x1160 | Q306: 114 | R306: =VLOOKUP(D306,Árlista!B:I,8,0) -> 303700
D307: 4116000243 | E307: PRO A49B 270 CT5,5 | F307: Ékszíj, 400V, mobil | G307: 2 / 2 | H307: 270 | I307: 595 | J307: 5.5 | K307: 4 | L307: 1400 | M307: 400/3/50 | N307: 10 | O307: 95 | P307: 1500x470x1110 | Q307: 124 | R307: =VLOOKUP(D307,Árlista!B:I,8,0) -> 311000
D308: 4116000245 | E308: PRO A49B 500 CT5,5 | F308: Ékszíj, 400V, mobil | G308: 2 / 2 | H308: 500 | I308: 595 | J308: 5.5 | K308: 4 | L308: 1400 | M308: 400/3/50 | N308: 10 | O308: 95 | P308: 2030x670x1400 | Q308: 191 | R308: =VLOOKUP(D308,Árlista!B:I,8,0) -> 409400
D309: 4116000242 | E309: PRO A49B 200 FT5,5 | F309: Ékszíj, 400V, telepít | G309: 2 / 2 | H309: 200 | I309: 595 | J309: 5.5 | K309: 4 | L309: 1400 | M309: 400/3/50 | N309: 10 | O309: 95 | P309: 1530x595x1160 | Q309: 114 | R309: =VLOOKUP(D309,Árlista!B:I,8,0) -> 291200
D310: 4116000244 | E310: PRO A49B 270 FT5,5 | F310: Ékszíj, 400V, telepít | G310: 2 / 2 | H310: 270 | I310: 595 | J310: 5.5 | K310: 4 | L310: 1400 | M310: 400/3/50 | N310: 10 | O310: 95 | P310: 1500x470x1110 | Q310: 124 | R310: =VLOOKUP(D310,Árlista!B:I,8,0) -> 299300
D311: 4116000246 | E311: PRO A49B 500 FT5,5 | F311: Ékszíj, 400V, telepít | G311: 2 / 2 | H311: 500 | I311: 595 | J311: 5.5 | K311: 4 | L311: 1400 | M311: 400/3/50 | N311: 10 | O311: 95 | P311: 2030x670x1400 | Q311: 191 | R311: =VLOOKUP(D311,Árlista!B:I,8,0) -> 389300
D312: 4116000247 | E312: PRO A49B 200 VT5,5 | F312: Ékszíj, 400V, álló tart | G312: 2 / 2 | H312: 200V | I312: 595 | J312: 5.5 | K312: 4 | L312: 1400 | M312: 400/3/50 | N312: 11 | O312: 95 | P312: 850x970x2050 | Q312: 117 | R312: =VLOOKUP(D312,Árlista!B:I,8,0) -> 364500
D313: 4116000248 | E313: PRO A49B 270 VT5,5 | F313: Ékszíj, 400V, álló tart | G313: 2 / 2 | H313: 270V | I313: 595 | J313: 5.5 | K313: 4 | L313: 1400 | M313: 400/3/50 | N313: 11 | O313: 95 | P313: 850x970x2100 | Q313: 138 | R313: =VLOOKUP(D313,Árlista!B:I,8,0) -> 406800
D323: Cikkszám | E323: Model | F323: Leirat | G323: Henger/ Fokozat | H323: Tartály l | I323: Szívott l/min | J323: Teljes. HP | K323: Teljes. kW | L323: Ford sz. rpm | M323: Volt | N323: Max Bar | O323: dB(A) | P323: Méret (mm) | Q323: Tömeg kg | R323: Nettó ár
D324: 4116019571 | E324: PRO B4900 200 CT4 | F324: Ékszíj, mobil | G324: 2 / 2 | H324: 200 | I324: 514 | J324: 4 | K324: 3 | L324: 1400 | M324: 400/3/50 | N324: 11 | P324: 1500x450x960 | Q324: 140 | R324: =VLOOKUP(D324,Árlista!B:I,8,0) -> 264400
A325: 65 | D325: 4116019576 | E325: PRO B4900 200 FT4 | F325: Ékszíj, telepített | G325: 2 / 2 | H325: 200 | I325: 514 | J325: 4 | K325: 3 | L325: 1400 | M325: 400/3/50 | N325: 11 | P325: 1500x450x960 | Q325: 137 | R325: =VLOOKUP(D325,Árlista!B:I,8,0) -> 266000
A326: 66 | D326: 4116019626 | E326: PRO B4900 270 CT4 | F326: Ékszíj, mobil | G326: 2 / 2 | H326: 270 | I326: 514 | J326: 4 | K326: 3 | L326: 1400 | M326: 400/3/50 | N326: 11 | P326: 1530x600x1160 | Q326: 147 | R326: =VLOOKUP(D326,Árlista!B:I,8,0) -> 304700
A327: 67 | D327: 4116019632 | E327: PRO B4900 270 FT4 | F327: Ékszíj, telepített | G327: 2 / 2 | H327: 270 | I327: 514 | J327: 4 | K327: 3 | L327: 1400 | M327: 400/3/50 | N327: 11 | P327: 1530x600x1160 | Q327: 144 | R327: =VLOOKUP(D327,Árlista!B:I,8,0) -> 290300
A328: 68 | D328: 4116019556 | E328: B4900 90 CT4 15bar | F328: Ékszíj, mobil | G328: 2 / 2 | H328: 90 | I328: 370 | J328: 4 | K328: 3 | L328: 896 | M328: 400/3/50 | N328: 15 | P328: 1180x460x930 | Q328: 120 | R328: =VLOOKUP(D328,Árlista!B:I,8,0) -> 264500
D329: 4116019696 | E329: PRO B5900B 200 CT5,5 | F329: Ékszíj, mobil | G329: 2 / 2 | H329: 200 | I329: 653 | J329: 5.5 | K329: 4 | L329: 1400 | M329: 400/3/50 | N329: 11 | P329: 1580x580x1150 | Q329: 164 | R329: =VLOOKUP(D329,Árlista!B:I,8,0) -> 333000
A330: 69 | D330: 4116019700 | E330: PRO B5900B 200 FT5,5 | F330: Ékszíj, telepített | G330: 2 / 2 | H330: 200 | I330: 653 | J330: 5.5 | K330: 4 | L330: 1400 | M330: 400/3/50 | N330: 11 | P330: 1580x580x1150 | Q330: 161 | R330: =VLOOKUP(D330,Árlista!B:I,8,0) -> 330000
A331: 70 | D331: 4116019770 | E331: PRO B5900B 270 CT5,5 | F331: Ékszíj, mobil | G331: 2 / 2 | H331: 270 | I331: 653 | J331: 5.5 | K331: 4 | L331: 1400 | M331: 400/3/50 | N331: 11 | P331: 1575x680x1150 | Q331: 170 | R331: =VLOOKUP(D331,Árlista!B:I,8,0) -> 352500
A332: 72 | D332: 4116019781 | E332: PRO B5900B 270 FT5,5 | F332: Ékszíj, telepített | G332: 2 / 2 | H332: 270 | I332: 653 | J332: 5.5 | K332: 4 | L332: 1400 | M332: 400/3/50 | N332: 11 | P332: 1575x680x1150 | Q332: 167 | R332: =VLOOKUP(D332,Árlista!B:I,8,0) -> 328200
A333: 73 | D333: 4116019806 | E333: PRO B5900B 500 CT5,5 | F333: Ékszíj, mobil | G333: 2 / 2 | H333: 500 | I333: 653 | J333: 5.5 | K333: 4 | L333: 1400 | M333: 400/3/50 | N333: 11 | P333: 2030x670x1400 | Q333: 222 | R333: =VLOOKUP(D333,Árlista!B:I,8,0) -> 464000
A334: 74 | D334: 4116019812 | E334: PRO B5900B 500 FT5,5 | F334: Ékszíj, telepített | G334: 2 / 2 | H334: 500 | I334: 653 | J334: 5.5 | K334: 4 | L334: 1400 | M334: 400/3/50 | N334: 11 | P334: 2030x670x1400 | Q334: 219 | R334: =VLOOKUP(D334,Árlista!B:I,8,0) -> 441200
A335: 75 | D335: 4116020182 | E335: PRO B6000 270 CT7,5 | F335: Ékszíj, mobil | G335: 2 / 2 | H335: 270 | I335: 827 | J335: 7.5 | K335: 5.5 | L335: 1400 | M335: 400/3/50 | N335: 11 | P335: 1520x600x1250 | Q335: 170 | R335: =VLOOKUP(D335,Árlista!B:I,8,0) -> 418400
A336: 76 | D336: 4116020190 | E336: PRO B6000 270 FT7,5 | F336: Ékszíj, telepített | G336: 2 / 2 | H336: 270 | I336: 827 | J336: 7.5 | K336: 5.5 | L336: 1400 | M336: 400/3/50 | N336: 11 | P336: 1520x600x1250 | Q336: 177 | R336: =VLOOKUP(D336,Árlista!B:I,8,0) -> 402400
A337: 77 | D337: 4116020226 | E337: PRO B6000 500 CT7,5 | F337: Ékszíj, mobil | G337: 2 / 2 | H337: 500 | I337: 827 | J337: 7.5 | K337: 5.5 | L337: 1400 | M337: 400/3/50 | N337: 11 | P337: 2030x670x1400 | Q337: 263 | R337: =VLOOKUP(D337,Árlista!B:I,8,0) -> 540900
A338: 78 | D338: 4116020243 | E338: PRO B6000 500 FT7,5 | F338: Ékszíj, telepített | G338: 2 / 2 | H338: 500 | I338: 827 | J338: 7.5 | K338: 5.5 | L338: 1400 | M338: 400/3/50 | N338: 11 | P338: 2030x670x1400 | Q338: 260 | R338: =VLOOKUP(D338,Árlista!B:I,8,0) -> 494200
A339: 79 | D339: 4116020782 | E339: PRO B7000 270 CT10 | F339: Ékszíj, mobil | G339: 2 / 2 | H339: 270 | I339: 1210 | J339: 10 | K339: 7.5 | L339: 1300 | M339: 400/3/50 | N339: 11 | P339: 1520x600x1250 | Q339: 199 | R339: =VLOOKUP(D339,Árlista!B:I,8,0) -> 517900
A340: 80 | D340: 4116020790 | E340: PRO B7000 270 FT10 | F340: Ékszíj, telepített | G340: 2 / 2 | H340: 270 | I340: 1210 | J340: 10 | K340: 7.5 | L340: 1300 | M340: 400/3/50 | N340: 11 | P340: 1520x600x1250 | Q340: 196 | R340: =VLOOKUP(D340,Árlista!B:I,8,0) -> 515100
A341: 81 | D341: 4116020835 | E341: PRO B7000 500 CT10 | F341: Ékszíj, mobil | G341: 2 / 2 | H341: 500 | I341: 1210 | J341: 10 | K341: 7.5 | L341: 1300 | M341: 400/3/50 | N341: 11 | P341: 2030x670x1400 | Q341: 282 | R341: =VLOOKUP(D341,Árlista!B:I,8,0) -> 601900
A342: 82 | D342: 4116020855 | E342: PRO B7000 500 FT10 | F342: Ékszíj, telepített | G342: 2 / 2 | H342: 500 | I342: 1210 | J342: 10 | K342: 7.5 | L342: 1300 | M342: 400/3/50 | N342: 11 | P342: 2030x670x1400 | Q342: 279 | R342: =VLOOKUP(D342,Árlista!B:I,8,0) -> 580500
... 128 more rows

Sheet ABAC CleanAir
B1: TARTALOM
B2: Árlista
B3: Megrendelő
B4: ABAC dugattyús kompresszorok
B5: ABAC CleanAir fogászati kompresszor
B6: AGRE ipari dugattyús kompresszorok
B7: ALUP SONETTO csavarkomp 2,2-15kW
B8: ALUP SCK csavarkomp 4-75kW
B9: ALUP LARGO, ALLEGRO csavarkompr
B10: ALUP Hűtveszárítók
B11: ALUP szűrők
B12: ALUP SpiralAir -Scroll kompresszor
B13: ALUP dugattyús kompresszorok
B14: OMEGA vonali szűrők
B15: OMEGA ciklonszűrők
B16: OMEGA olaj-víz szétválasztók
B17: ABAC sűrítők
B18: CONDOR nyomáskapcsolók
B19: Tartályok
B20: Egyéb alaktrészek
P31: 4116092255 | Q31: CLR 15/25 | R31: =VLOOKUP(P31,Árlista!B:I,3,0) -> 204 000,-Ft
P32: 4116092256 | Q32: CLR 15/25 T | R32: =VLOOKUP(P32,Árlista!B:I,3,0) -> 411 400,-Ft
P33: 4116092259 | Q33: CLR 15/50 | R33: =VLOOKUP(P33,Árlista!B:I,3,0) -> 217 600,-Ft
P34: 4116092260 | Q34: CLR 15/50 T | R34: =VLOOKUP(P34,Árlista!B:I,3,0) -> 431 800,-Ft
P35: 4116092257 | Q35: CLR 20/25 | R35: =VLOOKUP(P35,Árlista!B:I,3,0) -> 241 400,-Ft
P36: 4116092258 | Q36: CLR 20/25 T | R36: =VLOOKUP(P36,Árlista!B:I,3,0) -> 448 800,-Ft
P37: 4116092261 | Q37: CLR 20/50 | R37: =VLOOKUP(P37,Árlista!B:I,3,0) -> 251 600,-Ft
P38: 4116092262 | Q38: CLR 20/50 T | R38: =VLOOKUP(P38,Árlista!B:I,3,0) -> 472 600,-Ft
P39: 4116092289 | Q39: CLR 25/50 | R39: =VLOOKUP(P39,Árlista!B:I,3,0) -> 489 600,-Ft
P40: 4116092290 | Q40: CLR 25/50 T | R40: =VLOOKUP(P40,Árlista!B:I,3,0) -> 595 000,-Ft
P41: 4116092267 | Q41: CLR 15/30 S | R41: =VLOOKUP(P41,Árlista!B:I,3,0) -> 435 200,-Ft
P42: 4116092268 | Q42: CLR 15/30 S T | R42: =VLOOKUP(P42,Árlista!B:I,3,0) -> 612 000,-Ft
P43: 4116092269 | Q43: CLR 20/30 S | R43: =VLOOKUP(P43,Árlista!B:I,3,0) -> 472 600,-Ft
P44: 4116092270 | Q44: CLR 20/30 S T | R44: =VLOOKUP(P44,Árlista!B:I,3,0) -> 646 000,-Ft
E45: T -membrán szűrő és szárító -40°C harmatpont | I45: S -zajcsillapító burkolat
D71: Cikkszám | E71: Model | F71: Leirat | G71: Henger/ Fokozat | H71: Tartály l | I71: FAD. l/min | J71: Teljes. HP | K71: Teljes. kW | L71: Ford sz. rpm | M71: Volt | N71: Max Bar | O71: dB(A) | P71: Méret (mm) | Q71: Tömeg kg | R71: Nettó ár
D72: 8115465687 | E72: CNR 75 | F72: Direkt hajtás LZT10 | G72: 2 / 1 | I72: 660 | J72: 7.5 | K72: 5.5 | M72: 400/3/50 | N72: 10 | O72: 71 | P72: 1442x808x871 | Q72: 244 | R72: =VLOOKUP(D72,Árlista!B:P,3,0) -> 9 370,-€
D73: 8115465695 | E73: CNR 75-270 | F73: Direkt hajtás LZT10 | G73: 2 / 1 | H73: 270 | I73: 660 | J73: 7.5 | K73: 5.5 | M73: 400/3/50 | N73: 10 | O73: 71 | P73: 1752x808x1315 | Q73: 319 | R73: =VLOOKUP(D73,Árlista!B:P,3,0) -> 12 150,-€
D74: 8115465703 | E74: CNR 75-500 | F74: Direkt hajtás LZT10 | G74: 2 / 1 | H74: 500 | I74: 660 | J74: 7.5 | K74: 5.5 | M74: 400/3/50 | N74: 10 | O74: 71 | P74: 1984x808x1457 | Q74: 364 | R74: =VLOOKUP(D74,Árlista!B:P,3,0) -> 12 770,-€
D75: 8115475439 | E75: CNR 100 | F75: Direkt hajtás LZT10 | G75: 2 / 1 | I75: 930 | J75: 10 | K75: 7.5 | M75: 400/3/50 | N75: 10 | O75: 74 | P75: 1442x808x871 | Q75: 256 | R75: =VLOOKUP(D75,Árlista!B:P,3,0) -> 10 710,-€
D76: 8115475462 | E76: CNR 100-270 | F76: Direkt hajtás LZT10 | G76: 2 / 1 | H76: 270 | I76: 930 | J76: 10 | K76: 7.5 | M76: 400/3/50 | N76: 10 | O76: 74 | P76: 1752x808x1315 | Q76: 331 | R76: =VLOOKUP(D76,Árlista!B:P,3,0) -> 14 320,-€
D77: 8115475496 | E77: CNR 100-500 | F77: Direkt hajtás LZT10 | G77: 2 / 1 | H77: 500 | I77: 930 | J77: 10 | K77: 7.5 | M77: 400/3/50 | N77: 10 | O77: 74 | P77: 1984x808x1457 | Q77: 371 | R77: =VLOOKUP(D77,Árlista!B:P,3,0) -> 14 940,-€

Sheet ALUP szűrő
A1: TARTALOM
A2: Árlista
A3: Megrendelő
A4: ABAC dugattyús kompresszorok
A5: ABAC CleanAir fogászati kompresszor
A6: AGRE ipari dugattyús kompresszorok
A7: ALUP SONETTO csavarkomp 2,2-15kW
A8: ALUP SCK csavarkomp 4-75kW
A9: ALUP LARGO, ALLEGRO csavarkompr
A10: ALUP Hűtveszárítók
A11: ALUP szűrők
A12: ALUP SpiralAir -Scroll kompresszor
A13: ALUP dugattyús kompresszorok
A14: OMEGA vonali szűrők
A15: OMEGA ciklonszűrők
A16: OMEGA olaj-víz szétválasztók
A17: ABAC sűrítők
A18: CONDOR nyomáskapcsolók
A19: Tartályok
A20: Egyéb alaktrészek
C21: VONALI SZŰRŐK | D21: S -előszűrő szilárd szennyeződésekhez G -előszűrő szilárd és olajaeroszol szennyeződésekhez | W21: D -utószűrő szilárd szennyeződésekhez C -utószűrő szilárd és olajaeroszol szennyeződésekhez | AP21: P -durva szűrő szilárd szennyeződésekhez V -aktívszén szűrő olajköd szűréséhez
C22: Méret | D22: A0 | G22: A1 | J22: A2 | M22: A3 | P22: A4 | S22: A5 | V22: A6 | Y22: A7 | AB22: A8 | AE22: A9 | AH22: A10 | AK22: A11 | AN22: A12 | AQ22: A13 | AT22: A14 | AW22: A15 | AZ22: A16 | BC22: A18 | BF22: A19 | BI22: A21
C23: Típus Névl. teljesítm. [m3/h] | D23: S-D-G-C-P-V 45 | J23: S-D-G-C-P-V 90 | P23: S-D-G-C-P-V 125 | V23: S-D-G-C-P-V 180 | AB23: S-D-G-C-P-V 290 | AH23: S-D-G-C-P-V 505 | AN23: S-D-G-C-P-V 685 | AT23: S-D-G-C-P-V 935 | AZ23: S-D-G-C-P-V 1295 | BF23: S-D-G-C-P-V 1890
C24: Levegőcsatlakozás | D24: 3/8" | J24: 1/2" | V24: 3/4" / 1" | AB24: 1" | AH24: 1 1/2" | AZ24: 2" / 2 1/2" | BF24: 3"
C25: Méret [a x b x c] | D25: 90 x 21 x 228 | J25: 90 x 21 x 228 | P25: 90 x 21 x 228 | V25: 110 x 27,5 x 303 | AB25: 110 x 27,5 x 343 | AH25: 140 x 34 x 449 | AN25: 140 x 34 x 532 | AT25: 140 x 34 x 532 | AZ25: 179 x 50 x 618 | BF25: 210 x 57 x 720
C26: Tömeg [kg] | D26: 1 | J26: 1.1 | P26: 1.3 | V26: 1.9 | AB26: 2.1 | AH26: 4.2 | AN26: 4.5 | AT26: 4.6 | AZ26: 6.9 | BF26: 11
C27: Méret szereléshez [d] | D27: 75 | J27: 75 | P27: 75 | V27: 75 | AB27: 75 | AH27: 100 | AN27: 100 | AT27: 100 | AZ27: 150 | BF27: 200 | BP27: 1
D28: 8102851360 | E28: 8102851626 | F28: 8102851238 | G28: 8102851493 | H28: 8102851105 | I28: 8102851758 | J28: 8102851378 | K28: 8102851634 | L28: 8102851246 | M28: 8102851501 | N28: 8102851113 | O28: 8102851766 | P28: 8102851386 | Q28: 8102851642 | R28: 8102851253 | S28: 8102851519 | T28: 8102851121 | U28: 8102851774 | V28: 8102851402 | W28: 8102851667 | X28: 8102851279 | Y28: 8102851535 | Z28: 8102851147 | AA28: 8102851790 | AB28: 8102851410 | AC28: 8102851675 | AD28: 8102851287 | AE28: 8102851543 | AF28: 8102851154 | AG28: 8102851808 | AH28: 8102851428 | AI28: 8102851683 | AJ28: 8102851295 | AK28: 8102851550 | AL28: 8102851162 | AM28: 8102851816 | AN28: 8102851436 | AO28: 8102851691 | AP28: 8102851303 | AQ28: 8102851568 | AR28: 8102851170 | AS28: 8102851824 | AT28: 8102851444 | AU28: 8102851709 | AV28: 8102851311 | AW28: 8102851576 | AX28: 8102851188 | AY28: 8102851832 | AZ28: 8102851469 | BA28: 8102851725 | BB28: 8102851337 | BC28: 8102851592 | BD28: 8102851204 | BE28: 8102851857 | BF28: 8102851477 | BG28: 8102851733 | BH28: 8102851345 | BI28: 8102851600 | BJ28: 8102851212 | BK28: 8102851865
D29: 8102843425 | E29: 8102843680 | F29: 8102843292 | G29: 8102843557 | H29: 8102843169 | I29: 8102843813 | J29: 8102843433 | K29: 8102843698 | L29: 8102843300 | M29: 8102843565 | N29: 8102843177 | O29: 8102843821 | P29: 8102843441 | Q29: 8102843706 | R29: 8102843318 | S29: 8102843573 | T29: 8102843185 | U29: 8102843839 | V29: 8102843458 | W29: 8102843714 | X29: 8102843326 | Y29: 8102843581 | Z29: 8102843193 | AA29: 8102843847 | AB29: 8102843474 | AC29: 8102843730 | AD29: 8102843342 | AE29: 8102843607 | AF29: 8102843219 | AG29: 8102843862 | AH29: 8102843482 | AI29: 8102843748 | AJ29: 8102843359 | AK29: 8102843615 | AL29: 8102843227 | AM29: 8102843870 | AN29: 8102843490 | AO29: 8102843755 | AP29: 8102843367 | AQ29: 8102843623 | AR29: 8102843235 | AS29: 8102843888 | AT29: 8102843508 | AU29: 8102843763 | AV29: 8102843375 | AW29: 8102843631 | AX29: 8102843243 | AY29: 8102843896 | AZ29: 8102843516 | BA29: 8102843771 | BB29: 8102843383 | BC29: 8102843649 | BD29: 8102843250 | BE29: 8102843904 | BF29: 8102843532 | BG29: 8102843797 | BH29: 8102843409 | BI29: 8102843664 | BJ29: 8102843276 | BK29: 8102843920
C30: Nettó ár € | D30: 70 | J30: 80 | P30: 90 | V30: 110 | AB30: 130 | AH30: 160 | AN30: 190 | AT30: 270 | AZ30: 330 | BF30: 500
D31: 1624164000 | J31: 1 | X31: 1624164200 | AS31: 1624164100
C32: Kiegészítők: | D32: Műanyag indikátor: | X32: Műanyag nyomáskülönbség mérő: | AS32: Alumínium nyomáskülönbség mérő:
D33: G -C -P szűrők automata úszós leürítővel | R33: V -S -D szűrők manuális leürítővel szereltek
C34: CIKLONSZŰRŐK | D34: Ciklonszűrő vízcseppek illetve szilárd szennyeződések >10µm szűrésére. Közvtlen a kompresszor után javasolt. Működési hőmérséklet: 5-65 °C
C35: Méret | D35: A0 | G35: A1 | J35: A2 | M35: A3 | P35: A4 | S35: A5 | V35: A6 | Y35: A7 | AB35: A8 | AE35: A9 | AH35: A10 | AK35: A11 | AM35: A12 | AP35: A13 | AS35: A14 | AV35: A15 | AY35: A16 | BB35: A18 | BE35: A19 | BH35: A21
C36: Típus Névl. teljesítm. [m3/h] | D36: ASA1 120 | P36: ASA2 155 | V36: ASA3 235 | AB36: ASA4 365 | AH36: ASA5 770 | AP36: ASA6 1280 | BB36: ASA7 2460
C37: Levegőcsatlakozás | D37: 3/8" | P37: 1/2" | V37: 3/4" | AB37: 1" | AH37: 1 1/2" | AP37: 2" | BB37: 2 1/2"
D38: 8973020269 | P38: 8973020270 | V38: 8973020271 | AB38: 8973020272 | AH38: 8973020273 | AP38: 8973020274 | BB38: 8973020275
D39: DF 60 | P39: DF 120 | V39: DF 200 | AB39: DF 340 | AH39: DF 510 | AP39: MF 800 | BB39: DF 1500
C40: Méret [a x b x c] | D40: 187 x 88 x 20 | P40: 187 x 88 x 20 | V40: 257 x 88 x 20 | AB40: 263 x 125 x 32 | AH40: 461 x 125 x 32 | AP40: 684 x 163 x 42 | BB40: 684 x 163 x 42
C41: Tömeg [kg] | D41: 0.7 | P41: 0.7 | V41: 0.8 | AB41: 1.8 | AH41: 2.5 | AP41: 5.1 | BB41: 5.1
C42: Méret szereléshez [d] | D42: 60 | P42: 60 | V42: 80 | AB42: 100 | AH42: 140 | AP42: 520 | BB42: 520
C43: Nettó ár € | D43: 60 | P43: 60 | V43: 70 | AB43: 110 | AH43: 140 | AP43: 290 | BB43: 330

Sheet ALUP LARGO
A1: TARTALOM
A2: Árlista
A3: Megrendelő
A4: ABAC dugattyús kompresszorok
A5: ABAC CleanAir fogászati kompresszor
A6: AGRE ipari dugattyús kompresszorok
A7: ALUP SONETTO csavarkomp 2,2-15kW
A8: ALUP SCK csavarkomp 4-75kW
A9: ALUP LARGO, ALLEGRO csavarkompr
A10: ALUP Hűtveszárítók
A11: ALUP szűrők
A12: ALUP SpiralAir -Scroll kompresszor
A13: ALUP dugattyús kompresszorok | D13: Cikkszám | E13: Max. üzemi nyomás | F13: Térfogatáram (ISO 1217) 7.5 | G13: Térfogatáram (ISO 1217) 8 / 8.5 | H13: Térfogatáram (ISO 1217) 10 | I13: Térfogatáram (ISO 1217) 13 | J13: Névleges motortelj. | K13: A X B x C | L13: Alap gép | M13: Tömeg | N13: A X B x C | O13: Alap gép +HVSZ | P13: Tömeg | Q13: A X B x C | R13: Alap gép +HVSZ 500l-es tartályon | S13: Tömeg
A14: OMEGA vonali szűrők
A15: OMEGA ciklonszűrők
A16: OMEGA olaj-víz szétválasztók | D16: A 41520 | E16: bar | F16: m3/h | G16: m3/h | H16: m3/h | I16: m3/h | J16: kW | K16: mm | M16: kg | N16: mm | P16: kg | Q16: mm | S16: kg
A17: ABAC sűrítők | C17: I. C67 | D17: LARGO 15 | E17: 7.5, 8.5, 10, 13 | F17: 165 | G17: 155 | H17: 137 | I17: 119 | J17: 15 | K17: 1395 x 835x 1220 | L17: 7300 | M17: 345 | N17: 1545 x 835x 1220 | O17: 9200 | P17: 400 | Q17: 1940 x 835x 1835 | R17: 10600 | S17: 575
A18: CONDOR nyomáskapcsolók | D18: LARGO 19 | E18: 7.5, 8.5, 10, 13 | F18: 202 | G18: 192 | H18: 176 | I18: 140 | J18: 18.5 | L18: 7700 | M18: 370 | O18: 9600 | P18: 430 | R18: 11000 | S18: 605
A19: Tartályok | D19: LARGO 22 | E19: 7.5, 8.5, 10, 13 | F19: 234 | G19: 226 | H19: 198 | I19: 168 | J19: 22 | L19: 8100 | M19: 385 | O19: 10100 | P19: 445 | R19: 11600 | S19: 620
A20: Egyéb alaktrészek | D20: LARGO 25 | E20: 7.5, 8.5, 10, 13 | F20: 258 | G20: 244 | H20: 228 | I20: 200 | J20: 26 | L20: 8300 | M20: 400 | O20: 10300 | P20: 460 | R20: 11900 | S20: 635
C21: II. C80 | D21: LARGO 11 E | E21: 7.5, 8.5, 10, 13 | F21: 139 | G21: 116 | H21: 104 | I21: 81 | J21: 11 | K21: 1432 x 840 x 1278 | L21: 7960 | M21: 477 | N21: 1926 x 840 x 1278 | O21: 9790 | P21: 571 | Q21: 1926 x 840 x 1900 | R21: 10620 | S21: 798
D22: LARGO 15 E | E22: 7.5, 8.5, 10, 13 | F22: 171 | G22: 157 | H22: 135 | I22: 115 | J22: 15 | L22: 8430 | M22: 485 | O22: 10270 | P22: 529 | R22: 11100 | S22: 806
D23: LARGO 19 E | E23: 7.5, 8.5, 10, 13 | F23: 206 | G23: 195 | H23: 170 | I23: 147 | J23: 18.5 | L23: 8940 | M23: 515 | O23: 10940 | P23: 631 | R23: 11770 | S23: 858
D24: LARGO 22 E | E24: 7.5, 8.5, 10, 13 | F24: 243 | G24: 224 | H24: 202 | I24: 176 | J24: 22 | L24: 9480 | M24: 531 | O24: 11480 | P24: 647 | R24: 12310 | S24: 874
D25: LARGO 23 | E25: 7.5, 8.5, 10, 13 | F25: 237 | G25: 223 | H25: 203 | I25: 175 | J25: 22 | K25: 1550 x 830 x 1555 | L25: 8800 | M25: 465 | N25: 1555x 830x 1555 | O25: 11000 | P25: 525
D26: LARGO 26 | E26: 7.5, 8.5, 10, 14 | F26: 277 | G26: 263 | H26: 241 | I26: 209 | J26: 26 | L26: 9000 | M26: 480 | O26: 11200 | P26: 535
D27: LARGO 30 | E27: 7.5, 8.5, 10, 13 | F27: 335 | G27: 306 | H27: 281 | I27: 245 | J27: 30 | L27: 12100 | M27: 580 | N27: 2030x 830x 1555 | O27: 14200 | P27: 630
D28: LARGO 36 | E28: 7.5, 8.5, 10, 13 | F28: 374 | G28: 346 | H28: 310 | I28: 281 | J28: 37 | L28: 12800 | M28: 643 | O28: 14900 | P28: 652
D30: Cikkszám | E30: Max. üzemi nyomás | F30: Térfogatáram (ISO 1217) 7.5 | G30: Térfogatáram (ISO 1217) 8 / 8.5 | H30: Térfogatáram (ISO 1217) 10 | I30: Térfogatáram (ISO 1217) 13 | J30: Névleges motortelj. | K30: A X B x C | L30: Alap gép | M30: Tömeg | N30: A X B x C | O30: Alap gép +HVSZ | P30: Tömeg
D31: A 41520 | E31: bar | F31: m3/h | G31: m3/h | H31: m3/h | I31: m3/h | J31: kW | K31: mm | M31: kg | N31: mm | P31: kg
C32: III. | D32: LARGO 31 | E32: 7.5, 8.5, 10, 13 | F32: 353 | G32: 320 | H32: 288 | I32: NO | J32: 30 | K32: 1420 x 1060 x 1630 | L32: 14000 | M32: 790 | N32: 1420 x 1060 x 1630 | O32: 16400 | P32: 790
D33: LARGO 37 | E33: 7.5, 8.5, 10, 13 | F33: 418 | G33: 398 | H33: 364 | I33: 295 | J33: 37.5 | L33: 14800 | M33: 870 | O33: 17300 | P33: 870
D34: LARGO 45 | E34: 7.5, 8.5, 10, 13 | F34: 497 | G34: 472 | H34: 432 | I34: 369 | J34: 45 | L34: 15700 | M34: 875 | O34: 18200 | P34: 875
C35: IV. | D35: LARGO 55 | E35: 7.5, 8.5, 10, 13 | F35: 608 | G35: 576 | H35: 540 | I35: 447 | J35: 55 | K35: 1660 x 1060 x 1630 | L35: 18000 | M35: 1130 | N35: 1660 x 1060 x 1630 | O35: 21200 | P35: 1130
D36: LARGO 75 | E36: 7.5, 8.5, 10, 13 | F36: 781 | G36: 763 | H36: 680 | I36: 582 | J36: 75 | L36: 19100 | M36: 1317 | O36: 22400 | P36: 1317
C37: V. | D37: LARGO 76 | E37: 7.5, 8.5, 10, 13 | F37: 882 | G37: 834 | H37: 742 | I37: 629 | J37: 75 | K37: 1860 x 1060 x 1630 | L37: 22900 | M37: 1570
D38: LARGO 90 | E38: 7.5, 8.5, 10, 13 | F38: 1026 | G38: 1001 | H38: 882 | I38: 721 | J38: 90 | L38: 24200 | M38: 1600
C39: VI. | D39: LARGO 110 | E39: 7.5, 8.5, 10, 13 | F39: 1238 | G39: 1181 | H39: 1073 | I39: 907 | J39: 110 | K39: 2333x 1060x 1630 | L39: 26900 | M39: 1800
D49: Cikkszám | E49: Max. üzemi nyomás | F49: Térfogatáram (ISO 1217) 10 | H49: Térfogatáram (ISO 1217) 13 | J49: Névleges motortelj. | K49: A X B x C | L49: Alap gép | M49: Tömeg | N49: A X B x C | O49: Alap gép +HVSZ | P49: Tömeg | Q49: A X B x C | R49: Alap gép 500l-es tartályon | S49: Tömeg | T49: Alap gép +HVSZ 500l-es tartályon | U49: Tömeg
D50: A 41520 | E50: bar | F50: m3/h | H50: m3/h | J50: kW | K50: mm | M50: kg | N50: mm | P50: kg | Q50: mm | S50: kg | U50: kg
C51: N. | D51: ALLEGRO 8 | E51: 5,5-12,5 | F51: 16,6 - 64,8 | H51: 16,6 - 51,0 | J51: 8 | K51: 1165 x 655 x 1045 | L51: 6000 | M51: 257 | N51: 1585 x 655 x 1045 | O51: 7200 | P51: 292 | Q51: 1935 x 655 x 1680 | R51: 7000 | S51: 417 | T51: 7900 | U51: 452
D52: ALLEGRO 11 | E52: 5,5-12,5 | F52: 16,6 - 90,0 | H52: 16,6 - 73,8 | J52: 11 | L52: 6400 | M52: 271 | O52: 7600 | P52: 321 | R52: 7400 | S52: 431 | T52: 8300 | U52: 481
D53: ALLEGRO 14 | E53: 5,5-12,5 | F53: 16,6 - 113,8 | H53: 16,6 - 85,3 | J53: 15 | L53: 6800 | M53: 290 | O53: 8000 | P53: 340 | R53: 7800 | S53: 481 | T53: 8700 | U53: 500
C54: I. C67 | D54: ALLEGRO 15 | E54: 5,5-13 | F54: 47 - 152 | H54: 47 - 131 | J54: 15 | K54: 1395 x 835x 1220 | L54: 3800 | M54: 325 | N54: 1545 x 835x 1220 | O54: 4100 | P54: 380 | Q54: 1940 x 835x 1835 | R54: --- | T54: 11700 | U54: 555
D55: ALLEGRO 19 | E55: 5,5-13 | F55: 47 - 185 | H55: 47 - 149 | J55: 18.5 | L55: 4700 | M55: 340 | O55: 4800 | P55: 400 | R55: --- | T55: 12300 | U55: 575
D56: ALLEGRO 22 | E56: 5,5-13 | F56: 47 - 207 | H56: 47 - 185 | J56: 22 | L56: 5000 | M56: 345 | O56: 3800 | P56: 410 | T56: 12900 | U56: 585
D57: ALLEGRO 25 | E57: 5,5-13 | F57: 47 - 229 | H57: 47 - 200 | J57: 26 | L57: 4800 | M57: 365 | O57: 4000 | P57: 425 | R57: --- | T57: 12900 | U57: 600
C58: II. | D58: ALLEGRO 11 E | E58: 5-10, 5-13 | F58: 44 - 138 | H58: 42 - 115 | J58: 22 | K58: 1432 x 840 x 1278 | L58: 10340 | M58: 477 | N58: 1926 x 840 x 1278 | O58: 12240 | P58: 571 | Q58: 1926 x 840 x 1900 | R58: --- | T58: 12730 | U58: 798
D59: ALLEGRO 15 E | E59: 5-10, 5-13 | F59: 57 - 178 | H59: 43 - 158 | J59: 26 | L59: 10960 | M59: 485 | O59: 12870 | P59: 579 | R59: --- | T59: 13330 | U59: 806
D60: ALLEGRO 19 E | E60: 5-10, 5-13 | F60: 57 - 219 | H60: 46 - 193 | J60: 30 | L60: 11620 | M60: 515 | O60: 13700 | P60: 631 | R60: --- | T60: 14140 | U60: 858
D61: ALLEGRO 22 E | E61: 5-10, 5-13 | F61: 57 - 263 | H61: 51 - 229 | J61: 37 | L61: 12320 | M61: 531 | O61: 14390 | P61: 647 | R61: --- | T61: 14820 | U61: 874
D62: ALLEGRO 23 | E62: 5-13 | F62: 47 - 255 | H62: 47 - 255 | J62: 22 | K62: 1555 x 830 x 1555 | L62: 11200 | M62: 456 | N62: 1555x 830x 1555 | O62: 13400 | P62: 525
D63: ALLEGRO 26 | E63: 5-13 | F63: 46 - 290 | H63: 46 - 290 | J63: 26 | L63: 11600 | M63: 466 | O63: 13800 | P63: 535
D64: ALLEGRO 30S | E64: 5-13 | F64: 61 - 348 | H64: 61 - 348 | J64: 30 | L64: 16000 | M64: 515 | N64: 2030x 830x 1555 | O64: 18000 | P64: 630
D65: ALLEGRO 36 | E65: 5-13 | F65: 61 - 380 | H65: 61 - 380 | J65: 37 | L65: 16900 | M65: 517 | O65: 19000 | P65: 652
D67: Cikkszám | E67: Max. üzemi nyomás | F67: Térfogatáram (ISO 1217) 10 | H67: Térfogatáram (ISO 1217) 13 | J67: Névleges motortelj. | K67: A X B x C | L67: Alap gép | M67: Tömeg | N67: A X B x C | O67: Alap gép +HVSZ | P67: Tömeg
D68: A 41520 | E68: bar | F68: m3/h | H68: m3/h | J68: kW | K68: mm | M68: kg | N68: mm | P68: kg
C69: III. | D69: ALLEGRO 31 | E69: 4-10, 4-13 | F69: 101 - 281 | H69: 87 - 229 | J69: 30 | K69: 1420 x 1060 x 1630 | L69: 19000 | M69: 840 | N69: 2071 x 1060 x 1630 | O69: 21500 | P69: 1025
D70: ALLEGRO 37 | E70: 4-10, 4-13 | F70: 124 - 347 | H70: 107 - 277 | J70: 37.5 | L70: 20200 | M70: 920 | O70: 22700 | P70: 1105
D71: ALLEGRO 45 | E71: 4-10, 4-13 | F71: --- | H71: --- | J71: 45 | M71: 925 | O71: --- | P71: 1110
C72: V. | D72: ALLEGRO 76 | E72: 4-10, 4-13 | F72: 265 - 715 | H72: 221 - 610 | J72: 75 | K72: 1660 x 1060 x 1630 | L72: 30000 | M72: 1640
D73: ALLEGRO 90 | E73: 4-10, 4-13 | F73: 292 - 821 | H73: 254 - 700 | J73: 90 | L73: 31800 | M73: 1670
C74: VI. | D74: ALLEGRO 110 | E74: 4-10, 4-13 | F74: 265 - 715 | H74: 221 - 610 | J74: 75 | K74: 2333x 1060x 1630 | L74: 34000 | M74: 1900
D84: Cikkszám | E84: Max. üzemi nyomás | F84: Térfogatáram (ISO 1217) 10 | H84: Térfogatáram (ISO 1217) 13 | J84: Névleges motortelj. | K84: A X B x C | L84: Alap gép | M84: Tömeg | N84: A X B x C | O84: Alap gép +HVSZ | P84: Tömeg
D85: A 8158 | E85: bar | F85: m3/h | H85: m3/h | J85: kW | K85: mm | M85: kg | N85: mm | P85: kg
C86: VII. EVO | D86: EVOLUTO 45 | E86: 4 - 13 | F86: 108 - 486 | H86: 108 - 407 | J86: 45 | K86: 1923 x 1060 x 1630 | L86: 23060 | M86: 860 | N86: 2773 x 1060 x 1630 | O86: 25790 | P86: 1060
D87: EVOLUTO 55 | E87: 4 - 13 | F87: 104 - 587 | H87: 104 - 493 | J87: 55 | L87: 26440 | M87: 880 | O87: 29950 | P87: 1150
D88: EVOLUTO 75 | E88: 4 - 13 | F88: 101 - 698 | H88: 101 - 590 | J88: 75 | L88: 28020 | M88: 900 | O88: 31600 | P88: 1170
D103: Cikkszám | E103: Max. üzemi nyomás | F103: Térfogatáram (ISO 1217) 10 | G103: Térfogatáram (ISO 1217) 10 | H103: Térfogatáram (ISO 1217) 13 | I103: Térfogatáram (ISO 1217) 10 | J103: Névleges motortelj. | K103: A X B x C | L103: Alap gép | M103: Tömeg | N103: Kompr beépített hőcserélő- vel
D104: A 41520 | E104: bar | F104: 7 m3/h | G104: 8 m3/h | H104: 10 m3/h | I104: 13 m3/h | J104: kW | K104: mm | M104: kg
C105: VIII. | D105: LARGO 132 | E105: 7, 8, 10, 13 | F105: 1516 | G105: 1426 | H105: 1260 | I105: 1087 | J105: 132 | L105: 36100 | N105: 40400
D106: LARGO 160 | E106: 7, 8, 10, 13 | F106: 1699 | G106: 1649 | H106: 1508 | I106: 1314 | J106: 160 | L106: 40200 | N106: 45000
D107: LARGO 200 | E107: 7, 8, 10, 13 | F107: 2056 | G107: 1987 | H107: 1818 | I107: 1616 | J107: 200 | L107: 49400 | N107: 55300
D108: LARGO 250 | E108: 7, 8, 10, 13 | F108: 2491 | G108: 2358 | H108: 2250 | I108: 1966 | J108: 250 | L108: 54500 | N108: 61000
C109: IX. | D109: LARGO 201 | E109: 7, 8, 10 | F109: 2351 | G109: 2203 | H109: 1998 | J109: 200 | L109: 53700 | N109: 60200
D110: LARGO 251 | E110: 7, 8, 10 | F110: 2765 | G110: 2538 | H110: 2362 | J110: 250 | L110: 58400 | N110: 65400
D111: LARGO 315 | E111: 7, 8, 10 | F111: 3139 | G111: 3136 | H111: 2894 | J111: 315 | L111: 63900 | N111: 71600
D114: Cikkszám | E114: Max. üzemi nyomás | F114: Térfogatáram (ISO 1217) 10 | G114: Térfogatáram (ISO 1217) 10 | H114: Térfogatáram (ISO 1217) 13 | I114: Térfogatáram (ISO 1217) 10 | J114: Névleges motortelj. | K114: A X B x C | L114: Alap gép | M114: Tömeg | N114: Kompr beépített hőcserélő- vel
D115: A 41520 | E115: bar | F115: 4-7 m3/h | G115: 4-8 m3/h | H115: 4-10 m3/h | I115: 4-13 m3/h | J115: kW | K115: mm | M115: kg
C116: VIII. | D116: ALLEGRO 132 | E116: 7, 8, 10, 13 | F116: 454-1516 | G116: 428-1426 | H116: 378-1260 | I116: 328-1087 | J116: 132 | L116: 49900 | N116: 55800
D117: ALLEGRO 160 | E117: 7, 8, 10, 13 | F117: 511-1699 | G117: 493-1649 | H117: 454-1508 | I117: 396-1314 | J117: 160 | L117: 57700 | N117: 64600
D118: ALLEGRO 200 | E118: 7, 8, 10, 13 | F118: 616-2056 | G118: 598-1987 | H118: 547-1818 | I118: 486-1616 | J118: 200 | L118: 69200 | N118: 77600
D119: ALLEGRO 250 | E119: 7, 8, 10, 13 | F119: 749-2491 | G119: 709-2358 | H119: 677-2250 | I119: 601-1966 | J119: 250 | L119: 78000 | N119: 87300
C120: IX. | D120: ALLEGRO 201 | E120: 7, 8, 10 | F120: 706-2351 | G120: 659-2203 | H120: 601-1998 | J120: 200 | L120: 75700 | N120: 84800
D121: ALLEGRO 251 | E121: 7, 8, 10 | F121: 828-2765 | G121: 763-2538 | H121: 709-2362 | J121: 250 | L121: 83800 | N121: 93900
D122: ALLEGRO 315 | E122: 7, 8, 10 | F122: 943-339 | G122: 940-3136 | H122: 868-2894 | J122: 315 | L122: 98200 | N122: 110000
C133: Opciók (LARGO- ALLEGRO) | F133: N. | H133: I. | J133: II. | L133: III. | N133: IV. | P133: V. | R133: VI.
C134: MK 5.1 színes graf vezérlő (LARGO) | J134: 286 | L134: 150 | N134: 150 | P134: STAND | R134: STAND
C135: Előszűrő panel | L135: 110 | N135: 110 | P135: 110 | R135: 110
C136: Beép. Automata ciklonszűrő | F136: 209 | H136: 495 | J136: 528 | L136: 704 | N136: NO | P136: 308 | R136: 308
C137: Beépített hőcserélő | F137: NO | H137: 1628 | J137: 2090 | L137: 2970 | N137: 3410 | P137: 3960 | R137: 3960
C138: Icons GSM kompresszor felügyelet | F138: 150,-€ + 4.000,-Ft/hó | H138: 150,-€ + 4.000,-Ft/hó | J138: 150,-€ + 4.000,-Ft/hó | L138: 150,-€ + 4.000,-Ft/hó | N138: 150,-€ + 4.000,-Ft/hó | P138: 150,-€ + 4.000,-Ft/hó | R138: 150,-€ + 4.000,-Ft/hó
C142: Opciók (LARGO- ALLEGRO) | F142: EVO | H142: VIII. | J142: IX. | L142: X. | N142: XI. | P142: XII. | R142: XIII.
C143: MK 5.1 színes graf vezérlő (LARGO)
C144: Előszűrő panel
C145: Beép. Automata ciklonszűrő
C146: Beépített hőcserélő
C147: Élelmiszer ipari olaj

Sheet ALUP SCK
A1: TARTALOM
A2: Árlista
A3: Megrendelő
A4: ABAC dugattyús kompresszorok
A5: ABAC CleanAir fogászati kompresszor
A6: AGRE ipari dugattyús kompresszorok
A7: ALUP SONETTO csavarkomp 2,2-15kW | C7: SCK 6-15 sorozatú ékszíjhatásos csavarkompresszorok
A8: ALUP SCK csavarkomp 4-75kW | C8: Nagyteljesítményű ékszíjmeghajtásos csavarkompresszor
A9: ALUP LARGO, ALLEGRO csavarkompr | C9: Széleskörű alkalmazhatóság
A10: ALUP Hűtveszárítók | C10: A sorozat irányvonalat ad a minőség, üzembiztonság, élettartam
A11: ALUP szűrők | C11: és kezelési kényelem tekintetében
A12: ALUP SpiralAir -Scroll kompresszor | C12: A sorozat mk5 vezérléssel készül, mely opcionálisan színes grafikus
A13: ALUP dugattyús kompresszorok | C13: kivitelben is elérhető
A14: OMEGA vonali szűrők | C14: Opcionálisan: | F14: beépített hűtveszárító
A15: OMEGA ciklonszűrők | F15: cikloszűrő, kiegészítő szűrőpanel
A16: OMEGA olaj-víz szétválasztók | F16: élelmiszer ipari olaj
A17: ABAC sűrítők | F17: ICIONS mobilfeügyelet
A18: CONDOR nyomáskapcsolók
A19: Tartályok | C19: SCK 20-40 sorozatú ékszíjhatásos csavarkompresszorok
A20: Egyéb alaktrészek | C20: Egy lépcsővel nagyobb sűrítőjű (C67), nagyteljesítményű
C21: ékszíjmeghajtásos csavarkompresszor
C26: SCK 41-100 sorozatú ékszíjhatásos csavarkompresszorok
C27: Nagy levegőigény esetén kedvező árú megoldást jelentenek.
C28: Nagyméretű sűrítővel készülnek folyamatos ipari felhasználás céljából.
F32: Térfogatáram (ISO 1217) m3/min | I32: Névleges motortelj. (kW) | K32: Nettó ár alap gép | M32: Nettó ár beépített hűtveszárítóval | O32: Nettó ár tartály 270l | Q32: Nettó ár tartály 500l | S32: Nettó ár tartály 270l + hűtveszárító | U32: Nettó ár tartály 500l + hűtveszárító
F33: 8 bar | G33: 10 bar | H33: 13 bar | M33: PLUSZ | O33: 270l | Q33: 500l | S33: 270l PLUSZ | U33: 500l PLUSZ
C34: I. | D34: SCK 6 | F34: 0.6 | G34: 0.5 | H34: - | I34: 4 | K34: 4100 | M34: 5020 | O34: 4760 | Q34: 4840 | S34: 5690 | U34: 5760
D35: SCK 8 | F35: 0.83 | G35: 0.69 | H35: 0.5 | I35: 5.5 | K35: 4360 | M35: 5290 | O35: 5030 | Q35: 5100 | S35: 5950 | U35: 6020
D36: SCK 10 | F36: 1.17 | G36: 1 | H36: 0.8 | I36: 7.5 | K36: 4630 | M36: 5550 | O36: 5290 | Q36: 5360 | S36: 6210 | U36: 6290
D37: SCK 15 | F37: 1.7 | G37: 1.43 | H37: 1.2 | I37: 11 | K37: 4900 | M37: 5830 | Q37: 5640 | S37: 6490 | U37: 6560
C38: II. | D38: Új C67 sűrítős gépek
D39: SCK 20 | F39: 2.55 | G39: 2.31 | H39: 1.872 | I39: 15 | K39: 6400 | M39: 8300 | U39: 9500
D40: SCK 25 | F40: 3.126 | G40: 2.7 | H40: 2.31 | I40: 18.5 | K40: 6800 | M40: 8700 | U40: 9900
D41: SCK 30 | F41: 3.72 | G41: 3.216 | H41: 2.784 | I41: 22 | K41: 7200 | M41: 9300 | U41: 10500
D42: SCK 40 | F42: 4.332 | G42: 3.906 | H42: 3.432 | I42: 30 | K42: 7700 | M42: 9700
F44: Térfogatáram (ISO 1217) m3/min | I44: Névleges motortelj. (kW) | K44: Nettó ár alap gép
F45: 8 bar | G45: 10 bar | H45: 13 bar
C46: III. | D46: SCK 41 | F46: 4.9 | G46: 4.316666667 | H46: 3.466666667 | I46: 30 | K46: 10800
D47: SCK 50 | F47: 6.116666667 | G47: 5.533333333 | H47: 4.25 | I47: 37.5 | K47: 11500
D48: SCK 60 | F48: 7.783333333 | G48: 6.816666667 | H48: 5.716666667 | I48: 45 | K48: 12200
C49: IV. | D49: SCK 75 | F49: 8.7 | G49: 7.916666667 | H49: 7.083333333 | I49: 55 | K49: 16300
D50: SCK 100 | F50: 11.51666667 | G50: 10.08333333 | H50: 8.883333333 | I50: 75 | K50: 17300
D52: Opciók | M52: I. | O52: II. | Q52: III. | S52: IV. | U52: V.
D53: MK 5.1 színes graf vezérlő | M53: 190 | O53: 190 | Q53: Alap | S53: Alap
D54: Előszűrő panel | M54: 66 | O54: 190 | Q54: 840 | S54: 530
D55: Beép. Automata ciklonszűrő | M55: 275 | O55: 220
D56: Beép. Automata vonaliszűrő (szárítós gépekhez) | M56: 407 | O56: 300
D57: Icons GSM kompresszor felügyelet | M57: 150,-€ + 4.000,-Ft/hó
D58: Élelmiszer ipari olaj | M58: x | O58: x | Q58: x | S58: x | U58: x

Sheet ALUP SONETTO
A1: TARTALOM
A2: Árlista
A3: Megrendelő
A4: ABAC dugattyús kompresszorok
A5: ABAC CleanAir fogászati kompresszor
A6: AGRE ipari dugattyús kompresszorok
A7: ALUP SONETTO csavarkomp 2,2-15kW
A8: ALUP SCK csavarkomp 4-75kW
A9: ALUP LARGO, ALLEGRO csavarkompr
A10: ALUP Hűtveszárítók | C10: ÚJ SONETTO 8-20 sorozat a sűrített levegő ellátás leggazdaságosabb
A11: ALUP szűrők | C11: módja. Változatlan ár mellett jobb hatásfokkal, felhasználó barát, digitális
A12: ALUP SpiralAir -Scroll kompresszor | C12: vezérléssel.
A13: ALUP dugattyús kompresszorok | C13: Ékszíjmeghajtásos csavarkompresszor
A14: OMEGA vonali szűrők | C14: Kompakt felépítés, egyszerű és hatékony használat
A15: OMEGA ciklonszűrők | C15: Alacsony zajszint 65-68 dB (A)
A16: OMEGA olaj-víz szétválasztók | C16: Ipari használatra méretezett sűrítő
A17: ABAC sűrítők | C17: Opcionálisan: | F17: ADQ hűtveszárítóval
A18: CONDOR nyomáskapcsolók | C18: INFOLOGIC2 elektronikával vezérelt
A19: Tartályok | C19: Nyomás álltás, hőfok kijelzés, szerviz figyeleztetés
A20: Egyéb alaktrészek | C20: hiba kijelzés stb.
K23: Tartályra szerelve 270 /500l
F24: Térfogatáram (ISO 1217) m3/min | I24: Névleges motortelj. (kW) | K24: Nettó ár alap gép | M24: Nettó ár tartályra szerelve 270l | O24: Nettó ár tartály 270l + hűtveszárító | Q24: Nettó ár tartályra szerelve 500l | S24: Nettó ár tartály 500l + hűtveszárító | U24: Kompakt gép opciós elő- és utószűrővel
F25: 8 bar | G25: 10 bar | H25: 13 bar | M25: 270l | O25: 270l PLUSZ | Q25: 500l | S25: 500l PLUSZ | U25: 270/500l + F
D26: Sonetto 8 | F26: 0.846 | G26: 0.696 | H26: - | I26: 5.5 | K26: 3440 | M26: 3720 | O26: 4380 | Q26: 3790 | S26: 4450 | U26: + 220 €
D27: Sonetto 10 | F27: 1.14 | G27: 0.996 | H27: 0.78 | I27: 7.5 | K27: 3650 | M27: 3930 | O27: 4590 | Q27: 3990 | S27: 4660 | U27: + 220 €
D28: Sonetto 15 | F28: 1.62 | G28: 1.416 | H28: 1.152 | I28: 11 | K28: 3860 | M28: 4140 | O28: 4810 | Q28: 4210 | S28: 4880 | U28: + 250 €
D29: Sonetto 20 | F29: 1.86 | G29: 1.68 | H29: 1.332 | I29: 15 | K29: 4100 | M29: 4380 | O29: 5040 | Q29: 4420 | S29: 5110 | U29: + 250 €
H30: * Opciós idővezérelt leürítő a tartály aljára szerelve: 75,-€
C39: SCK MINI 3-7 sorozat a legkisebb
C40: Az SCK MINI sorozat kicsi, kompakt megbízható technológia a legmagasabb minőségi szabványokkal. Kiváló zajcsillapítás, könnyű használat, egyszerű felépítés.
C41: Opcionálisan: | F41: ADQ hűtveszárítóval
K44: Tartályra szerelve 200 /270l
G45: Térfogatáram (ISO 1217) m3/min | I45: Névleges motortelj. (kW) | K45: Nettó ár alap gép | M45: Nettó ár tartályra szerelve 200l | O45: Nettó ár tartály 200l + hűtveszárító | Q45: Nettó ár tartályra szerelve 270l | S45: Nettó ár tartály 270l + hűtveszárító
G46: 8 és 10 bar | M46: 200l | O46: 200l PLUSZ | Q46: 270l | S46: 270l PLUSZ
D47: SCK 3 | E47: 230V | F47: 400V | G47: 0.3 | H47: 0.24 | I47: 2.2 | K47: 2290 | M47: 2460 | O47: 2960 | Q47: 2530 | S47: 3030
D48: SCK 4 | F48: 400V | G48: 0.44 | H48: 0.32 | I48: 3 | K48: 2450 | M48: 2620 | O48: 3110 | Q48: 2690 | S48: 3190
D49: SCK 5 | F49: 400V | G49: 0.56 | H49: 0.47 | I49: 4 | K49: 2620 | M49: 2790 | O49: 3290 | Q49: 2860 | S49: 3310
D50: SCK 5X | E50: ΥΔ | F50: 400V | G50: 0.56 | H50: 0.47 | I50: 4 | K50: 2710 | M50: 2880 | O50: 3330 | Q50: 2960 | S50: 3400
D51: SCK 7 | E51: ΥΔ | F51: 400V | G51: 0.7 | H51: 0.6 | I51: 5.5 | K51: 2790 | M51: 2950 | O51: 3400 | Q51: 3030 | S51: 3480
D52: SCK 9* | E52: ΥΔ | F52: 400V | G52: 1.01 | H52: 0.92 | I52: 7.5 | K52: 3430 | M52: 3540 | O52: 4170 | Q52: 3690 | S52: 4340
E53: * SCK 9 készülék a Sonetto sűrítőjével szerelve | M53: * Opciós idővezérelt leürítő a tartály aljára szerelve: 75,-€

Sheet ALUP PRACTIC
A1: TARTALOM
A2: Árlista
A3: Megrendelő
A4: ABAC dugattyús kompresszorok
A5: ABAC CleanAir fogászati kompresszor
A6: AGRE ipari dugattyús kompresszorok
A7: ALUP SONETTO csavarkomp 2,2-15kW
A8: ALUP SCK csavarkomp 4-75kW
A9: ALUP LARGO, ALLEGRO csavarkompr
A10: ALUP Hűtveszárítók
A11: ALUP szűrők
A12: ALUP SpiralAir -Scroll kompresszor
A13: ALUP dugattyús kompresszorok
A14: OMEGA vonali szűrők
A15: OMEGA ciklonszűrők
A16: OMEGA olaj-víz szétválasztók
A17: ABAC sűrítők
A18: CONDOR nyomáskapcsolók
A19: Tartályok
A20: Egyéb alaktrészek
W38: Nettó ár €
U41: 4116002086 | V41: ENGINEAIR 4/100 PETROL | W41: =VLOOKUP(U41,Árlista!B:D,3,0) -> 1 210,-€
U42: 4116002087 | V42: ENGINEAIR 5/50 PETROL | W42: =VLOOKUP(U42,Árlista!B:D,3,0) -> 1 320,-€
U43: 4116002088 | V43: ENGINEAIR 5/100 PETROL | W43: =VLOOKUP(U43,Árlista!B:D,3,0) -> 1 420,-€
U44: 4116002089 | V44: ENGINEAIR 5/200 PETROL | W44: =VLOOKUP(U44,Árlista!B:D,3,0) -> 1 710,-€
U45: 4116002090 | V45: ENGINEAIR 5/11+11 PETROL | W45: =VLOOKUP(U45,Árlista!B:D,3,0) -> 1 480,-€
U46: 4116002091 | V46: ENGINEAIR 5/11+11R PETROL | W46: =VLOOKUP(U46,Árlista!B:D,3,0) -> 1 600,-€
U47: 4116022690 | V47: ENGINEAIR 7/25+25R PETROL | W47: =VLOOKUP(U47,Árlista!B:D,3,0) -> 2 880,-€
U48: 4116022691 | V48: ENGINEAIR 7/25+25R PETROL | W48: =VLOOKUP(U48,Árlista!B:D,3,0) -> 3 400,-€
U49: 4116022692 | V49: ENGINEAIR 11/270 PETROL | W49: =VLOOKUP(U49,Árlista!B:D,3,0) -> 3 810,-€
U50: 4116022693 | V50: ENGINEAIR 8/270 DIESEL | W50: =VLOOKUP(U50,Árlista!B:D,3,0) -> 4 530,-€
U51: 4116022694 | V51: ENGINEAIR 11/270 DIESEL | W51: =VLOOKUP(U51,Árlista!B:D,3,0) -> 5 870,-€
U52: 4116022695 | V52: ENGINEAIR 8/270 DIESEL 2.2KVA | W52: =VLOOKUP(U52,Árlista!B:D,3,0) -> 5 770,-€
U53: 4116022696 | V53: ENGINEAIR 11/270 DIESEL 2.2KVA | W53: =VLOOKUP(U53,Árlista!B:D,3,0) -> 6 590,-€
U55: 4116002092 | V55: ENGINEAIR 4 PETROL | W55: =VLOOKUP(U55,Árlista!B:D,3,0) -> 1 140,-€
U56: 4116002093 | V56: ENGINEAIR 5 PETROL | W56: =VLOOKUP(U56,Árlista!B:D,3,0) -> 1 260,-€
U57: 4116002073 | V57: ENGINEAIR 7 PETROL | W57: =VLOOKUP(U57,Árlista!B:D,3,0) -> 2 470,-€
U58: 4116002074 | V58: ENGINEAIR 11 PETROL | W58: =VLOOKUP(U58,Árlista!B:D,3,0) -> 2 680,-€
U59: 4116002082 | V59: ENGINEAIR 12 PETROL | W59: =VLOOKUP(U59,Árlista!B:D,3,0) -> 2 880,-€
U60: 4116002075 | V60: ENGINEAIR 8 DIESEL | W60: =VLOOKUP(U60,Árlista!B:D,3,0) -> 4 120,-€
U61: 4116002076 | V61: ENGINEAIR 11 DIESEL | W61: =VLOOKUP(U61,Árlista!B:D,3,0) -> 4 940,-€
U62: 4116002083 | V62: ENGINEAIR 12 DIESEL | W62: =VLOOKUP(U62,Árlista!B:D,3,0) -> 5 150,-€
U63: 4116002077 | V63: BI ENGINEAIR 8 DIESEL 2.2KVA | W63: =VLOOKUP(U63,Árlista!B:D,3,0) -> 4 840,-€
U64: 4116002078 | V64: BI ENGINEAIR 11 DIESEL 2.2KVA | W64: =VLOOKUP(U64,Árlista!B:D,3,0) -> 5 770,-€
U65: 4116002084 | V65: BI ENGINEAIR 12 DIESEL 3KVA | W65: =VLOOKUP(U65,Árlista!B:D,3,0) -> 6 080,-€

Sheet ALUP Hűtveszárító
A1: TARTALOM
A2: Árlista
A3: Megrendelő
A4: ABAC dugattyús kompresszorok
A5: ABAC CleanAir fogászati kompresszor
A6: AGRE ipari dugattyús kompresszorok
A7: ALUP SONETTO csavarkomp 2,2-15kW
A8: ALUP SCK csavarkomp 4-75kW
A9: ALUP LARGO, ALLEGRO csavarkompr
A10: ALUP Hűtveszárítók
A11: ALUP szűrők
A12: ALUP SpiralAir -Scroll kompresszor | C12: Méret | D12: A0 | E12: A1 | F12: A2 | G12: A3 | H12: A4 | I12: A5 | J12: A6 | K12: A7 | L12: A7,5 | M12: A8 | N12: A9 | O12: A10 | P12: A11 | Q12: A12 | R12: A13 | S12: A14 | T12: A15 | U12: A16 | V12: A17 | W12: A17,5 | X12: A18 | Y12: A19 | Z12: A19
A13: ALUP dugattyús kompresszorok | C13: Típus Névl. teljesítm. [m3/h] | D13: ADQ 21 | E13: ADQ 36 | F13: ADQ 51 | G13: ADQ 72 | H13: ADQ 110 | I13: ADQ 141 | J13: ADQ 180 | K13: ADQ 216 | L13: ADQ 246 | M13: ADQ 312 | N13: ADQ 390 | O13: ADQ 462 | P13: ADQ 600 | Q13: ADQ 720 | R13: ADQ 900 | S13: ADQ 1080 | T13: ADQ 1440 | U13: ADQ 1800 | V13: ADQ 2100 | W13: ADQ 2700 | X13: ADQ 3000 | Y13: ADQ 4200 | Z13: ADQ 5040
A14: OMEGA vonali szűrők
A15: OMEGA ciklonszűrők | C15: Elektromos teljesítmény [kW] | D15: 0.13 | E15: 0.16 | F15: 0.19 | G15: 0.27 | H15: 0.28 | I15: 0.61 | J15: 0.67 | K15: 0.79 | L15: 0.87 | M15: 1.07 | N15: 1.19 | O15: 1.45 | P15: 1.82 | Q15: 2.01 | R15: 2.64 | S15: 3.57 | T15: 3.9 | U15: 4.46 | V15: 5.55 | W15: 5.55 | X15: 6.8 | Y15: 10.2 | Z15: 10.2
A16: OMEGA olaj-víz szétválasztók | C16: Elektromos csatlakozás | D16: 230V/50 | P16: 400V/50/3
A17: ABAC sűrítők | C17: Hűtőközeg | D17: R134 | I17: R404A | P17: R410A | T17: R404A
A18: CONDOR nyomáskapcsolók | C18: Max. nyomás | D18: 16 bar | I18: 13 bar
A19: Tartályok | C19: Levegőcsatlakozás | D19: 3/4" | I19: 1" | K19: 1 1/2" | N19: 1 1/2" | P19: 2" | T19: 3" | X19: DN125
A20: Egyéb alaktrészek | C20: Méret h x sz x m [mm] | D20: 390 x 484 x 511 | I20: 370 x 764 x 515 | K20: 460 x 789 x 575 | N20: 580 x 899 x 604 | P20: 735 x 1016 x 898 | T20: 1020 x 1560 x 1082 | X20: 1100 x 1560 x 2099
C21: Tömeg [kg] | D21: 19 | E21: 19 | F21: 20 | G21: 25 | H21: 27 | I21: 44 | J21: 44 | K21: 53 | L21: 60 | M21: 65 | N21: 80 | O21: 80 | P21: 128 | Q21: 146 | R21: 158 | S21: 165 | T21: 325 | U21: 335 | V21: 350 | W21: 350 | X21: 550 | Y21: 600 | Z21: 600
C22: Nettó ár € | D22: 4102000792 | E22: 4102000793 | F22: 4102000794 | G22: 4102000795 | H22: 4102000796 | I22: 4102000797 | J22: 4102000798 | K22: 4102000799 | L22: 4102000800 | M22: 4102000801 | N22: 4102000802 | O22: 4102000803 | P22: 4102001548 | Q22: 4102001549 | R22: 4102001550 | S22: 4102001551 | T22: 4102001156 | U22: 4102001157 | V22: 4102001158 | W22: 4102001232 | X22: 4102001159 | Y22: 4102001160 | Z22: 4102001317
C23: Nettó ár € | D23: 520 | E23: 610 | F23: 690 | G23: 740 | H23: 820 | I23: 870 | J23: 1100 | K23: 1240 | L23: 1420 | M23: 1610 | N23: 1800 | O23: 2100 | P23: 2900 | Q23: 3400 | R23: 3900 | S23: 4800 | T23: 6400 | U23: 7400 | V23: 8800 | W23: 11100 | X23: 12200 | Y23: 14700 | Z23: 17300
C30: Méret | D30: C0 | E30: C1 | F30: C2 | G30: C3 | H30: C4 | I30: C5 | J30: C6 | K30: C7 | L30: C7,5 | M30: C8 | N30: C9 | O30: C10
C31: Típus Névl. teljesítm. [m3/h] | D31: COOL 21 | E31: COOL 36 | F31: COOL 51 | G31: COOL 72 | H31: COOL 110 | I31: COOL 129 | J31: COOL 180 | K31: COOL 216 | L31: COOL 246 | M31: COOL 312 | N31: COOL 390 | O31: COOL 462
D32: 4102001760 | E32: 4102001761 | F32: 4102001762 | G32: 4102001763 | H32: 4102001764 | I32: 4102001765 | J32: 4102001847 | K32: 4102002090 | L32: 4102002091 | M32: 4102002092 | N32: 4102002093 | O32: 4102002094
C33: Elektromos teljesítmény [kW] | D33: 0.126 | E33: 0.126 | F33: 0.163 | G33: 0.228 | H33: 0.293 | I33: 0.38 | J33: 0.419 | K33: 0.664 | L33: 0.767 | M33: 0.865 | N33: 1.028 | O33: 1.242
C34: Elektromos csatlakozás | D34: 230V/50
C35: Hűtőközeg | D35: R134 | K35: R404A
C36: Max. nyomás | D36: 16 bar | K36: 13 bar
C37: Levegőcsatlakozás | D37: 3/4" | J37: 1" | L37: 1 1/2"
C38: Méret h x sz x m [mm] | D38: 233 x 559 x 561 | K38: 310 x 706 x 994
C39: Tömeg [kg] | D39: 19 | E39: 19 | F39: 19 | G39: 20 | H39: 25 | I39: 27 | J39: 30 | K39: 52 | L39: 57 | M39: 59 | N39: 80 | O39: 80
C40: Nettó ár € | D40: 430 | E40: 540 | F40: 590 | G40: 640 | H40: 710 | I40: 750 | J40: 940 | K40: 1070 | L40: 1220 | M40: 1390 | N40: 1590 | O40: 1800
C43: Terem hőmérséklet [°C] | D43: 25 | E43: 30 | F43: 35 | G43: 40 | H43: 45
C44: Korrekciós faktor [A] | D44: 1 | E44: 0.92 | F44: 0.84 | G44: 0.8 | H44: 0.74
C45: Működési hőmérséklet [°C] | D45: 30 | E45: 35 | F45: 40 | G45: 45 | H45: 50 | I45: 55
C46: Korrekciós faktor [B] | D46: 1.24 | E46: 1 | F46: 0.82 | G46: 0.69 | H46: 0.58 | I46: 0.45
C47: Üzemi nyomás [bar] | D47: 5 | E47: 6 | F47: 7 | G47: 8 | H47: 9 | I47: 10 | J47: 11 | K47: 12 | L47: 13 | M47: 14
C48: Korrekciós faktor © | D48: 0.9 | E48: 0.96 | F48: 1 | G48: 1.03 | H48: 1.06 | I48: 1.08 | J48: 1.1 | K48: 1.12 | L48: 1.13 | M48: 1.15
C53: Típus | D53: Alup Cool 21 | E53: =C53&": "&D53 -> Típus: Alup Cool 21
C54: Cikkszám | E54: =C54&": "&D54 -> Cikkszám:
C55: Max. nyomásszint (bar) | D55: 16 | E55: Max. nyomásszint (bar): 16
C56: Levegőkezelési teljesítmény P 7 bar, T(külső) 25°C, T(be) 35°C (l/perc) | D56: 350 | E56: Levegőkezelési teljesítmény P 7 bar, T(külső) 25°C, T(be) 35°C (l/perc) : 350
C57: Harmatpont | D57: +5 °C +/- 1 | E57: Harmatpont: +5 °C +/- 1
C58: Névleges elektromos teljesítmény (W) | D58: 126 | E58: Névleges elektromos teljesítmény (W): 126
C59: Hálózati feszültség (V/ph/Hz) | D59: 230/1/50 | E59: Hálózati feszültség (V/ph/Hz): 230/1/50
C60: Légcsatlakozások (in-out) | D60: 3/4" KM | E60: Légcsatlakozások (in-out): 3/4" KM
C61: Méretek (hossz x szélesség x magasság mm) | D61: 233 x 559 x 561 | E61: Méretek (hossz x szélesség x magasság mm): 233 x 559 x 561
C62: Súly (kg) | D62: 19 | E62: Súly (kg): 19
C63: Hűtőgáz típusa | D63: R134a | E63: Hűtőgáz típusa: R134a
C64: Üzemeltetési hőmérséklet tartomány | D64: +5 - 40 °C | E64: Üzemeltetési hőmérséklet tartomány : +5 - 40 °C
C65: Max belépő levegő hőmérséklet | D65: 50 °C | E65: Max belépő levegő hőmérséklet: 50 °C
C66: Megjegyzés | D66: A hűtveszárító légszárítási teljesítményét az üzelemtetési hőmérsékleti tartományok T(be) -belépő levegő hőmérséklet, T(külső) -terem hőmérséklet nagy mértékben befolyásolják. A referenci értékektől való eltérésnél vegye figyelembe a gyártó által megadott korrekciós tényezőket! | E66: Megjegyzés: A hűtveszárító légszárítási teljesítményét az üzelemtetési hőmérsékleti tartományok T(be) -belépő levegő hőmérséklet, T(külső) -terem hőmérséklet nagy mértékben befolyásolják. A referenci értékektől való eltérésnél vegye figyelembe a gyártó által megadott korrekciós tényezőket!
D68: Megjegyzés: A hűtveszárító légszárítási teljesítményét az üzemeltetési hőmérsékleti tartományok T(be) -belépő levegő hőmérséklet, T(külső) -terem hőmérséklet nagy mértékben befolyásolják! A referencia értékektől való eltérésnél, vegye figyelembe a gyártó által megadott korrekciós tényezőket!

Sheet SpiralAir
A1: TARTALOM
A2: Árlista
A3: Megrendelő
A4: ABAC dugattyús kompresszorok
A5: ABAC CleanAir fogászati kompresszor
A6: AGRE ipari dugattyús kompresszorok
A7: ALUP SONETTO csavarkomp 2,2-15kW
A8: ALUP SCK csavarkomp 4-75kW
A9: ALUP LARGO, ALLEGRO csavarkompr
A10: ALUP Hűtveszárítók
A11: ALUP szűrők
A12: ALUP SpiralAir -Scroll kompresszor
A13: ALUP dugattyús kompresszorok
A14: OMEGA vonali szűrők | C14: ALUP SPR spirál kompresszorok
A15: OMEGA ciklonszűrők
A16: OMEGA olaj-víz szétválasztók | C16: Az SPR sorozatú spirálkompresszorok a legújabb technológiával készülnek: - Olajmentes spirál sűrítő - Standard IE3 hatásfokú motor - Megbízható technológia a legmagasabb minőségi szabványokkal. - 8 és 10 bar max nyomásra optimalizálva - Beépített hűtveszárítóval is rendelhető Kiváló zajcsillapítás (53-65 dBA), könnyű használat, egyszerű felépítés, minmális karbantartási igény.
A17: ABAC sűrítők
A18: CONDOR nyomáskapcsolók
A19: Tartályok
A20: Egyéb alaktrészek
D27: D
D29: 8 bar | G29: Térfogatáram (ISO 1217) m3/h | H29: Zaj (dBA) | I29: Névleges motortelj. (kW) | K29: Nettó ár -alap gép | M29: Nettó ár hűtveszárító- val | O29: Nettó ár tartály 270l | Q29: Nettó ár tartály 270l + hűtveszárító | S29: Nettó ár tartály 500l | U29: Nettó ár tartály 270l + hűtveszárító
G30: 8 bar | O30: 270l | Q30: 270l PLUSZ | S30: 500l | U30: 500l PLUSZ
D31: SPR 2 | F31: 230V / 400V | G31: 10.4 | H31: 53 | I31: 1.5 | K31: 5200 | M31: 6800 | O31: 5550 | Q31: 7150 | S31: 5680 | U31: 7280
D32: SPR 3 | F32: 230V / 400V | G32: 15.1 | H32: 55 | I32: 2.2 | K32: 5300 | M32: 7000 | O32: 5650 | Q32: 7350 | S32: 5780 | U32: 7480
D33: SPR 5 | F33: 400V | G33: 24.1 | H33: 57 | I33: 3.7 | M33: 8900 | Q33: 9250 | U33: 9380
D34: SPR 8 | F34: 400V | G34: 35.3 | H34: 59 | I34: 5.5 | K34: 8200 | M34: 10700 | O34: 8550 | Q34: 11050 | S34: 8680 | U34: 11180
D35: SPR 10 | F35: 400V | G35: 48 | H35: 63 | I35: 2 x 3,7 | K35: 13900 | M35: 15900 | O35: NO | Q35: NO | S35: NO | U35: NO
D36: SPR 15 | F36: 400V | G36: 73.2 | H36: 63 | I36: 2 x 5,5 | K36: 18600 | M36: 20600 | O36: NO | Q36: NO | S36: NO | U36: NO
D37: SPR 20 | F37: 400V | G37: 95 | H37: 63 | I37: 4 x 3,7 | K37: 23800 | M37: 25800 | O37: NO | Q37: NO | S37: NO | U37: NO
D38: SPR 22 | F38: 400V | G38: 111.6 | H38: 64 | I38: 3 x 5,5 | K38: 29800 | M38: 35100 | O38: NO | Q38: NO | S38: NO | U38: NO
D39: SPR 30 | F39: 400V | G39: 147 | H39: 65 | I39: 4 x 5,5 | K39: 33600 | M39: 36700 | O39: NO | Q39: NO | S39: NO | U39: NO
D45: 10 bar | G45: Térfogatáram (ISO 1217) m3/h | H45: Zaj (dBA) | I45: Névleges motortelj. (kW) | K45: Nettó ár -alap gép | M45: Nettó ár hűtveszárító- val | O45: Nettó ár tartály 270l | Q45: Nettó ár tartály 270l + hűtveszárító | S45: Nettó ár tartály 500l | U45: Nettó ár tartály 270l + hűtveszárító
G46: 10 bar | O46: 270l | Q46: 270l PLUSZ | S46: 500l | U46: 500l PLUSZ
D47: SPR 2 | F47: 230V / 400V | G47: 6.8 | H47: 53 | I47: 1.5 | K47: 5700 | M47: 7500 | O47: 6050 | Q47: 7850 | S47: 6180 | U47: 7980
D48: SPR 3 | F48: 230V / 400V | G48: 12.2 | H48: 55 | I48: 2.2 | K48: 5800 | M48: 7600 | O48: 6150 | Q48: 7950 | S48: 6280 | U48: 8080
D49: SPR 5 | G49: 21.2 | H49: 57 | I49: 3.7 | K49: 7200 | M49: 9400 | O49: 7550 | Q49: 9750 | S49: 7680 | U49: 9880
D50: SPR 8 | F50: 400V | G50: 27.4 | H50: 59 | I50: 5.5 | K50: 8700 | M50: 11200 | O50: 9050 | Q50: 11550 | S50: 9180 | U50: 11680
D51: SPR 10 | F51: 400V | G51: 40.8 | H51: 63 | I51: 2 x 3,7 | K51: 15300 | M51: 17300 | O51: NO | Q51: NO | S51: NO | U51: NO
D52: SPR 15 | F52: 400V | G52: 54 | H52: 63 | I52: 2 x 5,5 | K52: 20900 | M52: 23000 | O52: NO | Q52: NO | S52: NO | U52: NO
D53: SPR 20 | F53: 400V | G53: 82.8 | H53: 63 | I53: 4 x 3,7 | K53: 26300 | M53: 28500 | O53: NO | Q53: NO | S53: NO | U53: NO
D54: SPR 22 | F54: 400V | G54: 85.2 | H54: 64 | I54: 3 x 5,5 | K54: 32200 | M54: 38000 | O54: NO | Q54: NO | S54: NO | U54: NO
D55: SPR 30 | F55: 400V | G55: 108 | H55: 65 | I55: 4 x 5,5 | K55: 36300 | M55: 39700 | O55: NO | Q55: NO | S55: NO | U55: NO
C58: ALUP WisAir olajmentes csavarkompresszorok
C59: - 100 % olajmentes sűrített levegő
C60: - fix és fordulatszám szabályozott kivitelben is elérhető
C61: - nagy energia megtakarítási potenciál, a sűrítés közel isothermikus módon
C62: - robusztus felépítését és nagyon halk működés
C63: - üzembiztonság a minőségi anyagok felhasználása által (bronz, aluötvözet, saválló anyagok)
C64: - világos, áttekinthető felépítés, csekély karbantartás
C65: - környezetbarát üzemelés
C66: - Egyfokozatú, víz befecskendezéses sűrítőfokozat.
C67: - 60 °C-nal alacsonyabb sűrítési véghőmérséklet
C68: - plus-kivitel beépített hűtveszárítóval
D94: Gép | F94: Térfogatáram (ISO 1217) m3/h min | G94: Térfogatáram (ISO 1217) m3/h max | H94: Zaj (dBA) | I94: Névleges motortelj. (kW) | K94: A x B x C | L94: Nettó ár alapgép | N94: Tömeg | O94: A x B x C | P94: Nettó ár hűtveszárítóval | R94: Tömeg
F95: 5 - 13 bar | K95: mm | L95: 500l | N95: kg | O95: mm | P95: 500l | R95: kg
D96: WIS 20 V | F96: 78 | G96: 168 | H96: 68 | I96: 15 | K96: 1976 x 974 x 1500 | L96: 35200 | N96: 1226 | O96: 1976 x 974 x 1500 | P96: 37600 | R96: 1320
D97: WIS 25 V | F97: 78 | G97: 192 | H97: 69 | I97: 18 | L97: 36300 | N97: 1298 | P97: 39300 | R97: 1298
D98: WIS 30 V | F98: 78 | G98: 240 | H98: 71 | I98: 22 | L98: 37300 | N98: 1321 | P98: 40900 | R98: 1321
D99: WIS 40 V | F99: 78 | G99: 300 | H99: 69 | I99: 30 | L99: 41900 | N99: 1298 | P99: 45400 | R99: 1395
D100: WIS 50 V | F100: 150 | G100: 372 | H100: 71 | I100: 37 | K100: 2435 x 965 x 1840 | L100: 60900 | N100: 1321 | O100: 2435 x 965 x 1840 | P100: 63800 | R100: 1416
D101: WIS 75 V | F101: 150 | G101: 556 | H101: 72 | I101: 55 | L101: 71300 | N101: 1378 | P101: 78400 | R101: 1497

Sheet Segéd (hidden)
A1: Pénznem
A2: HUF | B2: 1 | C2: 300
A3: EUR | B3: 2 | C3: 1
A4: Szállítás
A5: Csomagküldés | B5: 1 | C5: 1
A6: Érte jön | B6: 2 | C6: 0.97
A7: Kiszállítás | B7: 3 | C7: 1
A8: Fizetési mód
A9: KP | B9: 1 | C9: 0.99
A10: Banki utalás | B10: 2 | C10: 1
A11: Előre utalás | B11: 3 | C11: 0.99
A12: Utánvét | B12: 4 | C12: 0.99
A13: Kedvezmény
A14: Alap ár | B14: 1 | C14: =IF(ISBLANK(Megrendelő!D9),1,1-Megrendelő!D9) -> 
A15: 0.2 | B15: 2 | C15: 0.8
A16: 0.21 | B16: 3 | C16: =1-A16 -> 0.79
A17: 0.22 | B17: 4 | C17: =1-A17 -> 0.78
A18: 0.23 | B18: 5 | C18: =1-A18 -> 0.77 | F18: =IFERROR(ROUND(IF(VLOOKUP($A18,ST!$A:$O,17,0)>0,VLOOKUP($A18,ST!$A:$O,17,0),VLOOKUP($A18,ST!$A:$O,15,0))*H$9,-1),"") -> 
A19: 0.24 | B19: 6 | C19: =1-A19 -> 0.76
A20: 0.25 | B20: 7 | C20: =1-A20 -> 0.75
A21: Szállítási mód
A22: Normál
A23: Sűrgősségi
A24: Súly | B24: 1.06
A25: 3 | B25: 1100 | C25: =B25*B$24 -> 1166
A26: 5 | B26: 1300 | C26: =B26*B$24 -> 1378
A27: 10 | B27: 1400 | C27: 1484
A28: 15 | B28: 1500 | C28: 1590
A29: 20 | B29: 1600 | C29: 1696
A30: 25 | B30: 1900 | C30: 2014
A31: 31 | B31: 2300 | C31: 2438
A32: 50 | B32: 3500 | C32: =B32*B$24 -> 3710
A33: 1000 | B33: 15000 | C33: 15900
A34: Utánvét
A35: 50000 | B35: 400
A36: 100000 | B36: 800
A37: 300000 | B37: 1500
A38: 500000 | B38: 3000

Sheet ST (hidden)
J1: Javasolt eladási árak
B2: Type | C2: Référence | D2: Description | H2: Súly | I2: Oldal | J2: Listaár | K2: TOPS STARS árak | L2: Webshop | M2: Mennyiség
A3: 1 | C3: =IF(COUNTIF(Árlista!$A$3:$A$839,$A3)>0,VLOOKUP($A3,Árlista!$A:$L,2,0),"") ->  | D3: =IF(COUNTIF(Árlista!$A$3:$A$839,$A3)>0,VLOOKUP($A3,Árlista!$A:$L,3,0),"") ->  | G3: =IF(COUNTIF(Árlista!$A$3:$A$839,$A3)>0,IF(VLOOKUP($A3,Árlista!$A:$L,8,0)="SP",5%,0),"") ->  | H3: =IF(COUNTIF(Árlista!$A$3:$A$839,$A3)>0,VLOOKUP($A3,Árlista!$A:$L,7,0),"") ->  | J3: =IF(COUNTIF(Árlista!$A$3:$A$839,$A3)>0,VLOOKUP($A3,Árlista!$A:$L,9,0),"") ->  | K3: =IF(COUNTIF(Árlista!$A$3:$A$839,$A3)>0,VLOOKUP($A3,Árlista!$A:$L,10,0),"") ->  | L3: =IF(COUNTIF(Árlista!$A$3:$A$839,$A3)>0,VLOOKUP($A3,Árlista!$A:$L,11,0),"") ->  | M3: =IF(COUNTIF(Árlista!$A$3:$A$839,$A3)>0,VLOOKUP($A3,Árlista!$A:$L,12,0),"") -> 
A4: 2 | C4: =IF(COUNTIF(Árlista!$A$3:$A$839,$A4)>0,VLOOKUP($A4,Árlista!$A:$L,2,0),"") ->  | D4: =IF(COUNTIF(Árlista!$A$3:$A$839,$A4)>0,VLOOKUP($A4,Árlista!$A:$L,3,0),"") ->  | G4: =IF(COUNTIF(Árlista!$A$3:$A$839,$A4)>0,IF(VLOOKUP($A4,Árlista!$A:$L,8,0)="SP",5%,0),"") ->  | H4: =IF(COUNTIF(Árlista!$A$3:$A$839,$A4)>0,VLOOKUP($A4,Árlista!$A:$L,7,0),"") ->  | J4: =IF(COUNTIF(Árlista!$A$3:$A$839,$A4)>0,VLOOKUP($A4,Árlista!$A:$L,9,0),"") ->  | K4: =IF(COUNTIF(Árlista!$A$3:$A$839,$A4)>0,VLOOKUP($A4,Árlista!$A:$L,10,0),"") ->  | L4: =IF(COUNTIF(Árlista!$A$3:$A$839,$A4)>0,VLOOKUP($A4,Árlista!$A:$L,11,0),"") ->  | M4: =IF(COUNTIF(Árlista!$A$3:$A$839,$A4)>0,VLOOKUP($A4,Árlista!$A:$L,12,0),"") -> 
A5: 3 | C5: =IF(COUNTIF(Árlista!$A$3:$A$839,$A5)>0,VLOOKUP($A5,Árlista!$A:$L,2,0),"") ->  | D5: =IF(COUNTIF(Árlista!$A$3:$A$839,$A5)>0,VLOOKUP($A5,Árlista!$A:$L,3,0),"") ->  | G5: =IF(COUNTIF(Árlista!$A$3:$A$839,$A5)>0,IF(VLOOKUP($A5,Árlista!$A:$L,8,0)="SP",5%,0),"") ->  | H5: =IF(COUNTIF(Árlista!$A$3:$A$839,$A5)>0,VLOOKUP($A5,Árlista!$A:$L,7,0),"") ->  | J5: =IF(COUNTIF(Árlista!$A$3:$A$839,$A5)>0,VLOOKUP($A5,Árlista!$A:$L,9,0),"") ->  | K5: =IF(COUNTIF(Árlista!$A$3:$A$839,$A5)>0,VLOOKUP($A5,Árlista!$A:$L,10,0),"") ->  | L5: =IF(COUNTIF(Árlista!$A$3:$A$839,$A5)>0,VLOOKUP($A5,Árlista!$A:$L,11,0),"") ->  | M5: =IF(COUNTIF(Árlista!$A$3:$A$839,$A5)>0,VLOOKUP($A5,Árlista!$A:$L,12,0),"") -> 
A6: 4 | C6: =IF(COUNTIF(Árlista!$A$3:$A$839,$A6)>0,VLOOKUP($A6,Árlista!$A:$L,2,0),"") ->  | D6: =IF(COUNTIF(Árlista!$A$3:$A$839,$A6)>0,VLOOKUP($A6,Árlista!$A:$L,3,0),"") ->  | G6: =IF(COUNTIF(Árlista!$A$3:$A$839,$A6)>0,IF(VLOOKUP($A6,Árlista!$A:$L,8,0)="SP",5%,0),"") ->  | H6: =IF(COUNTIF(Árlista!$A$3:$A$839,$A6)>0,VLOOKUP($A6,Árlista!$A:$L,7,0),"") ->  | J6: =IF(COUNTIF(Árlista!$A$3:$A$839,$A6)>0,VLOOKUP($A6,Árlista!$A:$L,9,0),"") ->  | K6: =IF(COUNTIF(Árlista!$A$3:$A$839,$A6)>0,VLOOKUP($A6,Árlista!$A:$L,10,0),"") ->  | L6: =IF(COUNTIF(Árlista!$A$3:$A$839,$A6)>0,VLOOKUP($A6,Árlista!$A:$L,11,0),"") ->  | M6: =IF(COUNTIF(Árlista!$A$3:$A$839,$A6)>0,VLOOKUP($A6,Árlista!$A:$L,12,0),"") -> 
A7: 5 | C7: =IF(COUNTIF(Árlista!$A$3:$A$839,$A7)>0,VLOOKUP($A7,Árlista!$A:$L,2,0),"") ->  | D7: =IF(COUNTIF(Árlista!$A$3:$A$839,$A7)>0,VLOOKUP($A7,Árlista!$A:$L,3,0),"") ->  | G7: =IF(COUNTIF(Árlista!$A$3:$A$839,$A7)>0,IF(VLOOKUP($A7,Árlista!$A:$L,8,0)="SP",5%,0),"") ->  | H7: =IF(COUNTIF(Árlista!$A$3:$A$839,$A7)>0,VLOOKUP($A7,Árlista!$A:$L,7,0),"") ->  | J7: =IF(COUNTIF(Árlista!$A$3:$A$839,$A7)>0,VLOOKUP($A7,Árlista!$A:$L,9,0),"") ->  | K7: =IF(COUNTIF(Árlista!$A$3:$A$839,$A7)>0,VLOOKUP($A7,Árlista!$A:$L,10,0),"") ->  | L7: =IF(COUNTIF(Árlista!$A$3:$A$839,$A7)>0,VLOOKUP($A7,Árlista!$A:$L,11,0),"") ->  | M7: =IF(COUNTIF(Árlista!$A$3:$A$839,$A7)>0,VLOOKUP($A7,Árlista!$A:$L,12,0),"") -> 
A8: 6 | C8: =IF(COUNTIF(Árlista!$A$3:$A$839,$A8)>0,VLOOKUP($A8,Árlista!$A:$L,2,0),"") ->  | D8: =IF(COUNTIF(Árlista!$A$3:$A$839,$A8)>0,VLOOKUP($A8,Árlista!$A:$L,3,0),"") ->  | G8: =IF(COUNTIF(Árlista!$A$3:$A$839,$A8)>0,IF(VLOOKUP($A8,Árlista!$A:$L,8,0)="SP",5%,0),"") ->  | H8: =IF(COUNTIF(Árlista!$A$3:$A$839,$A8)>0,VLOOKUP($A8,Árlista!$A:$L,7,0),"") ->  | J8: =IF(COUNTIF(Árlista!$A$3:$A$839,$A8)>0,VLOOKUP($A8,Árlista!$A:$L,9,0),"") ->  | K8: =IF(COUNTIF(Árlista!$A$3:$A$839,$A8)>0,VLOOKUP($A8,Árlista!$A:$L,10,0),"") ->  | L8: =IF(COUNTIF(Árlista!$A$3:$A$839,$A8)>0,VLOOKUP($A8,Árlista!$A:$L,11,0),"") ->  | M8: =IF(COUNTIF(Árlista!$A$3:$A$839,$A8)>0,VLOOKUP($A8,Árlista!$A:$L,12,0),"") -> 
A9: 7 | C9: =IF(COUNTIF(Árlista!$A$3:$A$839,$A9)>0,VLOOKUP($A9,Árlista!$A:$L,2,0),"") ->  | D9: =IF(COUNTIF(Árlista!$A$3:$A$839,$A9)>0,VLOOKUP($A9,Árlista!$A:$L,3,0),"") ->  | G9: =IF(COUNTIF(Árlista!$A$3:$A$839,$A9)>0,IF(VLOOKUP($A9,Árlista!$A:$L,8,0)="SP",5%,0),"") ->  | H9: =IF(COUNTIF(Árlista!$A$3:$A$839,$A9)>0,VLOOKUP($A9,Árlista!$A:$L,7,0),"") ->  | J9: =IF(COUNTIF(Árlista!$A$3:$A$839,$A9)>0,VLOOKUP($A9,Árlista!$A:$L,9,0),"") ->  | K9: =IF(COUNTIF(Árlista!$A$3:$A$839,$A9)>0,VLOOKUP($A9,Árlista!$A:$L,10,0),"") ->  | L9: =IF(COUNTIF(Árlista!$A$3:$A$839,$A9)>0,VLOOKUP($A9,Árlista!$A:$L,11,0),"") ->  | M9: =IF(COUNTIF(Árlista!$A$3:$A$839,$A9)>0,VLOOKUP($A9,Árlista!$A:$L,12,0),"") -> 
A10: 8 | C10: =IF(COUNTIF(Árlista!$A$3:$A$839,$A10)>0,VLOOKUP($A10,Árlista!$A:$L,2,0),"") ->  | D10: =IF(COUNTIF(Árlista!$A$3:$A$839,$A10)>0,VLOOKUP($A10,Árlista!$A:$L,3,0),"") ->  | G10: =IF(COUNTIF(Árlista!$A$3:$A$839,$A10)>0,IF(VLOOKUP($A10,Árlista!$A:$L,8,0)="SP",5%,0),"") ->  | H10: =IF(COUNTIF(Árlista!$A$3:$A$839,$A10)>0,VLOOKUP($A10,Árlista!$A:$L,7,0),"") ->  | J10: =IF(COUNTIF(Árlista!$A$3:$A$839,$A10)>0,VLOOKUP($A10,Árlista!$A:$L,9,0),"") ->  | K10: =IF(COUNTIF(Árlista!$A$3:$A$839,$A10)>0,VLOOKUP($A10,Árlista!$A:$L,10,0),"") ->  | L10: =IF(COUNTIF(Árlista!$A$3:$A$839,$A10)>0,VLOOKUP($A10,Árlista!$A:$L,11,0),"") ->  | M10: =IF(COUNTIF(Árlista!$A$3:$A$839,$A10)>0,VLOOKUP($A10,Árlista!$A:$L,12,0),"") -> 
A11: 9 | C11: =IF(COUNTIF(Árlista!$A$3:$A$839,$A11)>0,VLOOKUP($A11,Árlista!$A:$L,2,0),"") ->  | D11: =IF(COUNTIF(Árlista!$A$3:$A$839,$A11)>0,VLOOKUP($A11,Árlista!$A:$L,3,0),"") ->  | G11: =IF(COUNTIF(Árlista!$A$3:$A$839,$A11)>0,IF(VLOOKUP($A11,Árlista!$A:$L,8,0)="SP",5%,0),"") ->  | H11: =IF(COUNTIF(Árlista!$A$3:$A$839,$A11)>0,VLOOKUP($A11,Árlista!$A:$L,7,0),"") ->  | J11: =IF(COUNTIF(Árlista!$A$3:$A$839,$A11)>0,VLOOKUP($A11,Árlista!$A:$L,9,0),"") ->  | K11: =IF(COUNTIF(Árlista!$A$3:$A$839,$A11)>0,VLOOKUP($A11,Árlista!$A:$L,10,0),"") ->  | L11: =IF(COUNTIF(Árlista!$A$3:$A$839,$A11)>0,VLOOKUP($A11,Árlista!$A:$L,11,0),"") ->  | M11: =IF(COUNTIF(Árlista!$A$3:$A$839,$A11)>0,VLOOKUP($A11,Árlista!$A:$L,12,0),"") -> 
A12: 10 | C12: =IF(COUNTIF(Árlista!$A$3:$A$839,$A12)>0,VLOOKUP($A12,Árlista!$A:$L,2,0),"") ->  | D12: =IF(COUNTIF(Árlista!$A$3:$A$839,$A12)>0,VLOOKUP($A12,Árlista!$A:$L,3,0),"") ->  | G12: =IF(COUNTIF(Árlista!$A$3:$A$839,$A12)>0,IF(VLOOKUP($A12,Árlista!$A:$L,8,0)="SP",5%,0),"") ->  | H12: =IF(COUNTIF(Árlista!$A$3:$A$839,$A12)>0,VLOOKUP($A12,Árlista!$A:$L,7,0),"") ->  | J12: =IF(COUNTIF(Árlista!$A$3:$A$839,$A12)>0,VLOOKUP($A12,Árlista!$A:$L,9,0),"") ->  | K12: =IF(COUNTIF(Árlista!$A$3:$A$839,$A12)>0,VLOOKUP($A12,Árlista!$A:$L,10,0),"") ->  | L12: =IF(COUNTIF(Árlista!$A$3:$A$839,$A12)>0,VLOOKUP($A12,Árlista!$A:$L,11,0),"") ->  | M12: =IF(COUNTIF(Árlista!$A$3:$A$839,$A12)>0,VLOOKUP($A12,Árlista!$A:$L,12,0),"") -> 
A13: 11 | C13: =IF(COUNTIF(Árlista!$A$3:$A$839,$A13)>0,VLOOKUP($A13,Árlista!$A:$L,2,0),"") ->  | D13: =IF(COUNTIF(Árlista!$A$3:$A$839,$A13)>0,VLOOKUP($A13,Árlista!$A:$L,3,0),"") ->  | G13: =IF(COUNTIF(Árlista!$A$3:$A$839,$A13)>0,IF(VLOOKUP($A13,Árlista!$A:$L,8,0)="SP",5%,0),"") ->  | H13: =IF(COUNTIF(Árlista!$A$3:$A$839,$A13)>0,VLOOKUP($A13,Árlista!$A:$L,7,0),"") ->  | J13: =IF(COUNTIF(Árlista!$A$3:$A$839,$A13)>0,VLOOKUP($A13,Árlista!$A:$L,9,0),"") ->  | K13: =IF(COUNTIF(Árlista!$A$3:$A$839,$A13)>0,VLOOKUP($A13,Árlista!$A:$L,10,0),"") ->  | L13: =IF(COUNTIF(Árlista!$A$3:$A$839,$A13)>0,VLOOKUP($A13,Árlista!$A:$L,11,0),"") ->  | M13: =IF(COUNTIF(Árlista!$A$3:$A$839,$A13)>0,VLOOKUP($A13,Árlista!$A:$L,12,0),"") -> 
A14: 12 | C14: =IF(COUNTIF(Árlista!$A$3:$A$839,$A14)>0,VLOOKUP($A14,Árlista!$A:$L,2,0),"") ->  | D14: =IF(COUNTIF(Árlista!$A$3:$A$839,$A14)>0,VLOOKUP($A14,Árlista!$A:$L,3,0),"") ->  | G14: =IF(COUNTIF(Árlista!$A$3:$A$839,$A14)>0,IF(VLOOKUP($A14,Árlista!$A:$L,8,0)="SP",5%,0),"") ->  | H14: =IF(COUNTIF(Árlista!$A$3:$A$839,$A14)>0,VLOOKUP($A14,Árlista!$A:$L,7,0),"") ->  | J14: =IF(COUNTIF(Árlista!$A$3:$A$839,$A14)>0,VLOOKUP($A14,Árlista!$A:$L,9,0),"") ->  | K14: =IF(COUNTIF(Árlista!$A$3:$A$839,$A14)>0,VLOOKUP($A14,Árlista!$A:$L,10,0),"") ->  | L14: =IF(COUNTIF(Árlista!$A$3:$A$839,$A14)>0,VLOOKUP($A14,Árlista!$A:$L,11,0),"") ->  | M14: =IF(COUNTIF(Árlista!$A$3:$A$839,$A14)>0,VLOOKUP($A14,Árlista!$A:$L,12,0),"") -> 
A15: 13 | C15: =IF(COUNTIF(Árlista!$A$3:$A$839,$A15)>0,VLOOKUP($A15,Árlista!$A:$L,2,0),"") ->  | D15: =IF(COUNTIF(Árlista!$A$3:$A$839,$A15)>0,VLOOKUP($A15,Árlista!$A:$L,3,0),"") ->  | G15: =IF(COUNTIF(Árlista!$A$3:$A$839,$A15)>0,IF(VLOOKUP($A15,Árlista!$A:$L,8,0)="SP",5%,0),"") ->  | H15: =IF(COUNTIF(Árlista!$A$3:$A$839,$A15)>0,VLOOKUP($A15,Árlista!$A:$L,7,0),"") ->  | J15: =IF(COUNTIF(Árlista!$A$3:$A$839,$A15)>0,VLOOKUP($A15,Árlista!$A:$L,9,0),"") ->  | K15: =IF(COUNTIF(Árlista!$A$3:$A$839,$A15)>0,VLOOKUP($A15,Árlista!$A:$L,10,0),"") ->  | L15: =IF(COUNTIF(Árlista!$A$3:$A$839,$A15)>0,VLOOKUP($A15,Árlista!$A:$L,11,0),"") ->  | M15: =IF(COUNTIF(Árlista!$A$3:$A$839,$A15)>0,VLOOKUP($A15,Árlista!$A:$L,12,0),"") -> 
A16: 14 | C16: =IF(COUNTIF(Árlista!$A$3:$A$839,$A16)>0,VLOOKUP($A16,Árlista!$A:$L,2,0),"") ->  | D16: =IF(COUNTIF(Árlista!$A$3:$A$839,$A16)>0,VLOOKUP($A16,Árlista!$A:$L,3,0),"") ->  | G16: =IF(COUNTIF(Árlista!$A$3:$A$839,$A16)>0,IF(VLOOKUP($A16,Árlista!$A:$L,8,0)="SP",5%,0),"") ->  | H16: =IF(COUNTIF(Árlista!$A$3:$A$839,$A16)>0,VLOOKUP($A16,Árlista!$A:$L,7,0),"") ->  | J16: =IF(COUNTIF(Árlista!$A$3:$A$839,$A16)>0,VLOOKUP($A16,Árlista!$A:$L,9,0),"") ->  | K16: =IF(COUNTIF(Árlista!$A$3:$A$839,$A16)>0,VLOOKUP($A16,Árlista!$A:$L,10,0),"") ->  | L16: =IF(COUNTIF(Árlista!$A$3:$A$839,$A16)>0,VLOOKUP($A16,Árlista!$A:$L,11,0),"") ->  | M16: =IF(COUNTIF(Árlista!$A$3:$A$839,$A16)>0,VLOOKUP($A16,Árlista!$A:$L,12,0),"") -> 
A17: 15 | C17: =IF(COUNTIF(Árlista!$A$3:$A$839,$A17)>0,VLOOKUP($A17,Árlista!$A:$L,2,0),"") ->  | D17: =IF(COUNTIF(Árlista!$A$3:$A$839,$A17)>0,VLOOKUP($A17,Árlista!$A:$L,3,0),"") ->  | G17: =IF(COUNTIF(Árlista!$A$3:$A$839,$A17)>0,IF(VLOOKUP($A17,Árlista!$A:$L,8,0)="SP",5%,0),"") ->  | H17: =IF(COUNTIF(Árlista!$A$3:$A$839,$A17)>0,VLOOKUP($A17,Árlista!$A:$L,7,0),"") ->  | J17: =IF(COUNTIF(Árlista!$A$3:$A$839,$A17)>0,VLOOKUP($A17,Árlista!$A:$L,9,0),"") ->  | K17: =IF(COUNTIF(Árlista!$A$3:$A$839,$A17)>0,VLOOKUP($A17,Árlista!$A:$L,10,0),"") ->  | L17: =IF(COUNTIF(Árlista!$A$3:$A$839,$A17)>0,VLOOKUP($A17,Árlista!$A:$L,11,0),"") ->  | M17: =IF(COUNTIF(Árlista!$A$3:$A$839,$A17)>0,VLOOKUP($A17,Árlista!$A:$L,12,0),"") -> 
A18: 16 | C18: =IF(COUNTIF(Árlista!$A$3:$A$839,$A18)>0,VLOOKUP($A18,Árlista!$A:$L,2,0),"") ->  | D18: =IF(COUNTIF(Árlista!$A$3:$A$839,$A18)>0,VLOOKUP($A18,Árlista!$A:$L,3,0),"") ->  | G18: =IF(COUNTIF(Árlista!$A$3:$A$839,$A18)>0,IF(VLOOKUP($A18,Árlista!$A:$L,8,0)="SP",5%,0),"") ->  | H18: =IF(COUNTIF(Árlista!$A$3:$A$839,$A18)>0,VLOOKUP($A18,Árlista!$A:$L,7,0),"") ->  | J18: =IF(COUNTIF(Árlista!$A$3:$A$839,$A18)>0,VLOOKUP($A18,Árlista!$A:$L,9,0),"") ->  | K18: =IF(COUNTIF(Árlista!$A$3:$A$839,$A18)>0,VLOOKUP($A18,Árlista!$A:$L,10,0),"") ->  | L18: =IF(COUNTIF(Árlista!$A$3:$A$839,$A18)>0,VLOOKUP($A18,Árlista!$A:$L,11,0),"") ->  | M18: =IF(COUNTIF(Árlista!$A$3:$A$839,$A18)>0,VLOOKUP($A18,Árlista!$A:$L,12,0),"") -> 
A19: 17 | C19: =IF(COUNTIF(Árlista!$A$3:$A$839,$A19)>0,VLOOKUP($A19,Árlista!$A:$L,2,0),"") ->  | D19: =IF(COUNTIF(Árlista!$A$3:$A$839,$A19)>0,VLOOKUP($A19,Árlista!$A:$L,3,0),"") ->  | G19: =IF(COUNTIF(Árlista!$A$3:$A$839,$A19)>0,IF(VLOOKUP($A19,Árlista!$A:$L,8,0)="SP",5%,0),"") ->  | H19: =IF(COUNTIF(Árlista!$A$3:$A$839,$A19)>0,VLOOKUP($A19,Árlista!$A:$L,7,0),"") ->  | J19: =IF(COUNTIF(Árlista!$A$3:$A$839,$A19)>0,VLOOKUP($A19,Árlista!$A:$L,9,0),"") ->  | K19: =IF(COUNTIF(Árlista!$A$3:$A$839,$A19)>0,VLOOKUP($A19,Árlista!$A:$L,10,0),"") ->  | L19: =IF(COUNTIF(Árlista!$A$3:$A$839,$A19)>0,VLOOKUP($A19,Árlista!$A:$L,11,0),"") ->  | M19: =IF(COUNTIF(Árlista!$A$3:$A$839,$A19)>0,VLOOKUP($A19,Árlista!$A:$L,12,0),"") -> 
A20: 18 | C20: =IF(COUNTIF(Árlista!$A$3:$A$839,$A20)>0,VLOOKUP($A20,Árlista!$A:$L,2,0),"") ->  | D20: =IF(COUNTIF(Árlista!$A$3:$A$839,$A20)>0,VLOOKUP($A20,Árlista!$A:$L,3,0),"") ->  | G20: =IF(COUNTIF(Árlista!$A$3:$A$839,$A20)>0,IF(VLOOKUP($A20,Árlista!$A:$L,8,0)="SP",5%,0),"") ->  | H20: =IF(COUNTIF(Árlista!$A$3:$A$839,$A20)>0,VLOOKUP($A20,Árlista!$A:$L,7,0),"") ->  | J20: =IF(COUNTIF(Árlista!$A$3:$A$839,$A20)>0,VLOOKUP($A20,Árlista!$A:$L,9,0),"") ->  | K20: =IF(COUNTIF(Árlista!$A$3:$A$839,$A20)>0,VLOOKUP($A20,Árlista!$A:$L,10,0),"") ->  | L20: =IF(COUNTIF(Árlista!$A$3:$A$839,$A20)>0,VLOOKUP($A20,Árlista!$A:$L,11,0),"") ->  | M20: =IF(COUNTIF(Árlista!$A$3:$A$839,$A20)>0,VLOOKUP($A20,Árlista!$A:$L,12,0),"") -> 
A21: 19 | C21: =IF(COUNTIF(Árlista!$A$3:$A$839,$A21)>0,VLOOKUP($A21,Árlista!$A:$L,2,0),"") ->  | D21: =IF(COUNTIF(Árlista!$A$3:$A$839,$A21)>0,VLOOKUP($A21,Árlista!$A:$L,3,0),"") ->  | G21: =IF(COUNTIF(Árlista!$A$3:$A$839,$A21)>0,IF(VLOOKUP($A21,Árlista!$A:$L,8,0)="SP",5%,0),"") ->  | H21: =IF(COUNTIF(Árlista!$A$3:$A$839,$A21)>0,VLOOKUP($A21,Árlista!$A:$L,7,0),"") ->  | J21: =IF(COUNTIF(Árlista!$A$3:$A$839,$A21)>0,VLOOKUP($A21,Árlista!$A:$L,9,0),"") ->  | K21: =IF(COUNTIF(Árlista!$A$3:$A$839,$A21)>0,VLOOKUP($A21,Árlista!$A:$L,10,0),"") ->  | L21: =IF(COUNTIF(Árlista!$A$3:$A$839,$A21)>0,VLOOKUP($A21,Árlista!$A:$L,11,0),"") ->  | M21: =IF(COUNTIF(Árlista!$A$3:$A$839,$A21)>0,VLOOKUP($A21,Árlista!$A:$L,12,0),"") -> 
A22: 20 | C22: =IF(COUNTIF(Árlista!$A$3:$A$839,$A22)>0,VLOOKUP($A22,Árlista!$A:$L,2,0),"") ->  | D22: =IF(COUNTIF(Árlista!$A$3:$A$839,$A22)>0,VLOOKUP($A22,Árlista!$A:$L,3,0),"") ->  | G22: =IF(COUNTIF(Árlista!$A$3:$A$839,$A22)>0,IF(VLOOKUP($A22,Árlista!$A:$L,8,0)="SP",5%,0),"") ->  | H22: =IF(COUNTIF(Árlista!$A$3:$A$839,$A22)>0,VLOOKUP($A22,Árlista!$A:$L,7,0),"") ->  | J22: =IF(COUNTIF(Árlista!$A$3:$A$839,$A22)>0,VLOOKUP($A22,Árlista!$A:$L,9,0),"") ->  | K22: =IF(COUNTIF(Árlista!$A$3:$A$839,$A22)>0,VLOOKUP($A22,Árlista!$A:$L,10,0),"") ->  | L22: =IF(COUNTIF(Árlista!$A$3:$A$839,$A22)>0,VLOOKUP($A22,Árlista!$A:$L,11,0),"") ->  | M22: =IF(COUNTIF(Árlista!$A$3:$A$839,$A22)>0,VLOOKUP($A22,Árlista!$A:$L,12,0),"") -> 
A23: 21 | C23: =IF(COUNTIF(Árlista!$A$3:$A$839,$A23)>0,VLOOKUP($A23,Árlista!$A:$L,2,0),"") ->  | D23: =IF(COUNTIF(Árlista!$A$3:$A$839,$A23)>0,VLOOKUP($A23,Árlista!$A:$L,3,0),"") ->  | G23: =IF(COUNTIF(Árlista!$A$3:$A$839,$A23)>0,IF(VLOOKUP($A23,Árlista!$A:$L,8,0)="SP",5%,0),"") ->  | H23: =IF(COUNTIF(Árlista!$A$3:$A$839,$A23)>0,VLOOKUP($A23,Árlista!$A:$L,7,0),"") ->  | J23: =IF(COUNTIF(Árlista!$A$3:$A$839,$A23)>0,VLOOKUP($A23,Árlista!$A:$L,9,0),"") ->  | K23: =IF(COUNTIF(Árlista!$A$3:$A$839,$A23)>0,VLOOKUP($A23,Árlista!$A:$L,10,0),"") ->  | L23: =IF(COUNTIF(Árlista!$A$3:$A$839,$A23)>0,VLOOKUP($A23,Árlista!$A:$L,11,0),"") ->  | M23: =IF(COUNTIF(Árlista!$A$3:$A$839,$A23)>0,VLOOKUP($A23,Árlista!$A:$L,12,0),"") -> 
A24: 22 | C24: =IF(COUNTIF(Árlista!$A$3:$A$839,$A24)>0,VLOOKUP($A24,Árlista!$A:$L,2,0),"") ->  | D24: =IF(COUNTIF(Árlista!$A$3:$A$839,$A24)>0,VLOOKUP($A24,Árlista!$A:$L,3,0),"") ->  | G24: =IF(COUNTIF(Árlista!$A$3:$A$839,$A24)>0,IF(VLOOKUP($A24,Árlista!$A:$L,8,0)="SP",5%,0),"") ->  | H24: =IF(COUNTIF(Árlista!$A$3:$A$839,$A24)>0,VLOOKUP($A24,Árlista!$A:$L,7,0),"") ->  | J24: =IF(COUNTIF(Árlista!$A$3:$A$839,$A24)>0,VLOOKUP($A24,Árlista!$A:$L,9,0),"") ->  | K24: =IF(COUNTIF(Árlista!$A$3:$A$839,$A24)>0,VLOOKUP($A24,Árlista!$A:$L,10,0),"") ->  | L24: =IF(COUNTIF(Árlista!$A$3:$A$839,$A24)>0,VLOOKUP($A24,Árlista!$A:$L,11,0),"") ->  | M24: =IF(COUNTIF(Árlista!$A$3:$A$839,$A24)>0,VLOOKUP($A24,Árlista!$A:$L,12,0),"") -> 
A25: 23 | C25: =IF(COUNTIF(Árlista!$A$3:$A$839,$A25)>0,VLOOKUP($A25,Árlista!$A:$L,2,0),"") ->  | D25: =IF(COUNTIF(Árlista!$A$3:$A$839,$A25)>0,VLOOKUP($A25,Árlista!$A:$L,3,0),"") ->  | G25: =IF(COUNTIF(Árlista!$A$3:$A$839,$A25)>0,IF(VLOOKUP($A25,Árlista!$A:$L,8,0)="SP",5%,0),"") ->  | H25: =IF(COUNTIF(Árlista!$A$3:$A$839,$A25)>0,VLOOKUP($A25,Árlista!$A:$L,7,0),"") ->  | J25: =IF(COUNTIF(Árlista!$A$3:$A$839,$A25)>0,VLOOKUP($A25,Árlista!$A:$L,9,0),"") ->  | K25: =IF(COUNTIF(Árlista!$A$3:$A$839,$A25)>0,VLOOKUP($A25,Árlista!$A:$L,10,0),"") ->  | L25: =IF(COUNTIF(Árlista!$A$3:$A$839,$A25)>0,VLOOKUP($A25,Árlista!$A:$L,11,0),"") ->  | M25: =IF(COUNTIF(Árlista!$A$3:$A$839,$A25)>0,VLOOKUP($A25,Árlista!$A:$L,12,0),"") -> 
A26: 24 | C26: =IF(COUNTIF(Árlista!$A$3:$A$839,$A26)>0,VLOOKUP($A26,Árlista!$A:$L,2,0),"") ->  | D26: =IF(COUNTIF(Árlista!$A$3:$A$839,$A26)>0,VLOOKUP($A26,Árlista!$A:$L,3,0),"") ->  | G26: =IF(COUNTIF(Árlista!$A$3:$A$839,$A26)>0,IF(VLOOKUP($A26,Árlista!$A:$L,8,0)="SP",5%,0),"") ->  | H26: =IF(COUNTIF(Árlista!$A$3:$A$839,$A26)>0,VLOOKUP($A26,Árlista!$A:$L,7,0),"") ->  | J26: =IF(COUNTIF(Árlista!$A$3:$A$839,$A26)>0,VLOOKUP($A26,Árlista!$A:$L,9,0),"") ->  | K26: =IF(COUNTIF(Árlista!$A$3:$A$839,$A26)>0,VLOOKUP($A26,Árlista!$A:$L,10,0),"") ->  | L26: =IF(COUNTIF(Árlista!$A$3:$A$839,$A26)>0,VLOOKUP($A26,Árlista!$A:$L,11,0),"") ->  | M26: =IF(COUNTIF(Árlista!$A$3:$A$839,$A26)>0,VLOOKUP($A26,Árlista!$A:$L,12,0),"") -> 
A27: 25 | C27: =IF(COUNTIF(Árlista!$A$3:$A$839,$A27)>0,VLOOKUP($A27,Árlista!$A:$L,2,0),"") ->  | D27: =IF(COUNTIF(Árlista!$A$3:$A$839,$A27)>0,VLOOKUP($A27,Árlista!$A:$L,3,0),"") ->  | G27: =IF(COUNTIF(Árlista!$A$3:$A$839,$A27)>0,IF(VLOOKUP($A27,Árlista!$A:$L,8,0)="SP",5%,0),"") ->  | H27: =IF(COUNTIF(Árlista!$A$3:$A$839,$A27)>0,VLOOKUP($A27,Árlista!$A:$L,7,0),"") ->  | J27: =IF(COUNTIF(Árlista!$A$3:$A$839,$A27)>0,VLOOKUP($A27,Árlista!$A:$L,9,0),"") ->  | K27: =IF(COUNTIF(Árlista!$A$3:$A$839,$A27)>0,VLOOKUP($A27,Árlista!$A:$L,10,0),"") ->  | L27: =IF(COUNTIF(Árlista!$A$3:$A$839,$A27)>0,VLOOKUP($A27,Árlista!$A:$L,11,0),"") ->  | M27: =IF(COUNTIF(Árlista!$A$3:$A$839,$A27)>0,VLOOKUP($A27,Árlista!$A:$L,12,0),"") -> 
A28: 26 | C28: =IF(COUNTIF(Árlista!$A$3:$A$839,$A28)>0,VLOOKUP($A28,Árlista!$A:$L,2,0),"") ->  | D28: =IF(COUNTIF(Árlista!$A$3:$A$839,$A28)>0,VLOOKUP($A28,Árlista!$A:$L,3,0),"") ->  | G28: =IF(COUNTIF(Árlista!$A$3:$A$839,$A28)>0,IF(VLOOKUP($A28,Árlista!$A:$L,8,0)="SP",5%,0),"") ->  | H28: =IF(COUNTIF(Árlista!$A$3:$A$839,$A28)>0,VLOOKUP($A28,Árlista!$A:$L,7,0),"") ->  | J28: =IF(COUNTIF(Árlista!$A$3:$A$839,$A28)>0,VLOOKUP($A28,Árlista!$A:$L,9,0),"") ->  | K28: =IF(COUNTIF(Árlista!$A$3:$A$839,$A28)>0,VLOOKUP($A28,Árlista!$A:$L,10,0),"") ->  | L28: =IF(COUNTIF(Árlista!$A$3:$A$839,$A28)>0,VLOOKUP($A28,Árlista!$A:$L,11,0),"") ->  | M28: =IF(COUNTIF(Árlista!$A$3:$A$839,$A28)>0,VLOOKUP($A28,Árlista!$A:$L,12,0),"") -> 
A29: 27 | C29: =IF(COUNTIF(Árlista!$A$3:$A$839,$A29)>0,VLOOKUP($A29,Árlista!$A:$L,2,0),"") ->  | D29: =IF(COUNTIF(Árlista!$A$3:$A$839,$A29)>0,VLOOKUP($A29,Árlista!$A:$L,3,0),"") ->  | G29: =IF(COUNTIF(Árlista!$A$3:$A$839,$A29)>0,IF(VLOOKUP($A29,Árlista!$A:$L,8,0)="SP",5%,0),"") ->  | H29: =IF(COUNTIF(Árlista!$A$3:$A$839,$A29)>0,VLOOKUP($A29,Árlista!$A:$L,7,0),"") ->  | J29: =IF(COUNTIF(Árlista!$A$3:$A$839,$A29)>0,VLOOKUP($A29,Árlista!$A:$L,9,0),"") ->  | K29: =IF(COUNTIF(Árlista!$A$3:$A$839,$A29)>0,VLOOKUP($A29,Árlista!$A:$L,10,0),"") ->  | L29: =IF(COUNTIF(Árlista!$A$3:$A$839,$A29)>0,VLOOKUP($A29,Árlista!$A:$L,11,0),"") ->  | M29: =IF(COUNTIF(Árlista!$A$3:$A$839,$A29)>0,VLOOKUP($A29,Árlista!$A:$L,12,0),"") -> 
A30: 28 | C30: =IF(COUNTIF(Árlista!$A$3:$A$839,$A30)>0,VLOOKUP($A30,Árlista!$A:$L,2,0),"") ->  | D30: =IF(COUNTIF(Árlista!$A$3:$A$839,$A30)>0,VLOOKUP($A30,Árlista!$A:$L,3,0),"") ->  | G30: =IF(COUNTIF(Árlista!$A$3:$A$839,$A30)>0,IF(VLOOKUP($A30,Árlista!$A:$L,8,0)="SP",5%,0),"") ->  | H30: =IF(COUNTIF(Árlista!$A$3:$A$839,$A30)>0,VLOOKUP($A30,Árlista!$A:$L,7,0),"") ->  | J30: =IF(COUNTIF(Árlista!$A$3:$A$839,$A30)>0,VLOOKUP($A30,Árlista!$A:$L,9,0),"") ->  | K30: =IF(COUNTIF(Árlista!$A$3:$A$839,$A30)>0,VLOOKUP($A30,Árlista!$A:$L,10,0),"") ->  | L30: =IF(COUNTIF(Árlista!$A$3:$A$839,$A30)>0,VLOOKUP($A30,Árlista!$A:$L,11,0),"") ->  | M30: =IF(COUNTIF(Árlista!$A$3:$A$839,$A30)>0,VLOOKUP($A30,Árlista!$A:$L,12,0),"") -> 
A31: 29 | C31: =IF(COUNTIF(Árlista!$A$3:$A$839,$A31)>0,VLOOKUP($A31,Árlista!$A:$L,2,0),"") ->  | D31: =IF(COUNTIF(Árlista!$A$3:$A$839,$A31)>0,VLOOKUP($A31,Árlista!$A:$L,3,0),"") ->  | G31: =IF(COUNTIF(Árlista!$A$3:$A$839,$A31)>0,IF(VLOOKUP($A31,Árlista!$A:$L,8,0)="SP",5%,0),"") ->  | H31: =IF(COUNTIF(Árlista!$A$3:$A$839,$A31)>0,VLOOKUP($A31,Árlista!$A:$L,7,0),"") ->  | J31: =IF(COUNTIF(Árlista!$A$3:$A$839,$A31)>0,VLOOKUP($A31,Árlista!$A:$L,9,0),"") ->  | K31: =IF(COUNTIF(Árlista!$A$3:$A$839,$A31)>0,VLOOKUP($A31,Árlista!$A:$L,10,0),"") ->  | L31: =IF(COUNTIF(Árlista!$A$3:$A$839,$A31)>0,VLOOKUP($A31,Árlista!$A:$L,11,0),"") ->  | M31: =IF(COUNTIF(Árlista!$A$3:$A$839,$A31)>0,VLOOKUP($A31,Árlista!$A:$L,12,0),"") -> 

Sheet Tartály
A1: TARTALOM
A2: Árlista
A3: Megrendelő
A4: ABAC dugattyús kompresszorok
A5: ABAC CleanAir fogászati kompresszor
A6: AGRE ipari dugattyús kompresszorok
A7: ALUP SONETTO csavarkomp 2,2-15kW
A8: ALUP SCK csavarkomp 4-75kW
A9: ALUP LARGO, ALLEGRO csavarkompr
A10: ALUP Hűtveszárítók
A11: ALUP szűrők
A12: ALUP SpiralAir -Scroll kompresszor
A13: ALUP dugattyús kompresszorok
A14: OMEGA vonali szűrők
A15: OMEGA ciklonszűrők
A16: OMEGA olaj-víz szétválasztók | D16: Tartály mérete | E16: Típus | F16: Felületkezelés | G16: Tömeg | H16: Méret (SZxMxH) | I16: Nettó ár Ft
A17: ABAC sűrítők | C17: 1 | D17: 90 liter / 11 bar | E17: Fekvő | F17: Festve,csomagolva | G17: 45 | H17: 0,4x0,7x1,1 | I17: 84000
A18: CONDOR nyomáskapcsolók | C18: 2 | D18: 150 liter / 11 bar | E18: Álló | F18: Festve,csomagolva | G18: 69 | H18: 0,5x0,7x1,6 | I18: 100000
A19: Tartályok | C19: 3 | D19: 150 liter / 11 bar | E19: Fekvő | F19: Festve,csomagolva | G19: 75 | H19: 0,5x0,6x1,4 | I19: 112000
A20: Egyéb alaktrészek | C20: 4 | D20: 250 liter / 11 bar | E20: Álló | F20: Festve,csomagolva | G20: 90 | H20: 0,7x0,9x1,3 | I20: 126000
C21: 5 | D21: 250 liter / 11 bar | E21: Fekvő | F21: Festve,csomagolva | G21: 95 | H21: 0,7x1,0x1,3 | I21: 144000
C22: 6 | D22: 250 liter / 16 bar | E22: Álló | F22: Festve,csomagolva | G22: 116 | H22: 0,7x0,9x1,3 | I22: 138000
C23: 7 | D23: 250 liter / 16 bar | E23: Fekvő | F23: Festve,csomagolva | G23: 125 | H23: 0,7x1,0x1,3 | I23: 178000
C24: 8 | D24: 270 liter / 11 bar | E24: Álló | F24: Festve,csomagolva | G24: 88 | H24: 0,6x0,8x1,8 | I24: 120000
C25: 9 | D25: 270 liter / 11 bar | E25: Fekvő | F25: Festve,csomagolva | G25: 90 | H25: 0,6x0,9x1,8 | I25: 138000
C26: 10 | D26: 350 liter / 11 bar | E26: Álló | F26: Festve,csomagolva | G26: 112 | H26: 0,7x0,9x1,5 | I26: 146000
C27: 11 | D27: 350 liter / 11 bar | E27: Fekvő | F27: Festve,csomagolva | G27: 120 | H27: 0,7x1,0x1,4 | I27: 167000
C28: 12 | D28: 350 liter / 16 bar | E28: Álló | F28: Festve,csomagolva | G28: 140 | H28: 0,7x0,9x1,5 | I28: 157000
C29: 13 | D29: 350 liter /16 bar | E29: Fekvő | F29: Festve,csomagolva | G29: 150 | H29: 0,7x1,0x1,4 | I29: 189000
C30: 14 | D30: 500 liter / 11 bar | E30: Álló | F30: Festve,csomagolva | G30: 148 | H30: 0,8x0,9x2,1 | I30: 165000
C31: 15 | D31: 500 liter / 11 bar | E31: Álló | F31: Tűzihorganyozva | G31: 148 | H31: 0,8x0,9x2,1 | I31: 257000
C32: 16 | D32: 500 liter / 11 bar | E32: Fekvő | F32: Festve,csomagolva | G32: 157 | H32: 0,8x0,9x1,9 | I32: 197000
C33: 17 | D33: 500 liter / 16 bar | E33: Álló | F33: Festve,csomagolva | G33: 187 | H33: 0,8x0,9x2,1 | I33: 240000
C34: 18 | D34: 500 liter / 16 bar | E34: Fekvő | F34: Festve,csomagolva | G34: 196 | H34: 0,8x0,9x1,9 | I34: 284000
C35: 19 | D35: 750 liter / 11 bar | E35: Álló | F35: Festve,csomagolva | G35: 225 | H35: 0,9x1,0x2,1 | I35: 220000
C36: 20 | D36: 750 liter / 11 bar | E36: Fekvő | F36: Festve,csomagolva | G36: 232 | H36: 0,9x1,1x2,0 | I36: 250000
C37: 21 | D37: 750 liter / 16 bar | E37: Álló | F37: Festve,csomagolva | G37: 200 | H37: 0,9x1,0x1,9 | I37: 267000
C38: 22 | D38: 750 liter / 16 bar | E38: Fekvő | F38: Festve,csomagolva | G38: 210 | H38: 0,9x1,2x1,7 | I38: 378000
D39: 900 liter / 11 bar | E39: Álló | F39: Festve, csomagolva | G39: 254 | H39: 0,9x1,0x2,3 | I39: 250000
C40: 23 | D40: 900 liter / 11 bar | E40: Álló | F40: Festve, csomagolva | G40: 254 | H40: 0,9x1,0x2,3 | I40: 324000
D41: 900 liter / 11 bar | E41: Álló | F41: Festve, csomagolva | G41: 254 | H41: 0,9x1,0x2,3 | I41: 275000
C42: 24 | D42: 1000 liter / 11 bar | E42: Álló | F42: Festve,csomagolva | G42: 220 | H42: 0,9x1,0x2,5 | I42: 250000
C43: 25 | D43: 1000 liter / 11 bar | E43: Álló | F43: Tűzihorganyozva | G43: 220 | H43: 0,9x1,0x2,5 | I43: 392000
C44: 26 | D44: 1000 liter / 16 bar | E44: Álló | F44: Festve,csomagolva | G44: 285 | H44: 0,9x1,0x2,5 | I44: 311000
C45: 27 | D45: 1000 liter / 16 bar | E45: Álló | F45: Tűzihorganyozva | G45: 285 | H45: 0,9x1,0x2,5 | I45: 439000
C46: 28 | D46: 1500 liter / 11 bar | E46: Álló | F46: Festve,csomagolva | G46: 330 | H46: 1,1x1,2x2,5 | I46: 371000
C47: 29 | D47: 1500 liter / 11 bar | E47: Álló | F47: Tűzihorganyozva | G47: 330 | H47: 1,1x1,2x2,5 | I47: 520000
C48: 30 | D48: 1500 liter / 16 bar | E48: Álló | F48: Festve,csomagolva | G48: 420 | H48: 1,1x1,2x2,5 | I48: 443000
C49: 31 | D49: 2000 liter / 11 bar | E49: Álló | F49: Festve,csomagolva | G49: 410 | H49: 1,2x1,3x2,5 | I49: 432000
C50: 32 | D50: 2000 liter / 11 bar | E50: Álló | F50: Tűzihorganyozva | G50: 410 | H50: 1,2x1,3x2,5 | I50: 756000
C51: 33 | D51: 2000 liter / 16 bar | E51: Álló | F51: Festve,csomagolva | G51: 540 | H51: 1,2x1,3x2,5 | I51: 532000
C52: 34 | D52: 3000 liter / 11 bar | E52: Álló | F52: Festve,csomagolva | G52: 580 | H52: 1,2x1,3x3,5 | I52: 537000
C53: 35 | D53: 3000 liter / 11 bar | E53: Álló | F53: Tűzihorganyozva | G53: 580 | H53: 1,2x1,3x3,5 | I53: 910000
C54: 36 | D54: 3000 liter / 11 bar | E54: Álló | F54: Festve,csomagolva | G54: 620 | H54: 1,3x1,4x3,1 | I54: 500000
C55: 37 | D55: 3000 liter / 16 bar | E55: Álló | F55: Festve,csomagolva | G55: 750 | H55: 1,2x1,3x3,5 | I55: 614000
C56: 38 | D56: 4000 liter / 11 bar | E56: Álló | F56: Festve,csomagolva | G56: 900 | H56: 1,5x1,6x3,2 | I56: 878000
C57: 39 | D57: 5000 liter / 11 bar | E57: Álló | F57: Festve,csomagolva | G57: 1200 | H57: 1,5x1,6x3,8 | I57: 945000
C58: 40 | D58: 5000 liter / 11 bar | E58: Álló | F58: Tűzihorganyozva | G58: 1200 | H58: 1,5x1,6x3,8 | I58: 1526000
C59: 41 | D59: 6000 liter / 11 bar | E59: Álló | F59: Festve,csomagolva | G59: 1400 | H59: 1,7x1,8x3,5 | I59: 1343000
C60: 42 | D60: 8000 liter / 11 bar | E60: Álló | F60: Festve,csomagolva | G60: 1750 | H60: 1,7x1,8x4,7 | I60: 1512000
C61: 43 | D61: 10000 liter / 11 bar | E61: Álló | F61: Festve,csomagolva | G61: 2100 | H61: 1,7x1,8x5,5 | I61: 1742000
D62: Tartályok alapkivitelben belső felületkezelés nélkül készülnek
D63: Az árak 1500 l-ig 1db kémlelőnyílással, 1500-4000 l-ig 2db kezelőnyílással
D64: 4000 l-től búvó nyílással készülnek
D65: Biztonsági szelepek:
D66: Bizt szelep méret | E66: Típus | F66: Lefúvás m3/h | I66: Nettó ár Ft
D67: 1/4" | E67: 6205 | F67: 158 | G67: Rendszerben lévő kompresszorok összes légszállítása fölé kell méretezni! | I67: 18900
D68: 1/2" | E68: 6205 | F68: 463 | I68: 23200
D69: 3/4" | E69: 6205 | F69: 970 | I69: 27700
D70: 1" | E70: 6205 | F70: 1396 | I70: 34400
D71: 5/4" | E71: 6205 | F71: 1724 | I71: 41200
D72: 5/4" | E72: 6217 | F72: 3036 | I72: 63500
D73: 6/4" | E73: 6217 | F73: 4833 | I73: 86400
D74: 2" | E74: 6217 | F74: 7224 | I74: 120200
D76: Nyomásmérő óra (kalibrált): ø 100-160 mm | I76: 14200
D77: Háromállású szelep: | I77: 9500
D78: Szállítási költség: | I78: 25000
D79: Idővezérelt leürítő | I79: 20000
D80: A tartályok CE jelöléssel vannak ellátva
D81: Az árak a szállítási költséget és az ÁFA-t nem tartalmazzák!

Sheet OMEGA CKL-B ciklon
A1: TARTALOM | C1: CKL-B series
A2: Árlista
A3: Megrendelő
A4: ABAC dugattyús kompresszorok
A5: ABAC CleanAir fogászati kompresszor
A6: AGRE ipari dugattyús kompresszorok
A7: ALUP SONETTO csavarkomp 2,2-15kW
A8: ALUP SCK csavarkomp 4-75kW
A9: ALUP LARGO, ALLEGRO csavarkompr
A10: ALUP Hűtveszárítók
A11: ALUP szűrők
A12: ALUP SpiralAir -Scroll kompresszor
A13: ALUP dugattyús kompresszorok
A14: OMEGA vonali szűrők
A15: OMEGA ciklonszűrők
A16: OMEGA olaj-víz szétválasztók
A17: ABAC sűrítők
A18: CONDOR nyomáskapcsolók | Q18: INDEX
A19: Tartályok
A20: Egyéb alaktrészek
C29: SZŰRŐ HÁZ | U29: KORREKCIÓS FAKTOR
C30: Szűrő ház méret | D30: Cső méret | E30: Max.üz. nyomás | F30: Átáramlási képesség at 7 bar(g), 20 °C | H30: Temperature üz. Range | J30: Méretek | N30: Tömeg | O30: Szűrő betét típus | P30: Nettó ár (Csak szűrőház) [HUF] | U30: Üzemi nyomás [bar] | V30: 2 | W30: 3 | X30: 4 | Y30: 5 | Z30: 6 | AA30: 7 | AB30: 8 | AC30: 9 | AD30: 10 | AE30: 11 | AF30: 12 | AG30: 13 | AH30: 14 | AI30: 15 | AJ30: 16
U31: Üzemi nyomás [psi] | V31: 29 | W31: 44 | X31: 58 | Y31: 72 | Z31: 87 | AA31: 100 | AB31: 115 | AC31: 130 | AD31: 145 | AE31: 160 | AF31: 174 | AG31: 189 | AH31: 203 | AI31: 218 | AJ31: 232
D32: inch | E32: bar/psi | F32: Nm³/h | G32: scfm | H32: °C | I32: °F | J32: A [mm] | K32: B [mm] | L32: C [mm] | M32: D [mm] | N32: kg | U32: Korrekciós faktor | V32: 0.38 | W32: 0.5 | X32: 0.63 | Y32: 0.75 | Z32: 0.88 | AA32: 1 | AB32: 1.13 | AC32: 1.25 | AD32: 1.38 | AE32: 1.5 | AF32: 1.63 | AG32: 1.75 | AH32: 1.88 | AI32: 2 | AJ32: 2.13
C33: CKL 005 B | D33: 3/8 | E33: 16/232 | F33: 120 | G33: 70 | H33: 1,5 - 65 | I33: 35 - 149 | J33: 187 | K33: 88 | L33: 20 | M33: 60 | N33: 0.7 | O33: 6050 | P33: =VLOOKUP(C33,Árlista!$B:$F,3,0) -> 13 930,-Ft
C34: CKL 007 B | D34: 1/2 | E34: 16/232 | F34: 155 | G34: 91 | H34: 1,5 - 65 | I34: 35 - 149 | J34: 187 | K34: 88 | L34: 20 | M34: 60 | N34: 0.7 | O34: 7050 | P34: =VLOOKUP(C34,Árlista!$B:$F,3,0) -> 15 670,-Ft
C35: CKL 010 B | D35: 3/4 | E35: 16/232 | F35: 235 | G35: 138 | H35: 1,5 - 65 | I35: 35 - 149 | J35: 257 | K35: 88 | L35: 20 | M35: 80 | N35: 0.8 | O35: 14050 | P35: =VLOOKUP(C35,Árlista!$B:$F,3,0) -> 18 470,-Ft
C36: CKL 018 B | D36: 1 | E36: 16/232 | F36: 365 | G36: 215 | H36: 1,5 - 65 | I36: 35 - 149 | J36: 263 | K36: 125 | L36: 32 | M36: 100 | N36: 1.8 | O36: 12075 | P36: =VLOOKUP(C36,Árlista!$B:$F,3,0) -> 26 470,-Ft
C37: CKL 047 B | D37: 1 1/2 | E37: 16/232 | F37: 770 | G37: 452 | H37: 1,5 - 65 | I37: 35 - 149 | J37: 461 | K37: 125 | L37: 32 | M37: 140 | N37: 2.5 | O37: 32075 | P37: =VLOOKUP(C37,Árlista!$B:$F,3,0) -> 33 110,-Ft
C38: CKL 094 B | D38: 2 | E38: 16/232 | F38: 1280 | G38: 753 | H38: 1,5 - 65 | I38: 35 - 149 | J38: 684 | K38: 163 | L38: 43 | M38: 520 | N38: 5.1 | O38: 51090 | P38: =VLOOKUP(C38,Árlista!$B:$F,3,0) -> 67 910,-Ft
C39: CKL 150 B | D39: 2 1/2 | E39: 16/232 | F39: 2460 | G39: 1447 | H39: 1,5 - 65 | I39: 35 - 149 | J39: 684 | K39: 163 | L39: 43 | M39: 520 | N39: 5.1 | O39: 76090 | P39: =VLOOKUP(C39,Árlista!$B:$F,3,0) -> 82 420,-Ft
C40: CKL 200 B | D40: 3 | E40: 16/232 | F40: 2850 | G40: 1677 | H40: 1,5 - 65 | I40: 35 - 149 | J40: 795 | K40: 240 | L40: 59 | M40: 630 | N40: 12.9 | O40: 51140 | P40: =VLOOKUP(C40,Árlista!$B:$F,3,0) -> 163 040,-Ft
C41: MEGJEGYZÉS - Ár, csak a szűrőházra vonatkozik!
C43: SZŰRŐ BETÉT
F44: CKL-B
F45: szeparátor
C46: Szűrő betét típus | D46: Átáramlási képesség | E46: Corresponding ház | F46: Nettó Ár [HUF]
D48: [Nm³/h]
C49: 6050 | D49: 120 | E49: CKL 005 B | F49: =VLOOKUP($C49&F$44,Árlista!$B:$F,3,0) -> 5 720,-Ft
C50: 7050 | D50: 155 | E50: CKL 007 B | F50: =VLOOKUP($C50&F$44,Árlista!$B:$F,3,0) -> 5 720,-Ft
C51: 14050 | D51: 235 | E51: CKL 010 B | F51: =VLOOKUP($C51&F$44,Árlista!$B:$F,3,0) -> 7 060,-Ft
C52: 12075 | D52: 365 | E52: CKL 018 B | F52: =VLOOKUP($C52&F$44,Árlista!$B:$F,3,0) -> 8 610,-Ft
C53: 32075 | D53: 770 | E53: CKL 047 B | F53: =VLOOKUP($C53&F$44,Árlista!$B:$F,3,0) -> 10 070,-Ft
C54: 51090 | D54: 1280 | E54: CKL 094 B | F54: =VLOOKUP($C54&F$44,Árlista!$B:$F,3,0) -> 21 170,-Ft
C55: 76090 | D55: 2460 | E55: CKL 150 B | F55: =VLOOKUP($C55&F$44,Árlista!$B:$F,3,0) -> 21 170,-Ft
C56: 51140 | D56: 2850 | E56: CKL 200 B | F56: =VLOOKUP($C56&F$44,Árlista!$B:$F,3,0) -> 43 880,-Ft
C58: KONDENZÁTUM LEERESZTŐ | E58: AOK16B | F58: AOK 20B | G58: TD 16M | H58: CDI 16B | I58: ECD 15B | J58: ECD 40B | K58: ECD 90B | L58: ECD 150B | M58: EMD 12 | N58: EMD 12A
C59: Nettó ár [HUF] | E59: =VLOOKUP(E58,Árlista!$B:$F,3,0) -> 7 060,-Ft | F59: =VLOOKUP(F58,Árlista!$B:$F,3,0) -> 11 130,-Ft | G59: =VLOOKUP(G58,Árlista!$B:$F,3,0) -> 21 150,-Ft | H59: =VLOOKUP(H58,Árlista!$B:$F,3,0) -> 39 520,-Ft | I59: =VLOOKUP(I58,Árlista!$B:$F,3,0) -> 46 160,-Ft | J59: =VLOOKUP(J58,Árlista!$B:$F,3,0) -> 47 100,-Ft | K59: =VLOOKUP(K58,Árlista!$B:$F,3,0) -> 47 720,-Ft | L59: =VLOOKUP(L58,Árlista!$B:$F,3,0) -> 58 200,-Ft | M59: =VLOOKUP(M58,Árlista!$B:$F,3,0) -> 33 630,-Ft | N59: =VLOOKUP(N58,Árlista!$B:$F,3,0) -> 36 290,-Ft
E61: EMD 12C | F61: EMD 25 | G61: EMD 75 | H61: EMD 12 Vac | I61: EMD 12A Vac | J61: EMD 12A Vdc | K61: IED
E62: =VLOOKUP(E61,Árlista!$B:$F,3,0) -> 39 470,-Ft | F62: =VLOOKUP(F61,Árlista!$B:$F,3,0) -> 41 930,-Ft | G62: =VLOOKUP(G61,Árlista!$B:$F,3,0) -> 43 120,-Ft | H62: =VLOOKUP(H61,Árlista!$B:$F,3,0) -> 40 550,-Ft | I62: =VLOOKUP(I61,Árlista!$B:$F,3,0) -> 46 750,-Ft | J62: =VLOOKUP(J61,Árlista!$B:$F,3,0) -> 43 830,-Ft | K62: =VLOOKUP(K61,Árlista!$B:$F,3,0) -> 24 110,-Ft
C64: KIEGÉSZÍTŐK | E64: CKL 005 B - CKL 200 B | F64: Vent for AOK 20B
E65: SG | F65: Nipple
C66: Nettó ár [HUF] | E66: =VLOOKUP(E65,Árlista!$B:$F,3,0) -> 4 500,-Ft | F66: =VLOOKUP(F65,Árlista!$B:$F,3,0) -> 4 810,-Ft

Sheet OMEGA AF szűrők
A1: TARTALOM | C1: AF series
A2: Árlista
A3: Megrendelő
A4: ABAC dugattyús kompresszorok | Q4: INDEX
A5: ABAC CleanAir fogászati kompresszor
A6: AGRE ipari dugattyús kompresszorok
A7: ALUP SONETTO csavarkomp 2,2-15kW
A8: ALUP SCK csavarkomp 4-75kW
A9: ALUP LARGO, ALLEGRO csavarkompr
A10: ALUP Hűtveszárítók
A11: ALUP szűrők
A12: ALUP SpiralAir -Scroll kompresszor
A13: ALUP dugattyús kompresszorok
A14: OMEGA vonali szűrők
A15: OMEGA ciklonszűrők
A16: OMEGA olaj-víz szétválasztók
A17: ABAC sűrítők
A18: CONDOR nyomáskapcsolók
A19: Tartályok
A20: Egyéb alaktrészek
C29: SZŰRŐ HÁZ | S29: KORREKCIÓS FAKTOR
C30: Szűrő ház méret | D30: Cső méret | E30: Max.üz. nyomás | F30: Átáramlási képesség at 7 bar(g), 20 °C | H30: Méretek | L30: Tömeg | M30: Szűrő betét típus | N30: Nettó ár (Csak szűrőház) [HUF] | S30: Üzemi nyomás [bar] | T30: 2 | U30: 3 | V30: 4 | W30: 5 | X30: 6 | Y30: 7 | Z30: 8 | AA30: 9 | AB30: 10 | AC30: 11 | AD30: 12 | AE30: 13 | AF30: 14 | AG30: 15 | AH30: 16
S31: Üzemi nyomás [psi] | T31: 29 | U31: 44 | V31: 58 | W31: 72 | X31: 87 | Y31: 100 | Z31: 115 | AA31: 130 | AB31: 145 | AC31: 160 | AD31: 174 | AE31: 189 | AF31: 203 | AG31: 218 | AH31: 232
D32: inch | E32: bar/psi | F32: Nm³/h | G32: scfm | H32: A [mm] | I32: B [mm] | J32: C [mm] | K32: D [mm] | L32: kg | S32: Korrekciós faktor | T32: 0.38 | U32: 0.5 | V32: 0.63 | W32: 0.75 | X32: 0.88 | Y32: 1 | Z32: 1.13 | AA32: 1.25 | AB32: 1.38 | AC32: 1.5 | AD32: 1.63 | AE32: 1.75 | AF32: 1.88 | AG32: 2 | AH32: 2.13
C33: AF 0056 | D33: 3/8’’ | E33: 16/232 | F33: 60 | G33: 35 | H33: 187 | I33: 88 | J33: 20 | K33: 60 | L33: 0.7 | M33: 06050 | N33: =VLOOKUP(C33,Árlista!$B:$F,3,0) -> 13 930,-Ft | T33: AF 0106 | U33: =VLOOKUP($T$33,$C$33:$M$44,2,0) -> 3/4’’ | V33: =VLOOKUP($T$33,$C$33:$M$44,3,0) -> 16/232 | W33: 16 | X33: =VLOOKUP($T$33,$C$33:$M$44,4,0) -> 120 | Y33: =VLOOKUP($T$33,$C$33:$M$44,6,0) -> 257 | Z33: =VLOOKUP($T$33,$C$33:$M$44,7,0) -> 88 | AA33: =VLOOKUP($T$33,$C$33:$M$44,8,0) -> 20 | AB33: =VLOOKUP($T$33,$C$33:$M$44,9,0) -> 80 | AC33: =VLOOKUP($T$33,$C$33:$M$44,10,0) -> 0.8 | AD33: =VLOOKUP($T$33,$C$33:$M$44,11,0) -> 14050
C34: AF 0076 | D34: 1/2’’ | E34: 16/232 | F34: 78 | G34: 46 | H34: 187 | I34: 88 | J34: 20 | K34: 60 | L34: 0.7 | M34: 07050 | N34: =VLOOKUP(C34,Árlista!$B:$F,3,0) -> 15 670,-Ft
C35: AF 0106 | D35: 3/4’’ | E35: 16/232 | F35: 120 | G35: 70 | H35: 257 | I35: 88 | J35: 20 | K35: 80 | L35: 0.8 | M35: 14050 | N35: =VLOOKUP(C35,Árlista!$B:$F,3,0) -> 18 470,-Ft | T35: Cikkszám :
C36: AF 0186 | D36: 1’’ | E36: 16/232 | F36: 198 | G36: 116 | H36: 263 | I36: 125 | J36: 32 | K36: 100 | L36: 1.8 | M36: 12075 | N36: =VLOOKUP(C36,Árlista!$B:$F,3,0) -> 26 470,-Ft | T36: Termék megnevezése: | U36: =T33 -> AF 0106
C37: AF 0306 | D37: 1’’ | E37: 16/232 | F37: 335 | G37: 197 | H37: 363 | I37: 125 | J37: 32 | K37: 120 | L37: 2.5 | M37: 22075 | N37: =VLOOKUP(C37,Árlista!$B:$F,3,0) -> 28 030,-Ft | T37: Csatlakozási méret: | U37: =U33 -> 3/4’’
C38: AF 0476 | D38: 1 1/2’’ | E38: 16/232 | F38: 510 | G38: 300 | H38: 461 | I38: 125 | J38: 32 | K38: 140 | L38: 2.5 | M38: 32075 | N38: =VLOOKUP(C38,Árlista!$B:$F,3,0) -> 33 110,-Ft | T38: Max üzemi nyomás : | U38: =V33&" bar/psi" -> 16/232 bar/psi
C39: AF 0706 | D39: 1 1/2’’ | E39: 16/232 | F39: 780 | G39: 459 | H39: 640 | I39: 125 | J39: 32 | K39: 160 | L39: 3.2 | M39: 50075 | N39: =VLOOKUP(C39,Árlista!$B:$F,3,0) -> 39 520,-Ft | T39: Átbocsátó képesség (7 bar nyomáson) : | U39: =X33&" Nm³/h" -> 120 Nm³/h
C40: AF 0946 | D40: 2’’ | E40: 16/232 | F40: 1000 | G40: 588 | H40: 684 | I40: 163 | J40: 43 | K40: 520 | L40: 5.1 | M40: 51090 | N40: =VLOOKUP(C40,Árlista!$B:$F,3,0) -> 67 910,-Ft | T40: Korrekciós faktor (5 bar) : | U40: 0.75
C41: AF 1506 | D41: 2’’ | E41: 16/232 | F41: 1500 | G41: 882 | H41: 935 | I41: 163 | J41: 43 | K41: 770 | L41: 7.1 | M41: 76090 | N41: =VLOOKUP(C41,Árlista!$B:$F,3,0) -> 82 420,-Ft | T41: Korrekciós faktor (10 bar) : | U41: 1.38
C42: AF 1756 | D42: 2 1/2’’ | E42: 16/232 | F42: 1680 | G42: 990 | H42: 935 | I42: 163 | J42: 43 | K42: 770 | L42: 6.9 | M42: 76090 | N42: =VLOOKUP(C42,Árlista!$B:$F,3,0) -> 135 210,-Ft | T42: Korrekciós faktor (15 bar): | U42: 2
C43: AF 2006 | D43: 3 | E43: 16/232 | F43: 2160 | G43: 1270 | H43: 795 | I43: 240 | J43: 59 | K43: 630 | L43: 12.9 | M43: 51140 | N43: =VLOOKUP(C43,Árlista!$B:$F,3,0) -> 163 040,-Ft | T43: A méret (magasság) : | U43: =Y33&" mm" -> 257 mm
C44: AF 2406 | D44: 3 | E44: 16/232 | F44: 2760 | G44: 1620 | H44: 1000 | I44: 240 | J44: 59 | K44: 780 | L44: 14 | M44: 75140 | N44: =VLOOKUP(C44,Árlista!$B:$F,3,0) -> 201 360,-Ft | T44: B méret (beépítési szélesség) : | U44: =Z33&" mm" -> 88 mm
C45: MEGJEGYZÉS - B filter betét tisztítható ultrahangos tisztítással vagy kifúvatással. A tisztítás gyakorisága a felhasználás függvénye. Ha szükséges, akkor cserélje új szűrőbetétre. - Szűrő betéteket ’’A, A2, H2’’ rendszeresen kell cserélni a felhasználás függvényében, de legkevesebb 6 havonként. Aktívszén szűrő nem működik olajjal telített állapotban! | T45: C méret : | U45: =AA33&" mm" -> 20 mm
T46: D méret (minimális szerelési magasság) : | U46: =AB33&" mm" -> 80 mm
C47: SZŰRŐ BETÉT | F47: 15 µm | G47: 3 µm | H47: 1 µm | I47: 0,1 µm | J47: 0,01 µm | T47: Tömeg : | U47: =AC33&" kg" -> 0,8 kg
F48: B | G48: P | H48: R | I48: M | J48: S | K48: A | L48: A² | M48: H² | N48: MS² | T48: Szűrőbetét típusa : | U48: =AD33 -> 14050
F49: előszűrő | G49: előszűrő | H49: előszűrő | I49: mikroszűrő | J49: finomszűrő | K49: act. carbon | L49: adsorption | M49: catalyst | N49: adsorption | T49: Üzemi hőmérsékleti tartomány : | U49: 1,5 - 65 °C
F50: sintered brass | G50: acrylic fibers, cellulose | H50: borosilicate micro fibres | K50: borosilicate micro fibres
K51: activated carbon | M51: hopcalite
C52: Szűrő betét típus | D52: Átáramlási képesség | E52: Corresponding ház | F52: Nettó Ár [HUF] | G52: Nettó Ár [HUF] | L52: Nettó Ár [HUF] | M52: Nettó Ár [HUF] | N52: Nettó Ár [HUF]
T53: 14050
D54: [Nm³/h] | X54: B | Y54: P | Z54: R | AA54: M | AB54: S | AC54: A
C55: 6050 | D55: 60 | E55: AF 0056 | F55: =VLOOKUP($C55&F$48,Árlista!$B:$F,3,0) -> 6 790,-Ft | G55: =VLOOKUP($C55&G$48,Árlista!$B:$F,3,0) -> 5 900,-Ft | H55: =VLOOKUP($C55&H$48,Árlista!$B:$F,3,0) -> 5 900,-Ft | I55: =VLOOKUP($C55&I$48,Árlista!$B:$F,3,0) -> 5 900,-Ft | J55: =VLOOKUP($C55&J$48,Árlista!$B:$F,3,0) -> 5 900,-Ft | K55: =VLOOKUP($C55&K$48,Árlista!$B:$F,3,0) -> 5 900,-Ft | L55: - | M55: - | N55: - | T55: Cikkszám :
C56: 7050 | D56: 78 | E56: AF 0076 | F56: =VLOOKUP($C56&F$48,Árlista!$B:$F,3,0) -> 8 400,-Ft | G56: =VLOOKUP($C56&G$48,Árlista!$B:$F,3,0) -> 7 300,-Ft | H56: =VLOOKUP($C56&H$48,Árlista!$B:$F,3,0) -> 7 300,-Ft | I56: =VLOOKUP($C56&I$48,Árlista!$B:$F,3,0) -> 7 300,-Ft | J56: =VLOOKUP($C56&J$48,Árlista!$B:$F,3,0) -> 7 300,-Ft | K56: =VLOOKUP($C56&K$48,Árlista!$B:$F,3,0) -> 7 300,-Ft | L56: =VLOOKUP($C56&L$48,Árlista!$B:$F,3,0) -> 21 150,-Ft | M56: =VLOOKUP($C56&M$48,Árlista!$B:$F,3,0) -> 24 310,-Ft | N56: =VLOOKUP($C56&N$48,Árlista!$B:$F,3,0) -> 22 070,-Ft | T56: Termék megnevezése : | U56: 14050 A | X56: =$T53&" "&X54 -> 14050 B | Y56: =$T53&" "&Y54 -> 14050 P | Z56: 14050 R | AA56: 14050 M | AB56: 14050 S | AC56: 14050 A
C57: 14050 | D57: 120 | E57: AF 0106 | F57: =VLOOKUP($C57&F$48,Árlista!$B:$F,3,0) -> 10 830,-Ft | G57: =VLOOKUP($C57&G$48,Árlista!$B:$F,3,0) -> 9 400,-Ft | H57: =VLOOKUP($C57&H$48,Árlista!$B:$F,3,0) -> 9 400,-Ft | I57: =VLOOKUP($C57&I$48,Árlista!$B:$F,3,0) -> 9 400,-Ft | J57: =VLOOKUP($C57&J$48,Árlista!$B:$F,3,0) -> 9 400,-Ft | K57: =VLOOKUP($C57&K$48,Árlista!$B:$F,3,0) -> 9 400,-Ft | L57: =VLOOKUP($C57&L$48,Árlista!$B:$F,3,0) -> 23 370,-Ft | M57: =VLOOKUP($C57&M$48,Árlista!$B:$F,3,0) -> 31 130,-Ft | N57: =VLOOKUP($C57&N$48,Árlista!$B:$F,3,0) -> 26 410,-Ft | T57: Szűrési tartomány szilárd szennyeződésre : | X57: 15 µ | Y57: 3 µ | Z57: 1 µ | AA57: 0,1 µ | AB57: 0,01 µ
C58: 12075 | D58: 198 | E58: AF 0186 | F58: =VLOOKUP($C58&F$48,Árlista!$B:$F,3,0) -> 14 210,-Ft | G58: =VLOOKUP($C58&G$48,Árlista!$B:$F,3,0) -> 11 840,-Ft | H58: =VLOOKUP($C58&H$48,Árlista!$B:$F,3,0) -> 11 840,-Ft | I58: =VLOOKUP($C58&I$48,Árlista!$B:$F,3,0) -> 11 840,-Ft | J58: =VLOOKUP($C58&J$48,Árlista!$B:$F,3,0) -> 11 840,-Ft | K58: =VLOOKUP($C58&K$48,Árlista!$B:$F,3,0) -> 11 840,-Ft | L58: =VLOOKUP($C58&L$48,Árlista!$B:$F,3,0) -> 28 650,-Ft | M58: =VLOOKUP($C58&M$48,Árlista!$B:$F,3,0) -> 38 310,-Ft | N58: =VLOOKUP($C58&N$48,Árlista!$B:$F,3,0) -> 33 390,-Ft | T58: Szűrési osztály szilárd szenny. (ISO 8573-1): | U58: 1 | X58: 7 | Y58: 6 | Z58: 3 | AA58: 2 | AB58: 1 | AC58: 1
C59: 22075 | D59: 335 | E59: AF 0306 | F59: =VLOOKUP($C59&F$48,Árlista!$B:$F,3,0) -> 20 050,-Ft | G59: =VLOOKUP($C59&G$48,Árlista!$B:$F,3,0) -> 16 700,-Ft | H59: =VLOOKUP($C59&H$48,Árlista!$B:$F,3,0) -> 16 700,-Ft | I59: =VLOOKUP($C59&I$48,Árlista!$B:$F,3,0) -> 16 700,-Ft | J59: =VLOOKUP($C59&J$48,Árlista!$B:$F,3,0) -> 16 700,-Ft | K59: =VLOOKUP($C59&K$48,Árlista!$B:$F,3,0) -> 16 700,-Ft | L59: =VLOOKUP($C59&L$48,Árlista!$B:$F,3,0) -> 32 230,-Ft | M59: =VLOOKUP($C59&M$48,Árlista!$B:$F,3,0) -> 60 730,-Ft | N59: =VLOOKUP($C59&N$48,Árlista!$B:$F,3,0) -> 37 550,-Ft | T59: Szűrési tartomány maradék olajtartalomra : | U59: < 0,005 mg/m³ | X59: - | Y59: - | Z59: - | AA59: < 0,1 mg/m³ | AB59: < 0,01 mg/m³ | AC59: < 0,005 mg/m³
C60: 32075 | D60: 510 | E60: AF 0476 | F60: =VLOOKUP($C60&F$48,Árlista!$B:$F,3,0) -> 24 250,-Ft | G60: =VLOOKUP($C60&G$48,Árlista!$B:$F,3,0) -> 20 200,-Ft | H60: =VLOOKUP($C60&H$48,Árlista!$B:$F,3,0) -> 20 200,-Ft | I60: =VLOOKUP($C60&I$48,Árlista!$B:$F,3,0) -> 20 200,-Ft | J60: =VLOOKUP($C60&J$48,Árlista!$B:$F,3,0) -> 20 200,-Ft | K60: =VLOOKUP($C60&K$48,Árlista!$B:$F,3,0) -> 20 200,-Ft | L60: =VLOOKUP($C60&L$48,Árlista!$B:$F,3,0) -> 35 240,-Ft | M60: =VLOOKUP($C60&M$48,Árlista!$B:$F,3,0) -> 84 110,-Ft | N60: =VLOOKUP($C60&N$48,Árlista!$B:$F,3,0) -> 41 050,-Ft | T60: Szűrési osztály maradék olajtart. (ISO 8573-1): | U60: 1 | X60: - | Y60: - | Z60: - | AA60: 2 | AB60: 1 | AC60: 1
C61: 50075 | D61: 780 | E61: AF 0706 | F61: =VLOOKUP($C61&F$48,Árlista!$B:$F,3,0) -> 28 750,-Ft | G61: =VLOOKUP($C61&G$48,Árlista!$B:$F,3,0) -> 25 770,-Ft | H61: =VLOOKUP($C61&H$48,Árlista!$B:$F,3,0) -> 25 770,-Ft | I61: =VLOOKUP($C61&I$48,Árlista!$B:$F,3,0) -> 25 770,-Ft | J61: =VLOOKUP($C61&J$48,Árlista!$B:$F,3,0) -> 25 770,-Ft | K61: =VLOOKUP($C61&K$48,Árlista!$B:$F,3,0) -> 25 770,-Ft | L61: =VLOOKUP($C61&L$48,Árlista!$B:$F,3,0) -> 39 690,-Ft | M61: =VLOOKUP($C61&M$48,Árlista!$B:$F,3,0) -> 130 130,-Ft | N61: =VLOOKUP($C61&N$48,Árlista!$B:$F,3,0) -> 46 250,-Ft | T61: Nyomásesés új betét esetében : | U61: 60 mbar | X61: 20 mbar | Y61: 10 mbar | Z61: 20 mbar | AA61: 50 mbar | AB61: 80 mbar | AC61: 60 mbar
C62: 51090 | D62: 1000 | E62: AF 0946 | F62: =VLOOKUP($C62&F$48,Árlista!$B:$F,3,0) -> 41 200,-Ft | G62: =VLOOKUP($C62&G$48,Árlista!$B:$F,3,0) -> 35 800,-Ft | H62: =VLOOKUP($C62&H$48,Árlista!$B:$F,3,0) -> 35 800,-Ft | I62: =VLOOKUP($C62&I$48,Árlista!$B:$F,3,0) -> 35 800,-Ft | J62: =VLOOKUP($C62&J$48,Árlista!$B:$F,3,0) -> 35 800,-Ft | K62: =VLOOKUP($C62&K$48,Árlista!$B:$F,3,0) -> 35 800,-Ft | L62: - | M62: - | N62: - | T62: Megengedett nyomásesés eltömődésig : | U62: - | X62: 500 mbar | Y62: 350 mbar | Z62: 350 mbar | AA62: 350 mbar | AB62: 350 mbar | AC62: -
C63: 76090 | D63: 1500 | E63: AF 1506 | F63: =VLOOKUP($C63&F$48,Árlista!$B:$F,3,0) -> 50 140,-Ft | G63: =VLOOKUP($C63&G$48,Árlista!$B:$F,3,0) -> 43 590,-Ft | H63: =VLOOKUP($C63&H$48,Árlista!$B:$F,3,0) -> 43 590,-Ft | I63: =VLOOKUP($C63&I$48,Árlista!$B:$F,3,0) -> 43 590,-Ft | J63: =VLOOKUP($C63&J$48,Árlista!$B:$F,3,0) -> 43 590,-Ft | K63: =VLOOKUP($C63&K$48,Árlista!$B:$F,3,0) -> 43 590,-Ft | L63: - | M63: - | N63: - | T63: Szűrőbetét anyaga: | U63: boroszilikát mikroszál és aktívszén | X63: szinterezett réz -tisztítható | Y63: akrilszálas cellulóz | Z63: boroszilikát mikroszál | AA63: boroszilikát mikroszál | AB63: boroszilikát mikroszál | AC63: boroszilikát mikroszál és aktívszén
C64: 76090 | D64: 1680 | E64: AF 1756 | F64: =VLOOKUP($C64&F$48,Árlista!$B:$F,3,0) -> 50 140,-Ft | G64: =VLOOKUP($C64&G$48,Árlista!$B:$F,3,0) -> 43 590,-Ft | H64: =VLOOKUP($C64&H$48,Árlista!$B:$F,3,0) -> 43 590,-Ft | I64: =VLOOKUP($C64&I$48,Árlista!$B:$F,3,0) -> 43 590,-Ft | J64: =VLOOKUP($C64&J$48,Árlista!$B:$F,3,0) -> 43 590,-Ft | K64: =VLOOKUP($C64&K$48,Árlista!$B:$F,3,0) -> 43 590,-Ft | L64: - | M64: - | N64: - | T64: Szűrőház típusa : | U64: AF 0106 | X64: AF 0106 | Y64: AF 0106 | Z64: AF 0106 | AA64: AF 0106 | AB64: AF 0106 | AC64: AF 0106
C65: 51140 | D65: 2160 | E65: AF 2006 | F65: =VLOOKUP($C65&F$48,Árlista!$B:$F,3,0) -> 60 940,-Ft | G65: =VLOOKUP($C65&G$48,Árlista!$B:$F,3,0) -> 55 390,-Ft | H65: =VLOOKUP($C65&H$48,Árlista!$B:$F,3,0) -> 55 390,-Ft | I65: =VLOOKUP($C65&I$48,Árlista!$B:$F,3,0) -> 55 390,-Ft | J65: =VLOOKUP($C65&J$48,Árlista!$B:$F,3,0) -> 55 390,-Ft | K65: =VLOOKUP($C65&K$48,Árlista!$B:$F,3,0) -> 55 390,-Ft | L65: - | M65: - | N65: - | T65: Üzemi hőmérsékleti tartomány : | U65: 1,5 - 65 °C | X65: 1,5 - 65 °C | Y65: 1,5 - 65 °C | Z65: 1,5 - 65 °C | AA65: 1,5 - 65 °C | AB65: 1,5 - 65 °C | AC65: 1,5 - 65 °C
C66: 75140 | D66: 2760 | E66: AF 2406 | F66: =VLOOKUP($C66&F$48,Árlista!$B:$F,3,0) -> 70 620,-Ft | G66: =VLOOKUP($C66&G$48,Árlista!$B:$F,3,0) -> 64 190,-Ft | H66: =VLOOKUP($C66&H$48,Árlista!$B:$F,3,0) -> 64 190,-Ft | I66: =VLOOKUP($C66&I$48,Árlista!$B:$F,3,0) -> 64 190,-Ft | J66: =VLOOKUP($C66&J$48,Árlista!$B:$F,3,0) -> 64 190,-Ft | K66: =VLOOKUP($C66&K$48,Árlista!$B:$F,3,0) -> 64 190,-Ft | L66: - | M66: - | N66: - | T66: Javasolt csereintervallum: | U66: Félévente | X66: Megengedett nyomásesés elérésekor, vagy évente | Y66: Megengedett nyomásesés elérésekor, vagy évente | Z66: Megengedett nyomásesés elérésekor, vagy évente | AA66: Megengedett nyomásesés elérésekor, vagy évente | AB66: Megengedett nyomásesés elérésekor, vagy évente | AC66: Félévente | AD66: Megengedett nyomásesés elérésekor, vagy évente
C68: KONDENZÁTUM LEERESZTŐ | E68: MCD-B | F68: MCD | G68: AOK16B | H68: AOK 20B | I68: TD 16M | J68: CDI 16B | K68: ECD 15B | L68: ECD 40B | M68: ECD 90B | N68: ECD 150B
C69: Nettó ár [HUF] | E69: =VLOOKUP(E68,Árlista!$B:$F,3,0) -> 2 020,-Ft | F69: =VLOOKUP(F68,Árlista!$B:$F,3,0) -> 2 620,-Ft | G69: =VLOOKUP(G68,Árlista!$B:$F,3,0) -> 7 060,-Ft | H69: =VLOOKUP(H68,Árlista!$B:$F,3,0) -> 11 130,-Ft | I69: =VLOOKUP(I68,Árlista!$B:$F,3,0) -> 21 150,-Ft | J69: =VLOOKUP(J68,Árlista!$B:$F,3,0) -> 39 520,-Ft | K69: =VLOOKUP(K68,Árlista!$B:$F,3,0) -> 46 160,-Ft | L69: =VLOOKUP(L68,Árlista!$B:$F,3,0) -> 47 100,-Ft | M69: =VLOOKUP(M68,Árlista!$B:$F,3,0) -> 47 720,-Ft | N69: =VLOOKUP(N68,Árlista!$B:$F,3,0) -> 58 200,-Ft
E71: EMD 12 | F71: EMD 12A | G71: EMD 12C | H71: EMD 25 | I71: EMD 75 | J71: EMD 12 Vac | K71: EMD 12A Vac | L71: EMD 12A Vdc | M71: IED
E72: =VLOOKUP(E71,Árlista!$B:$F,3,0) -> 33 630,-Ft | F72: =VLOOKUP(F71,Árlista!$B:$F,3,0) -> 36 290,-Ft | G72: =VLOOKUP(G71,Árlista!$B:$F,3,0) -> 39 470,-Ft | H72: =VLOOKUP(H71,Árlista!$B:$F,3,0) -> 41 930,-Ft | I72: =VLOOKUP(I71,Árlista!$B:$F,3,0) -> 43 120,-Ft | J72: =VLOOKUP(J71,Árlista!$B:$F,3,0) -> 40 550,-Ft | K72: =VLOOKUP(K71,Árlista!$B:$F,3,0) -> 46 750,-Ft | L72: =VLOOKUP(L71,Árlista!$B:$F,3,0) -> 43 830,-Ft | M72: =VLOOKUP(M71,Árlista!$B:$F,3,0) -> 24 110,-Ft
C74: DIFFERENTIAL PRESSURE INDICATORS | E74: PDI 16 | F74: MDM 60 | G74: MDM 60C | H74: MDM 60E | I74: MDA60 | J74: MDM 40 | K74: MDM 40C | L74: EPG 60 | M74: EPG 60SN
C75: Nettó ár [HUF] | E75: =VLOOKUP(E74,Árlista!$B:$F,3,0) -> 4 540,-Ft | F75: =VLOOKUP(F74,Árlista!$B:$F,3,0) -> 10 470,-Ft | G75: =VLOOKUP(G74,Árlista!$B:$F,3,0) -> 14 630,-Ft | H75: =VLOOKUP(H74,Árlista!$B:$F,3,0) -> 18 470,-Ft | I75: =VLOOKUP(I74,Árlista!$B:$F,3,0) -> 14 270,-Ft | J75: =VLOOKUP(J74,Árlista!$B:$F,3,0) -> 10 060,-Ft | K75: =VLOOKUP(K74,Árlista!$B:$F,3,0) -> 14 050,-Ft | L75: =VLOOKUP(L74,Árlista!$B:$F,3,0) -> 38 200,-Ft | M75: =VLOOKUP(M74,Árlista!$B:$F,3,0) -> 52 330,-Ft
C77: KIEGÉSZÍTŐK | E77: Vent for AOK 20B | F77: AF 0056 to AF 2406 | G77: AF 0056 to AF 0106 | H77: AF 0186 to AF 0706 | I77: AF 0056 to AF 0106 | J77: AF 0056 to AF 0106 | K77: AF 0186 to AF 0706 | L77: AF 0186 to AF 0706 | M77: AF 0056 to AF 0106
E78: Nipple | F78: SG | G78: WS | H78: WM | I78: 2S | J78: 3S | K78: 2M | L78: 3M | M78: AK-3/8”, AK-½”, AK-3/4”
C79: Nettó ár [HUF] | E79: =VLOOKUP(E78,Árlista!$B:$F,3,0) -> 4 810,-Ft | F79: =VLOOKUP(F78,Árlista!$B:$F,3,0) -> 4 500,-Ft | G79: =VLOOKUP(G78,Árlista!$B:$F,3,0) -> 11 130,-Ft | H79: =VLOOKUP(H78,Árlista!$B:$F,3,0) -> 13 930,-Ft | I79: =VLOOKUP(I78,Árlista!$B:$F,3,0) -> 2 950,-Ft | J79: =VLOOKUP(J78,Árlista!$B:$F,3,0) -> 3 830,-Ft | K79: =VLOOKUP(K78,Árlista!$B:$F,3,0) -> 4 540,-Ft | L79: =VLOOKUP(L78,Árlista!$B:$F,3,0) -> 5 600,-Ft | M79: =VLOOKUP(M78,Árlista!$B:$F,3,0) -> 22 150,-Ft
E81: AF 0186 to AF 0706 | G81: AF 0946 to AF 2406
E82: AK-1”, AK-1½” | G82: AK-2”, AK-2½”, AK-3”
E83: =VLOOKUP(E82,Árlista!$B:$F,3,0) -> 25 740,-Ft | G83: =VLOOKUP(G82,Árlista!$B:$F,3,0) -> 64 740,-Ft
D114: Szűrőház | E114: Betét | F114: Méretezés | G114: 1 | H114: 2 | I114: 3 | J114: 4
D115: AF 0056 | E115: 6050 | F115: 3/8’’ | G115: 56 | H115: 60 | I115: 10 | J115: 1000
D116: AF 0076 | E116: 7050 | F116: 1/2’’ | G116: 76 | H116: 80 | I116: 13 | J116: 1300
D117: AF 0106 | E117: 14050 | F117: 3/4’’ | G117: 106 | H117: 120 | I117: 20 | J117: 2000
D118: AF 0186 | E118: 12075 | F118: 1’’ | G118: 186 | H118: 200 | I118: 33 | J118: 3300
D119: AF 0306 | E119: 22075 | F119: 1’’ | G119: 306 | H119: 340 | I119: 60 | J119: 5600
D120: AF 0476 | E120: 32075 | F120: 1 1/2’’ | G120: 476 | H120: 510 | I120: 85 | J120: 8600
D121: AF 0706 | E121: 50075 | F121: 1 1/2’’ | G121: 706 | H121: 800 | I121: 130 | J121: 13000
D122: AF 0946 | E122: 51090 | F122: 2’’ | G122: 946 | H122: 1000 | I122: 170 | J122: 165000
D123: AF 1506 | E123: 76090 | F123: 2’’ | G123: 1506 | H123: 1500 | I123: 250 | J123: 250000
D124: AF 1756 | E124: 76090 | F124: 2 1/2’’ | G124: 1756 | H124: - | I124: - | J124: -
D125: AF 2006 | E125: 51140 | F125: 3 | G125: 2006 | H125: - | I125: - | J125: -
D126: AF 2406 | E126: 75140 | F126: 3 | G126: 2406 | H126: 2400 | I126: 400 | J126: -
D129: Gyártó | E129: Méretezés | F129: 3 µ | G129: 1 µ | H129: 0,1 µ | I129: 0,01 µ | J129: Aktív szén | K129: AF 0106 | L129: A
D130: OMEGA | E130: 1 | F130: P | G130: R | H130: M | I130: S | J130: A
D131: ALUP / AGRE | E131: 2 | F131: PF | G131: MF | H131: DF | I131: SF | J131: AF | K131: =D131&": "&M131&" "&L131 -> ALUP / AGRE: AF 120 | L131: =VLOOKUP(K$129,D$115:J$126,5,0) -> 120 | M131: =HLOOKUP(L$129,F$130:J$138,2,0) -> AF
D132: ABAC / BALMA | E132: 2 | F132: AQF | G132: AEF | H132: APF | I132: AHF | J132: ACF | K132: =D132&": "&M132&" "&L132 -> ABAC / BALMA: ACF 120 | L132: =VLOOKUP(K$129,D$115:J$126,5,0) -> 120 | M132: =HLOOKUP(L$129,F$130:J$138,3,0) -> ACF
D133: CECATTO | E133: 3 | F133: FPRO | G133: FMO | H133: FPRE | I133: FMM | J133: FCA | K133: CECATTO: FCA 20 | L133: =VLOOKUP(K$129,D$115:J$126,6,0) -> 20 | M133: =HLOOKUP(L$129,F$130:J$138,4,0) -> FCA
D134: CHICAGO PNEUMATIC | E134: 2 | F134: CPFP | G134: CPFM | H134: CPFD | I134: CPFS | J134: CPFA | K134: CHICAGO PNEUMATIC: CPFA 120 | L134: 120 | M134: =HLOOKUP(L$129,F$130:J$138,5,0) -> CPFA
D135: MARK | E135: 3 | F135: FPRO | G135: FMO | H135: FPRE | I135: FMM | J135: FCA | K135: MARK: FCA 20 | L135: =VLOOKUP(K$129,D$115:J$126,6,0) -> 20 | M135: =HLOOKUP(L$129,F$130:J$138,6,0) -> FCA
D136: WHORTINGTON | E136: 2 | F136: DP | G136: DM | H136: DD | I136: DS | J136: DA | K136: WHORTINGTON: DA 120 | L136: 120 | M136: =HLOOKUP(L$129,F$130:J$138,7,0) -> DA
D137: FIAC | E137: 4 | F137: FQ | G137: FP | H137: FP | I137: FD | J137: FC | K137: FIAC: FC 2000 | L137: =VLOOKUP(K$129,D$115:J$126,7,0) -> 2000 | M137: =HLOOKUP(L$129,F$130:J$138,8,0) -> FC
D138: ZONDER | E138: 3 | F138: - | G138: FMD | H138: FPRE | I138: FMM | J138: - | K138: ZONDER: - 20 | L138: =VLOOKUP(K$129,D$115:J$126,6,0) -> 20 | M138: =HLOOKUP(L$129,F$130:J$138,9,0) -> -

Sheet OMEGA WOS
A1: TARTALOM | C1: WOS series
A2: Árlista
A3: Megrendelő
A4: ABAC dugattyús kompresszorok
A5: ABAC CleanAir fogászati kompresszor
A6: AGRE ipari dugattyús kompresszorok
A7: ALUP SONETTO csavarkomp 2,2-15kW
A8: ALUP SCK csavarkomp 4-75kW
A9: ALUP LARGO, ALLEGRO csavarkompr
A10: ALUP Hűtveszárítók
A11: ALUP szűrők
A12: ALUP SpiralAir -Scroll kompresszor
A13: ALUP dugattyús kompresszorok
A14: OMEGA vonali szűrők
A15: OMEGA ciklonszűrők
A16: OMEGA olaj-víz szétválasztók
A17: ABAC sűrítők
A18: CONDOR nyomáskapcsolók | Q18: INDEX
A19: Tartályok
A20: Egyéb alaktrészek
C29: WOS SERIES
C30: WOS MODEL | D30: Kompresszor kapacitás 15 °C 60%RH / 25 °C 60%RH / 40 °C 100%RH | E30: Méretek | H30: Tömeg | I30: Szűrő betét típus | J30: Nettó ár [HUF]
D32: [Nm³/min] | E32: A [mm] | F32: B [mm] | G32: C [mm] | H32: kg
C33: WOS 4 | D33: 4,82 / 4,04 / 2,05 | E33: 416 | F33: 243 | G33: 411 | H33: 2.77 | I33: PP,AK, WOS4 | J33: =VLOOKUP(C33,Árlista!$B:$F,3,0) -> 88 530,-Ft
C34: WOS 8 | D34: 10,0 / 8,4 / 4,25 | E34: 730 | F34: 343 | G34: 680 | H34: 11.77 | I34: PP,AK, WOS8 | J34: =VLOOKUP(C34,Árlista!$B:$F,3,0) -> 135 840,-Ft
C35: WOS 20 | D35: 24,4 / 20,5 / 10,37 | E35: 820 | F35: 366 | G35: 940 | H35: 16.23 | I35: PP,AK, WOS20 | J35: =VLOOKUP(C35,Árlista!$B:$F,3,0) -> 191 610,-Ft
C36: WOS 35 | D36: 42,3 / 35,5 / 17,99 | E36: 960 | F36: 386 | G36: 1137 | H36: 21.54 | I36: PP,AK, WOS35 | J36: =VLOOKUP(C36,Árlista!$B:$F,3,0) -> 260 250,-Ft
C37: Hűvös / Enyhe / Forró klímatikus viszony esetén. MEGJEGYZÉS - Ár csak a szűrőházra vonatkozik
C39: SZŰRŐ BETÉT
F40: PP | G40: AK
C41: Szűrő betét típus | E41: Corresponding ház | F41: Nettó Ár [HUF]
C44: WOS 4 | E44: WOS-4 | F44: =VLOOKUP(C44&F$40,Árlista!$B:$F,3,0) -> 15 210,-Ft | G44: =VLOOKUP(C44&G$40,Árlista!$B:$F,3,0) -> 15 210,-Ft
C45: WOS 8 | E45: WOS-8 | F45: =VLOOKUP(C45&F$40,Árlista!$B:$F,3,0) -> 21 300,-Ft | G45: =VLOOKUP(C45&G$40,Árlista!$B:$F,3,0) -> 21 300,-Ft
C46: WOS 20 | E46: WOS-20 | F46: =VLOOKUP(C46&F$40,Árlista!$B:$F,3,0) -> 30 990,-Ft | G46: =VLOOKUP(C46&G$40,Árlista!$B:$F,3,0) -> 30 990,-Ft
C47: WOS 35 | E47: WOS-35 | F47: =VLOOKUP(C47&F$40,Árlista!$B:$F,3,0) -> 50 170,-Ft | G47: =VLOOKUP(C47&G$40,Árlista!$B:$F,3,0) -> 50 170,-Ft
C49: WATER QUALITY TEST KIT | E49: WQTK
C50: Nettó ár [HUF] | E50: =VLOOKUP(E49,Árlista!$B:$F,3,0) -> 12 170,-Ft
C53: WOSm series
Q56: INDEX
C67: WOSm SERIES
C68: WOSm MODEL | D68: Átáramlási képesség 15 °C 60%RH / 25 °C 60%RH / 40 °C 100%RH | E68: Méretek | J68: Tömeg | K68: Szűrő betét típus | L68: Nettó ár [HUF]
D70: [Nm³/h] | E70: A [mm] | F70: B [mm] | G70: C [mm] | H70: D [mm] | I70: E [mm] | J70: kg
C71: WOSm 1 | D71: 1,23 / 1,08 / 0,62 | E71: 483 | F71: 106 | G71: 80 | H71: 335 | I71: 50 | J71: 1.21 | K71: 0305 | L71: =VLOOKUP(C71,Árlista!$B:$F,3,0) -> 38 220,-Ft
C72: WOSm 2 | D72: 2,54 / 2,23 / 1,28 | E72: 816 | F72: 106 | G72: 80 | H72: 670 | I72: 50 | J72: 1.75 | K72: 0310 | L72: =VLOOKUP(C72,Árlista!$B:$F,3,0) -> 45 980,-Ft
C74: SZŰRŐ BETÉT
F75: WOSm
C76: Szűrő betét típus | D76: Átáramlási képesség 15 °C 60%RH / 25 °C 60%RH / 40 °C 100%RH | E76: Corresponding ház | F76: Nettó Ár [HUF]
D78: [Nm³/h]
C79: WOS-m1 | D79: 1,23 / 1,08 / 0,62 | E79: CKL-CHP 003 | F79: =VLOOKUP(C79,Árlista!$B:$F,3,0) -> 21 050,-Ft
C80: WOS-m2 | D80: 2,54 / 2,23 / 1,28 | E80: CKL-CHP 005 | F80: =VLOOKUP(C80,Árlista!$B:$F,3,0) -> 28 180,-Ft
C82: WATER QUALITY TEST KIT | E82: WQTK
C83: Nettó ár [HUF] | E83: =VLOOKUP(E82,Árlista!$B:$F,3,0) -> 12 170,-Ft

Sheet AGRE ip dugattyús
A1: TARTALOM
A2: Árlista
A3: Megrendelő
A4: ABAC dugattyús kompresszorok
A5: ABAC CleanAir fogászati kompresszor
A6: AGRE ipari dugattyús kompresszorok
A7: ALUP SONETTO csavarkomp 2,2-15kW
A8: ALUP SCK csavarkomp 4-75kW
A9: ALUP LARGO, ALLEGRO csavarkompr
A10: ALUP Hűtveszárítók | D10: AKK | F10: AEK | I10: AGK
A11: ALUP szűrők | C11: Alup cikkszám | D11: Megnevezés | E11: Teljesítm (HP) | F11: Max nyomás Bar | G11: Elektr csatlak | H11: Indítás | I11: Tulajdonság | J11: Tartály (l) | K11: Nettó ár (HUF)
A12: ALUP SpiralAir -Scroll kompresszor
A13: ALUP dugattyús kompresszorok | C13: Direkthajtásos sűrítő egység motorral - egy fokozatú 10 bar
A14: OMEGA vonali szűrők | C14: 4153126616 | D14: AKK 301-W | E14: 2 | F14: 10 | G14: 230/1/50 | H14: DOL | I14: Agregát | K14: =VLOOKUP(C14,Árlista!B:I,3,0) -> 1 139,-€
A15: OMEGA ciklonszűrők | C15: 4153126607 | D15: AKK 301-D | E15: 2 | F15: 10 | G15: 400/3/50 | H15: DOL | I15: Agregát | K15: =VLOOKUP(C15,Árlista!B:I,3,0) -> 1 035,-€
A16: OMEGA olaj-víz szétválasztók | C16: 4153126614 | D16: AEK 461-W | E16: 3 | F16: 10 | G16: 230/1/50 | H16: DOL | I16: Agregát | K16: =VLOOKUP(C16,Árlista!B:I,3,0) -> 1 365,-€
A17: ABAC sűrítők | C17: 4153126617 | D17: AEK 461-D | E17: 3 | F17: 10 | G17: 400/3/50 | H17: DOL | I17: Agregát | K17: =VLOOKUP(C17,Árlista!B:I,3,0) -> 1 252,-€
A18: CONDOR nyomáskapcsolók | C18: 4153126618 | D18: AEK 601 | E18: 4 | F18: 10 | G18: 400/3/50 | H18: DOL | I18: Agregát | K18: =VLOOKUP(C18,Árlista!B:I,3,0) -> 1 412,-€
A19: Tartályok | C19: Direkthajtásos sűrítő egység motorral - két fokozatú 10 bar
A20: Egyéb alaktrészek | C20: 4153126402 | D20: AGK-N-271 | E20: 2 | F20: 10 | G20: 400/3/50 | H20: DOL | I20: Agregát | K20: =VLOOKUP(C20,Árlista!B:I,3,0) -> 1 308,-€
C21: 4153126611 | D21: AGK-N-551 | E21: 4 | F21: 10 | G21: 400/3/50 | H21: DOL | I21: Agregát | K21: =VLOOKUP(C21,Árlista!B:I,3,0) -> 1 732,-€
C22: 4153126604 | D22: AEK 851 | E22: 5.5 | F22: 10 | G22: 400/3/50 | H22: DOL | I22: Agregát | K22: =VLOOKUP(C22,Árlista!B:I,3,0) -> 1 939,-€
C23: Direkthajtásos sűrítő egység motorral - két fokozatú 15 bar
C24: 4153126401 | D24: AGK-H-271 | E24: 2 | F24: 15 | G24: 400/3/50 | H24: DOL | I24: Agregát | K24: =VLOOKUP(C24,Árlista!B:I,3,0) -> 1 346,-€
C25: 4153126610 | D25: AGK-H-551 | E25: 4 | F25: 15 | G25: 400/3/50 | H25: DOL | I25: Agregát | K25: =VLOOKUP(C25,Árlista!B:I,3,0) -> 1 638,-€
C26: 4153126608 | D26: AGK-H-751 | E26: 5.5 | F26: 15 | G26: 400/3/50 | H26: DOL | I26: Agregát | K26: =VLOOKUP(C26,Árlista!B:I,3,0) -> 1 995,-€
C27: Direkthajtásos sűrítő egység motorral - 10 bar -olajmentes kivitel
C28: 4153126612 | D28: AKK-O-236-D | E28: 1.5 | F28: 7 | G28: 400/3/50 | H28: DOL | I28: Agregát | K28: =VLOOKUP(C28,Árlista!B:I,3,0) -> 1 525,-€
C29: 4153126400 | D29: AGK-O-271 | E29: 2 | F29: 10 | G29: 400/3/50 | H29: DOL | I29: Agregát | K29: =VLOOKUP(C29,Árlista!B:I,3,0) -> 2 024,-€
C30: 4153126613 | D30: AGK-O-551 | E30: 4 | F30: 10 | G30: 400/3/50 | H30: DOL | I30: Agregát | K30: =VLOOKUP(C30,Árlista!B:I,3,0) -> 2 551,-€
C31: 4153126606 | D31: AGK-O-751 | E31: 5.5 | F31: 10 | G31: 400/3/50 | H31: DOL | I31: Agregát | K31: =VLOOKUP(C31,Árlista!B:I,3,0) -> 2 880,-€

Sheet ABAC sűrítők és alkatr
A1: TARTALOM | U1: LÉGSZERSZÁMOK | AN1: LÉGSZERSZÁMOK
A2: Árlista | U2: Árlista | AN2: Árlista
A3: Megrendelő | U3: Megrendelő | AN3: Megrendelő
A4: ABAC dugattyús kompresszorok | U4: Fúrók | AN4: Fúrók
A5: ABAC CleanAir fogászati kompresszor | U5: Racsnis kulcsok | AN5: Racsnis kulcsok
A6: AGRE ipari dugattyús kompresszorok | U6: Csavarbehajtók | AN6: Csavarbehajtók
A7: ALUP SONETTO csavarkomp 2,2-15kW | U7: Sarokcsiszolók | AN7: Sarokcsiszolók
A8: ALUP SCK csavarkomp 4-75kW | U8: Légkulcsok | AN8: Légkulcsok
A9: ALUP LARGO, ALLEGRO csavarkompr | U9: Egyenes csiszolók | AN9: Egyenes csiszolók
A10: ALUP Hűtveszárítók | U10: Szalag és excenter csiszolók | AN10: Szalag és excenter csiszolók
A11: ALUP szűrők | U11: Polír- és fiber csiszolók | AN11: Polír- és fiber csiszolók
A12: ALUP SpiralAir -Scroll kompresszor | U12: Vésők, leverők … | AN12: Vésők, leverők …
A13: ALUP dugattyús kompresszorok | U13: Szóró- és lefúvató pisztolyok | AN13: Szóró- és lefúvató pisztolyok
A14: OMEGA vonali szűrők | U14: Vágók, fűrészek, szegecshúzók | AN14: Vágók, fűrészek, szegecshúzók
A15: OMEGA ciklonszűrők | U15: Dugókulcsok | AN15: Dugókulcsok
A16: OMEGA olaj-víz szétválasztók | U16: Csatlakozók, tömlők, kellékek | AN16: Csatlakozók, tömlők, kellékek
A17: ABAC sűrítők | U17: Abroncstöltők | AN17: Abroncstöltők
A18: CONDOR nyomáskapcsolók | U18: Tűzők, szegbelövők | AN18: Tűzők, szegbelövők
A19: Tartályok | U19: Garázsipari eszközök | AN19: Garázsipari eszközök
A20: Egyéb alaktrészek | U20: AKKUMULÁTOROS GÉPEK | X20: Sűrítők és alkatészei | AN20: AKKUMULÁTOROS GÉPEK | AQ20: Sűrítők és alkatészei
U21: KOMPRESSZOROK ABAC - ALUP | X21: Nyomáskapcsolók | AN21: KOMPRESSZOROK ABAC - ALUP | AQ21: Nyomáskapcsolók
U22: KOMPRESSZOR ALKATRÉSZEK | X22: Egyéb alkatrészek | AN22: KOMPRESSZOR ALKATRÉSZEK | AQ22: Egyéb alkatrészek
Y27: MDR 1 | AA27: MDR 2 | AE27: MDR 3 | AI27: MDR 5
U28: =#REF! ->  | X28: Chicago Pneumatic | Y28: MDR 2-11 Nyomáskapcsoló | AC28: MDR 3-11 Nyomáskapcsoló | AG28: MDR 5-11 Nyomáskapcsoló | AN28: =#REF! -> 
U29: =#REF! ->  | X29: Pólusok száma | Y29: 2 | Z29: Condor nyomáskapcsoló 1 fázisú motorokhoz. Megbizható, hosszú élettartam. Nyomáskülönbség állítással, tehermentesítővel | AC29: 3 | AD29: Condor nyomáskapcsoló 3 fázisú motorokhoz. Megbizható, hosszú élettartam. Nyomáskülönbség állítással, motorvédelemmel és tehermentesítővel szerelve. | AG29: 3 | AH29: Condor nyomáskapcsoló 3 fázisú motorokhoz. Megbizható, hosszú élettartam. Nyomáskülönbség állítással, motorvédelemmel és tehermentesítővel szerelve. | AN29: =#REF! -> 
U30: =#REF! ->  | X30: Feszültség | Y30: 230 | AC30: 400 | AG30: 400 | AN30: =#REF! -> 
U31: =#REF! ->  | X31: Max. motorteljesítmény | Y31: 2,2 | AC31: 7,5 | AG31: 7,5 | AN31: =#REF! ->  | AQ31: Rodcraft | AR31: Dugattyús kompresszorolaj | AV31: Visszacsapó szelep | AZ31: Biztonsági szelep
U32: =#REF! ->  | X32: Csatlakozások | Y32: 4 x 1/4" | AC32: 4 x 1/4" | AG32: 4 x 1/4" | AN32: =#REF! ->  | AQ32: Cikkszám / Típus / (Listaár) Nettó ár | AR32: + | AS32: 1/2"-1/2" | AT32: =VLOOKUP(AR32,Árlista!$B:$D,3,0) ->  | AV32: 6210718900 | AW32: 1/2"-1/2" | AX32: =VLOOKUP(AV32,Árlista!$B:$D,3,0) -> 3 040,-Ft | AZ32: 6210719500 | BA32: 1/4", 8 bar | BB32: =VLOOKUP(AZ32,Árlista!$B:$D,3,0) -> 2 530,-Ft
U33: =#REF! ->  | X33: Nyomástartomány | Y33: 3-12 | AC33: 3-11 | AG33: 3-11 | AN33: =#REF! ->  | AQ33: Cikkszám / Típus / (Listaár) Nettó ár | AR33: AL6215715600 | AS33: 2l | AT33: =VLOOKUP(AR33,Árlista!$B:$D,3,0) ->  | AV33: 6210719200 | AW33: 3/4"-3/4" | AX33: =VLOOKUP(AV33,Árlista!$B:$D,3,0) ->  | AZ33: 6210719900 | BA33: 3/8", 11 bar | BB33: =VLOOKUP(AZ33,Árlista!$B:$D,3,0) -> 4 000,-Ft
U34: =#REF! ->  | X34: Nomáskülönbség | Y34: 2 | AC34: 2 | AG34: 2 | AN34: =#REF! ->  | AQ34: Cikkszám / Típus / (Listaár) Nettó ár | AR34: AL6215715700 | AS34: 5l | AT34: NA | AV34: 6210718500 | AW34: 1"-3/4" | AX34: =VLOOKUP(AV34,Árlista!$B:$D,3,0) -> 8 950,-Ft | AZ34: 2236100087 | BA34: 3/4", 11 bar | BB34: =VLOOKUP(AZ34,Árlista!$B:$D,3,0) -> 10 310,-Ft
U35: =#REF! ->  | X35: Cikkszám / Típus / (Listaár) Nettó ár | Y35: CO-212140 | Z35: MDR 1/11 | AA35: =VLOOKUP(Y35,Árlista!$B:$D,3,0) -> 6 500,-Ft | AC35: CO-218937 | AD35: 4-6,3A | AE35: =VLOOKUP(AC35,Árlista!$B:$D,3,0) -> 17 990,-Ft | AG35: CO-218630 | AH35: 2,4-4,2A | AI35: =VLOOKUP(AG35,Árlista!$B:$D,3,0) -> 18 750,-Ft | AN35: =#REF! ->  | AQ35: Cikkszám / Típus / (Listaár) Nettó ár | AV35: 6210718300 | AW35: 1"-1" | AX35: =VLOOKUP(AV35,Árlista!$B:$D,3,0) -> 14 700,-Ft
U36: =#REF! ->  | X36: Cikkszám / Típus / (Listaár) Nettó ár | AC36: CO-218944 | AD36: 6,3-10A | AE36: =VLOOKUP(AC36,Árlista!$B:$D,3,0) -> 17 990,-Ft | AG36: CO-218593 | AH36: 4-7,0A | AI36: =VLOOKUP(AG36,Árlista!$B:$D,3,0) -> 18 750,-Ft | AN36: =#REF! -> 
X37: Cikkszám / Típus / (Listaár) Nettó ár | Y37: CO-218500 | Z37: MDR 2/11 | AA37: =VLOOKUP(Y37,Árlista!$B:$D,3,0) -> 8 880,-Ft | AC37: CO-218951 | AD37: 10-16A | AE37: =VLOOKUP(AC37,Árlista!$B:$D,3,0) -> 17 990,-Ft | AG37: CO-218586 | AH37: 6,1-10,3A | AI37: =VLOOKUP(AG37,Árlista!$B:$D,3,0) -> 18 750,-Ft
X38: Cikkszám / Típus / (Listaár) Nettó ár | AC38: CO-240686 | AD38: 16-20A | AE38: =VLOOKUP(AC38,Árlista!$B:$D,3,0) -> 17 990,-Ft | AG38: CO-218623 | AH38: 9-14A | AI38: =VLOOKUP(AG38,Árlista!$B:$D,3,0) -> 18 750,-Ft | AN38: =#REF! -> 
X39: Cikkszám / Típus / (Listaár) Nettó ár | AG39: CO-251057 | AH39: 11-18A | AI39: =VLOOKUP(AG39,Árlista!$B:$D,3,0) -> 18 960,-Ft | AN39: =#REF! -> 
AN40: =#REF! -> 
U41: Jellemző motorméretek: | V41: 230V | X41: 400V | AN41: =#REF! -> 
U42: 1,5 kW | V42: 10,0A | X42: 3,4A | AN42: =#REF! -> 
U43: 2,2 kW | V43: 14,5A | X43: 5,2A
U44: 3,0 kW | V44: - | X44: 7,2A
U45: 4,0 kW | V45: - | X45: 9,6A
U46: 5,5 kW | V46: - | X46: 13,0A
U47: 7,5 kW | V47: - | X47: 16,1A
AD50: MDR 43 | AE50: MDR 53
X51: Chicago Pneumatic | Y51: MDR Tehermentesítő nyomáskapcsolókhoz | AC51: MDR Vezérlő nyomáskapcsolók | AG51: MDR Motorvédő relé | AQ51: Rodcraft | AR51: Szűrő szabályozó | AV51: Levegőszűrő | AZ51: Levegőszűrő
X52: Pólusok száma | Y52: 2 | Z52: Condor nyomáskapcsoló 1 fázisú motorokhoz. Megbizható, hosszú élettartam. Nyomáskülönbség állítással, tehermentesítővel | AC52: 2 | AD52: Condor nyomáskapcsoló 1 fázisú motorokhoz. Megbizható, hosszú élettartam. Nyomáskülönbség állítással, tehermentesítővel | AG52: CO-201441 | AH52: R3/6,3A | AI52: =VLOOKUP(AG52,Árlista!$B:$D,3,0) -> 8 450,-Ft | AQ52: Cikkszám / Típus / (Listaár) Nettó ár | AR52: 6214344100 | AS52: Micro 1/4 | AT52: =VLOOKUP(AR52,Árlista!$B:$D,3,0) -> 9 380,-Ft | AV52: 6211453700 | AW52: GV34 | AX52: =VLOOKUP(AV52,Árlista!$B:$D,3,0) -> 1 530,-Ft | AZ52: 6211471600 | BA52: B5900 | BB52: =VLOOKUP(AZ52,Árlista!$B:$D,3,0) -> 
X53: Feszültség | Y53: 230 | AC53: 230 | AG53: CO-201458 | AH53: R3/10A | AI53: =VLOOKUP(AG53,Árlista!$B:$D,3,0) -> 8 450,-Ft | AQ53: Cikkszám / Típus / (Listaár) Nettó ár | AR53: 6214344200 | AS53: Mignon 3/8 | AT53: =VLOOKUP(AR53,Árlista!$B:$D,3,0) -> 9 940,-Ft | AV53: 2236102112 | AW53: B28/38/B49 | AX53: =VLOOKUP(AV53,Árlista!$B:$D,3,0) ->  | AZ53: 2236110427 | BA53: B6000 | BB53: =VLOOKUP(AZ53,Árlista!$B:$D,3,0) -> 15 060,-Ft
E54: B2800 | N54: A29B | X54: Max. motorteljesítmény | Y54: 2,2 | AC54: 2,2 | AG54: CO-201465 | AH54: R3/16A | AI54: =VLOOKUP(AG54,Árlista!$B:$D,3,0) -> 8 450,-Ft | AQ54: Cikkszám / Típus / (Listaár) Nettó ár | AR54: 6214345100 | AS54: PU4 1/2 | AT54: =VLOOKUP(AR54,Árlista!$B:$D,3,0) -> 15 360,-Ft | AV54: 2236111635 | AW54: A29/A39 | AX54: =VLOOKUP(AV54,Árlista!$B:$D,3,0) -> 2 270,-Ft | AZ54: 2236110428 | BA54: B7000 | BB54: =VLOOKUP(AZ54,Árlista!$B:$D,3,0) -> 17 480,-Ft
D55: Motorteljesítmény méret [kW] | E55: 1,5 / 2,2 | F55: 2 hengeres 1 fokozatú sűrítőfokozat, 220V és 400V-os villanymotorokhoz | K55: Típus | N55: Hegesztett horganyzott acél csőszerkezet, különösen stabi. | X55: Csatlakozások | Y55: 4 x 1/4" | AC55: 4 x 1/4" | AG55: CO-202042 | AH55: R5/4,2A | AI55: =VLOOKUP(AG55,Árlista!$B:$D,3,0) -> 7 480,-Ft | AQ55: Cikkszám / Típus / (Listaár) Nettó ár | AV55: 8973035878 | AW55: L20/L30 | AX55: =VLOOKUP(AV55,Árlista!$B:$D,3,0) ->  | AZ55: 8973015500 | BA55: Betét B6-7 | BB55: =VLOOKUP(AZ55,Árlista!$B:$D,3,0) -> 5 660,-Ft
D56: Sűrítő fordulat [rpm] | E56: 1100 - 1400 | X56: Nyomástartomány | Y56: 3-12 | AC56: 3-12 | AG56: CO-202059 | AH56: R5/7A | AI56: =VLOOKUP(AG56,Árlista!$B:$D,3,0) -> 7 480,-Ft
D57: Cikkszám / Típus / Nettó ár (Listaár) | E57: 6218739200 | F57: B2800B | G57: Sűrítő | H57: =VLOOKUP(E57,Árlista!$B:$D,3,0) -> 47 500,-Ft | K57: Cikkszám / Típus / Nettó ár (Listaár) | N57: 4116090308 | O57: A29B | P57: Sűrítő | Q57: =VLOOKUP(N57,Árlista!$B:$D,3,0) -> 57 500,-Ft | X57: Nomáskülönbség | Y57: 2 | AC57: 2 | AG57: CO-202066 | AH57: R5/10,3A | AI57: =VLOOKUP(AG57,Árlista!$B:$D,3,0) -> 8 130,-Ft
E58: 6229024000 | F58: 315 | G58: Hengerfej + töm | H58: =VLOOKUP(E58,Árlista!$B:$D,3,0) -> 15 560,-Ft | N58: 2236111635 | O58: 305 | P58: Levegőszűrő | Q58: =VLOOKUP(N58,Árlista!$B:$D,3,0) -> 2 270,-Ft | X58: Cikkszám / Típus / (Listaár) Nettó ár | Y58: CO-200680 | Z58: EV 2S | AA58: =VLOOKUP(Y58,Árlista!$B:$D,3,0) -> 2 270,-Ft | AC58: CO-213086 | AD58: MDR53 | AE58: =VLOOKUP(AC58,Árlista!$B:$D,3,0) -> 20 270,-Ft | AG58: CO-202073 | AH58: R5/14A | AI58: =VLOOKUP(AG58,Árlista!$B:$D,3,0) -> 8 130,-Ft
E59: 6229020400 | F59: 340 | G59: Utóhűtő | H59: =VLOOKUP(E59,Árlista!$B:$D,3,0) -> 15 070,-Ft | N59: 2901325044 | O59: 310 | P59: Hengerfej + töm | Q59: =VLOOKUP(N59,Árlista!$B:$D,3,0) -> 23 730,-Ft | X59: Cikkszám / Típus / (Listaár) Nettó ár | Y59: CO-201069 | Z59: EV 3S | AA59: =VLOOKUP(Y59,Árlista!$B:$D,3,0) -> 2 270,-Ft | AC59: CO-212812 | AD59: MDR43 | AE59: =VLOOKUP(AC59,Árlista!$B:$D,3,0) -> 15 500,-Ft | AG59: CO-202080 | AH59: R5/18A | AI59: =VLOOKUP(AG59,Árlista!$B:$D,3,0) -> 8 560,-Ft
E60: 8973037620 | F60: PK1 | G60: Szeleplap KIT | H60: =VLOOKUP(E60,Árlista!$B:$D,3,0) -> 18 690,-Ft | N60: 2236112518 | O60: 325 | P60: Szeleplap + töm | Q60: =VLOOKUP(N60,Árlista!$B:$D,3,0) -> 8 550,-Ft | X60: Cikkszám / Típus / (Listaár) Nettó ár | Y60: CO-201878 | Z60: EV 5 | AA60: =VLOOKUP(Y60,Árlista!$B:$D,3,0) -> 3 360,-Ft
E61: 2901324933 | F61: 330 | G61: Felújító KIT | H61: =VLOOKUP(E61,Árlista!$B:$D,3,0) -> 27 000,-Ft | N61: 2901325046 | O61: 330 | P61: Felújító KIT | Q61: =VLOOKUP(N61,Árlista!$B:$D,3,0) -> 20 580,-Ft
E62: 6229023600 | F62: 335 | G62: Tömítés készlet | H62: =VLOOKUP(E62,Árlista!$B:$D,3,0) -> 5 710,-Ft | N62: 2901325045 | O62: 335 | P62: Tömítés készlet | Q62: =VLOOKUP(N62,Árlista!$B:$D,3,0) -> 10 070,-Ft
E63: 6229020900 | F63: 350 | G63: Ventilátor tárcsa | H63: =VLOOKUP(E63,Árlista!$B:$D,3,0) -> 22 670,-Ft | N63: 2901325047 | O63: 340 | P63: Utóhűtő | Q63: =VLOOKUP(N63,Árlista!$B:$D,3,0) -> 19 990,-Ft
E64: 6229023400 | F64: 350 | G64: Ventilátor tárcsa | H64: =VLOOKUP(E64,Árlista!$B:$D,3,0) -> 11 820,-Ft | N64: 2236112434 | O64: 345 | P64: Henger KIT | Q64: =VLOOKUP(N64,Árlista!$B:$D,3,0) -> 15 390,-Ft
E65: 6229021000 | F65: 360 | G65: Olajszint jelző | H65: =VLOOKUP(E65,Árlista!$B:$D,3,0) -> 6 230,-Ft | N65: 2901325048 | O65: 350 | P65: Ventilátor tárcsa | Q65: =VLOOKUP(N65,Árlista!$B:$D,3,0) -> 12 970,-Ft
E66: 6211471500 | G66: Légszűrő B49 | H66: =VLOOKUP(E66,Árlista!$B:$D,3,0) -> 1 930,-Ft | N66: 2236111619 | O66: 355 | P66: Dugattyú-hajtókar KIT | Q66: =VLOOKUP(N66,Árlista!$B:$D,3,0) -> 9 940,-Ft
N67: 2901325049 | O67: 360 | P67: Olajszint jelző | Q67: =VLOOKUP(N67,Árlista!$B:$D,3,0) -> 14 600,-Ft
N68: 2236112437 | O68: 365 | P68: Forgattyús ház töm. | Q68: =VLOOKUP(N68,Árlista!$B:$D,3,0) -> 4 610,-Ft
N70: 1630020700 | O70: KM1 | P70: Karbantartó KIT KM1 | Q70: =VLOOKUP(N70,Árlista!$B:$D,3,0) -> 3 850,-Ft
N71: 8973037865 | O71: KM2 | P71: NO | Q71: =VLOOKUP(N71,Árlista!$B:$D,3,0) -> ,-Ft
N72: 8973037657 | O72: PK1 | P72: Karbantartó KIT PK1 | Q72: =VLOOKUP(N72,Árlista!$B:$D,3,0) -> 13 790,-Ft
N73: 8973037658 | O73: PK2 | P73: NO
E103: B3800 | K103: Rodcraft | N103: A39
D104: Motorteljesítmény méret [kW] | E104: 2,2 / 3,0 | F104: 2 hengeres 1 fokozatú sűrítőfokozat, 220V és 400V-os villanymotorokhoz | K104: Típus | N104: 3,0 | O104: 2 hengeres 2 fokozatú sűrítőfokozat, 3kW-os 400V-os villanymotorokhoz
D105: Sűrítő fordulat [rpm] | E105: 1100 - 1400 | N105: 1100 / 1400
D106: Cikkszám / Típus / Nettó ár (Listaár) | E106: 6218739400 | F106: B3800 | G106: Sűrítő | H106: =VLOOKUP(E106,Árlista!$B:$D,3,0) -> 80 000,-Ft | K106: Cikkszám / Típus / Nettó ár (Listaár) | N106: 4116090310 | O106: A39B | P106: Sűrítő | Q106: =VLOOKUP(N106,Árlista!$B:$D,3,0) -> 72 900,-Ft
E107: 6229024000 | F107: 315 | G107: Hengerfej + töm | H107: =VLOOKUP(E107,Árlista!$B:$D,3,0) -> 15 560,-Ft | N107: 2236111635 | O107: 305 | P107: Levegőszűrő | Q107: =VLOOKUP(N107,Árlista!$B:$D,3,0) -> 2 270,-Ft
E108: 6229020400 | F108: 340 | G108: Utóhűtő | H108: =VLOOKUP(E108,Árlista!$B:$D,3,0) -> 15 070,-Ft | N108: 2901325044 | O108: 310 | P108: Hengerfej + töm | Q108: =VLOOKUP(N108,Árlista!$B:$D,3,0) -> 23 730,-Ft
E109: 8973037621 | F109: 335 | G109: Szeleplap KIT | H109: =VLOOKUP(E109,Árlista!$B:$D,3,0) -> ,-Ft | N109: 2236112518 | O109: 325 | P109: Szeleplap + töm | Q109: =VLOOKUP(N109,Árlista!$B:$D,3,0) -> 8 550,-Ft
E110: 2901324900 | F110: 330 | G110: Felújító KIT | H110: =VLOOKUP(E110,Árlista!$B:$D,3,0) -> 29 280,-Ft | N110: 2901325046 | O110: 330 | P110: Felújító KIT | Q110: =VLOOKUP(N110,Árlista!$B:$D,3,0) -> 20 580,-Ft
E111: 6229023600 | F111: 350 | G111: Tömítés készlet | H111: =VLOOKUP(E111,Árlista!$B:$D,3,0) -> 5 710,-Ft | N111: 2901325045 | O111: 335 | P111: Tömítés készlet | Q111: =VLOOKUP(N111,Árlista!$B:$D,3,0) -> 10 070,-Ft
E112: 6229020900 | F112: 360 | G112: Ventilátor tárcsa | H112: =VLOOKUP(E112,Árlista!$B:$D,3,0) -> 22 670,-Ft | N112: 2236112438 | O112: 365 | P112: Forgattyús ház töm. | Q112: =VLOOKUP(N112,Árlista!$B:$D,3,0) -> 5 600,-Ft
E113: 6229021000 | F113: PK1 | G113: Ventilátor tárcsa | H113: =VLOOKUP(E113,Árlista!$B:$D,3,0) -> 6 230,-Ft | N113: 2901325047 | O113: 340 | P113: Utóhűtő | Q113: =VLOOKUP(N113,Árlista!$B:$D,3,0) -> 19 990,-Ft
E114: 8973037620 | F114: PK2 | G114: Olajszint jelző | N114: 2236112435 | O114: 345 | P114: Henger + töm | Q114: =VLOOKUP(N114,Árlista!$B:$D,3,0) -> 16 880,-Ft
E115: 6211471500 | G115: Légszűrő B49 | H115: =VLOOKUP(E115,Árlista!$B:$D,3,0) -> 1 930,-Ft | N115: 2901325050 | O115: 350 | P115: Ventilátor tárcsa | Q115: =VLOOKUP(N115,Árlista!$B:$D,3,0) -> 22 610,-Ft
N116: 2236111620 | O116: 355 | P116: Dugattyú-hajtókar KIT | Q116: =VLOOKUP(N116,Árlista!$B:$D,3,0) -> 10 370,-Ft
N117: 2901325049 | O117: 360 | P117: Olajszint jelző | Q117: =VLOOKUP(N117,Árlista!$B:$D,3,0) -> 14 600,-Ft
N118: 8973037864 | O118: KM1 | P118: Karbantartó KIT KM1 | Q118: 3 130,-Ft
N119: 8973037865 | O119: KM2 | P119: NO | Q119: ,-Ft
N120: 8973037657 | O120: PK1 | P120: Karbantartó KIT PK1 | Q120: 9 960,-Ft
N121: 8973037658 | O121: PK2 | P121: NO | Q121: 13 380,-Ft
E151: B4900 | N151: B5900B
D152: Motorteljesítmény méret [kW] | E152: 3,0 | F152: 2 hengeres 2 fokozatú sűrítőfokozat, 3kW-os 400V-os villanymotorokhoz | K152: Típus | N152: 3,0 / 4,0 | O152: 2 hengeres 2 fokozatú sűrítőfokozat, 3 és 4 kw-os 400V-os villanymotorokhoz
D153: Sűrítő fordulat [rpm] | E153: 1100 / 1400 | N153: 1100 / 1400
D154: Cikkszám / Típus / Nettó ár (Listaár) | E154: 6218739600 | F154: B4900 | G154: Sűrítő | H154: =VLOOKUP(E154,Árlista!$B:$D,3,0) -> 93 000,-Ft | K154: Cikkszám / Típus / Nettó ár (Listaár) | N154: 6218740200 | O154: B5900 | P154: Sűrítő | Q154: =VLOOKUP(N154,Árlista!$B:$D,3,0) -> 119 000,-Ft
E155: 2901324960 | F155: 310 | G155: Hengerfej | H155: =VLOOKUP(E155,Árlista!$B:$D,3,0) -> 23 480,-Ft | N155: 2901324964 | O155: 310 | P155: Hengerfej | Q155: =VLOOKUP(N155,Árlista!$B:$D,3,0) -> 23 500,-Ft
E156: 2901324961 | F156: 320 | G156: Töltő-hűtő cső | H156: =VLOOKUP(E156,Árlista!$B:$D,3,0) -> 30 210,-Ft | N156: 2901324965 | O156: 320 | P156: Töltő-hűtő cső | Q156: =VLOOKUP(N156,Árlista!$B:$D,3,0) -> 28 710,-Ft
E157: 6229017300 | F157: 330 | G157: Felújító KIT +szelepl. | H157: =VLOOKUP(E157,Árlista!$B:$D,3,0) -> 39 300,-Ft | N157: 6229026900 | O157: 330 | P157: Felújító KIT +szelepl. | Q157: =VLOOKUP(N157,Árlista!$B:$D,3,0) -> 38 520,-Ft
E158: 8973035118 | F158: 335 | G158: Tömítés KIT +szelepl. | H158: =VLOOKUP(E158,Árlista!$B:$D,3,0) -> 16 460,-Ft | N158: 8973037264 | O158: 335 | P158: Tömítés KIT | Q158: =VLOOKUP(N158,Árlista!$B:$D,3,0) -> 8 460,-Ft
E159: 2901324962 | F159: 340 | G159: Utóhűtő | H159: =VLOOKUP(E159,Árlista!$B:$D,3,0) -> 21 200,-Ft | N159: 2901324966 | O159: 340 | P159: Utóhűtő | Q159: =VLOOKUP(N159,Árlista!$B:$D,3,0) -> 27 770,-Ft
E160: 6229017600 | F160: 350 | G160: Ventilátor tárcsa | H160: =VLOOKUP(E160,Árlista!$B:$D,3,0) -> 19 730,-Ft | N160: 6229020100 | O160: 350 | P160: Ventilátor tárcsa | Q160: =VLOOKUP(N160,Árlista!$B:$D,3,0) -> ,-Ft
E161: 2901324950 | F161: 360 | G161: Olajszint jelző | H161: =VLOOKUP(E161,Árlista!$B:$D,3,0) -> 6 790,-Ft | N161: 2901324951 | O161: 360 | P161: Olajszint jelző | Q161: =VLOOKUP(N161,Árlista!$B:$D,3,0) -> ,-Ft
E162: 2901324963 | F162: 370 | G162: Biztonsági szelep KIT | H162: =VLOOKUP(E162,Árlista!$B:$D,3,0) -> ,-Ft | N162: 6229020200 | O162: 370 | P162: Biztonsági szelep KIT | Q162: =VLOOKUP(N162,Árlista!$B:$D,3,0) -> 2 230,-Ft
E163: 8973035059 | F163: 380 | G163: Szűrőbetét | H163: =VLOOKUP(E163,Árlista!$B:$D,3,0) -> 1 570,-Ft | N163: 8973037628 | O163: PK1 | P163: Karbantartó KIT PK1 | Q163: =VLOOKUP(N163,Árlista!$B:$D,3,0) -> 52 310,-Ft
E164: 8973037624 | F164: PK1 | G164: Karbantartó KIT PK1 | H164: =VLOOKUP(E164,Árlista!$B:$D,3,0) -> 26 870,-Ft | N164: 6211452400 | P164: Levegőszűrő | Q164: =VLOOKUP(N164,Árlista!$B:$D,3,0) -> 8 350,-Ft
E165: 6211471500 | G165: Légszűrő B49 | H165: =VLOOKUP(E165,Árlista!$B:$D,3,0) -> 1 930,-Ft | N165: 8973037630 | O165: PK3 | P165: Karbantartó KIT PK3 | Q165: =VLOOKUP(N165,Árlista!$B:$D,3,0) -> 42 890,-Ft
N166: 2236112802 | O166: PK4 | P166: B5900 Dug-Hajtókar | Q166: 7 500,-Ft | S166: Kis dugattyú
E195: B6000 | N195: B7000
D196: Motorteljesítmény méret [kW] | E196: 4,0 / 5,5 | F196: 2 hengeres 2 fokozatú sűrítőfokozat, 4 és 5,5 kw-os 400V-os villanymotorokhoz | K196: Típus | N196: 5,5 / 7,5 | O196: 2 hengeres 2 fokozatú sűrítőfokozat, 5,5 és 7,5 kw-os 400V-os villanymotorokhoz
D197: Sűrítő fordulat [rpm] | E197: 1100 - 1400 | N197: 1100 / 1400
D198: Cikkszám / Típus / Nettó ár (Listaár) | E198: 6218740100 | F198: B6000 | G198: Sűrítő | H198: =VLOOKUP(E198,Árlista!$B:$D,3,0) -> 149 000,-Ft | K198: Cikkszám / Típus / Nettó ár (Listaár) | N198: 6218740000 | O198: B7000 | P198: Sűrítő | Q198: =VLOOKUP(N198,Árlista!$B:$D,3,0) -> 179 000,-Ft
E199: 2901324967 | F199: 310 | G199: Hengerfej | H199: =VLOOKUP(E199,Árlista!$B:$D,3,0) -> 34 090,-Ft | N199: 2901324969 | O199: 310 | P199: Hengerfej | Q199: =VLOOKUP(N199,Árlista!$B:$D,3,0) -> 39 130,-Ft
E200: 2901324968 | F200: 320 | G200: Töltő-hűtő cső | H200: =VLOOKUP(E200,Árlista!$B:$D,3,0) -> 33 090,-Ft | N200: 2901324970 | O200: 320 | P200: Töltő-hűtő cső | Q200: =VLOOKUP(N200,Árlista!$B:$D,3,0) -> 42 570,-Ft
E201: 6229027600 | F201: 330 | G201: Felújító KIT | H201: =VLOOKUP(E201,Árlista!$B:$D,3,0) -> 35 640,-Ft | N201: 6229028200 | O201: 330 | P201: Felújító KIT | Q201: =VLOOKUP(N201,Árlista!$B:$D,3,0) -> 43 720,-Ft
E202: 8973035123 | F202: 335 | G202: Tömítés készlet | H202: =VLOOKUP(E202,Árlista!$B:$D,3,0) -> 7 110,-Ft | N202: 8973035130 | O202: 335 | P202: Tömítés készlet | Q202: =VLOOKUP(N202,Árlista!$B:$D,3,0) -> 13 110,-Ft
E203: 2901324966 | F203: 340 | G203: Utóhűtő | H203: =VLOOKUP(E203,Árlista!$B:$D,3,0) -> 27 770,-Ft | N203: 2901324966 | O203: 340 | P203: Utóhűtő | Q203: =VLOOKUP(N203,Árlista!$B:$D,3,0) -> 27 770,-Ft
E204: 6229020100 | F204: 350 | G204: Ventilátor tárcsa | H204: =VLOOKUP(E204,Árlista!$B:$D,3,0) -> ,-Ft | N204: 6229020100 | O204: 350 | P204: Ventilátor tárcsa | Q204: =VLOOKUP(N204,Árlista!$B:$D,3,0) -> ,-Ft
E205: 2901324952 | F205: 360 | G205: Olaj beöntő, és kéml. | H205: =VLOOKUP(E205,Árlista!$B:$D,3,0) -> 12 020,-Ft | N205: 2901324953 | O205: 360 | P205: Olaj beöntő, és kéml. | Q205: =VLOOKUP(N205,Árlista!$B:$D,3,0) -> 12 040,-Ft
E206: 6229020200 | F206: 370 | G206: Biztonsági szelep KIT | H206: =VLOOKUP(E206,Árlista!$B:$D,3,0) -> 2 230,-Ft | N206: 6229020200 | O206: 370 | P206: Biztonsági szelep KIT | Q206: =VLOOKUP(N206,Árlista!$B:$D,3,0) -> 2 230,-Ft
E207: 8973037632 | F207: PK1 | G207: Karbantartó KIT PK1 | H207: =VLOOKUP(E207,Árlista!$B:$D,3,0) -> 75 170,-Ft | N207: 8973037636 | O207: PK1 | P207: Szeleplap KIT | Q207: =VLOOKUP(N207,Árlista!$B:$D,3,0) -> 91 140,-Ft
E208: 8973037634 | F208: PK3 | G208: Karbantartó KIT PK3 | H208: =VLOOKUP(E208,Árlista!$B:$D,3,0) -> 68 020,-Ft
E209: 2236110427 | G209: Lev. szűrő panel müa | H209: =VLOOKUP(E209,Árlista!$B:$D,3,0) -> 15 060,-Ft | N209: 2236110428 | P209: Lev. szűrő panel müa | Q209: =VLOOKUP(N209,Árlista!$B:$D,3,0) -> 17 480,-Ft
E210: 8973015500 | G210: Levegő szűrő betét | H210: =VLOOKUP(E210,Árlista!$B:$D,3,0) -> 5 660,-Ft | N210: 8973015500 | P210: Levegő szűrő betét | Q210: =VLOOKUP(N210,Árlista!$B:$D,3,0) -> 5 660,-Ft

Sheet Nyomáskapcsolók
A1: TARTALOM
A2: Árlista
A3: Megrendelő
A4: ABAC dugattyús kompresszorok
A5: ABAC CleanAir fogászati kompresszor
A6: AGRE ipari dugattyús kompresszorok
A7: ALUP SONETTO csavarkomp 2,2-15kW
A8: ALUP SCK csavarkomp 4-75kW
A9: ALUP LARGO, ALLEGRO csavarkompr
A10: ALUP Hűtveszárítók
A11: ALUP szűrők
A12: ALUP SpiralAir -Scroll kompresszor
A13: ALUP dugattyús kompresszorok
A14: OMEGA vonali szűrők
A15: OMEGA ciklonszűrők | G15: MDR 1 | I15: MDR 2 | M15: MDR 3 | Q15: MDR 5
A16: OMEGA olaj-víz szétválasztók | G16: MDR 2-11 Nyomáskapcsoló | K16: MDR 3-11 Nyomáskapcsoló | O16: MDR 5-11 Nyomáskapcsoló
A17: ABAC sűrítők | F17: Pólusok száma | G17: 2 | H17: Condor nyomáskapcsoló 1 fázisú motorokhoz. Megbizható, hosszú élettartam. Nyomáskülönbség állítással, tehermentesítővel | K17: 3 | L17: Condor nyomáskapcsoló 3 fázisú motorokhoz. Megbizható, hosszú élettartam. Nyomáskülönbség állítással, motorvédelemmel és tehermentesítővel szerelve. | O17: 3 | P17: Condor nyomáskapcsoló 3 fázisú motorokhoz. Megbizható, hosszú élettartam. Nyomáskülönbség állítással, motorvédelemmel és tehermentesítővel szerelve.
A18: CONDOR nyomáskapcsolók | F18: Feszültség | G18: 230V | K18: 400V | O18: 400V
A19: Tartályok | F19: Max. motorteljesítmény | G19: 2,2 | K19: 11 | O19: 11
A20: Egyéb alaktrészek | F20: Csatlakozások | G20: 4 x 1/4" | K20: 1/2" + 3x1/4" | O20: 1/2" + 1x1/4"
F21: Nyomástartomány | G21: 3-12 | K21: 3-11 | O21: 3-11
F22: Nomáskülönbség | G22: 2 | K22: 2 | O22: 2
F23: Cikkszám / Típus / (Listaár) Nettó ár | G23: CO-212140 | H23: MDR 1/11 | I23: =VLOOKUP(G23,Árlista!$B:$D,3,0) -> 6 500,-Ft | K23: CO-218937 | L23: 4-6,3A | M23: =VLOOKUP(K23,Árlista!$B:$D,3,0) -> 17 990,-Ft | O23: CO-218630 | P23: 2,4-4,2A | Q23: =VLOOKUP(O23,Árlista!$B:$D,3,0) -> 18 750,-Ft
F24: Cikkszám / Típus / (Listaár) Nettó ár | K24: CO-218944 | L24: 6,3-10A | M24: =VLOOKUP(K24,Árlista!$B:$D,3,0) -> 17 990,-Ft | O24: CO-218593 | P24: 4-7,0A | Q24: =VLOOKUP(O24,Árlista!$B:$D,3,0) -> 18 750,-Ft
F25: Cikkszám / Típus / (Listaár) Nettó ár | G25: CO-218500 | H25: MDR 2/11 | I25: =VLOOKUP(G25,Árlista!$B:$D,3,0) -> 8 880,-Ft | K25: CO-218951 | L25: 10-16A | M25: =VLOOKUP(K25,Árlista!$B:$D,3,0) -> 17 990,-Ft | O25: CO-218586 | P25: 6,1-10,3A | Q25: =VLOOKUP(O25,Árlista!$B:$D,3,0) -> 18 750,-Ft
F26: Cikkszám / Típus / (Listaár) Nettó ár | K26: CO-240686 | L26: 16-20A | M26: =VLOOKUP(K26,Árlista!$B:$D,3,0) -> 17 990,-Ft | O26: CO-218623 | P26: 9-14A | Q26: =VLOOKUP(O26,Árlista!$B:$D,3,0) -> 18 750,-Ft
F27: Cikkszám / Típus / (Listaár) Nettó ár | K27: CO-240693 | L27: 20-24A | M27: =VLOOKUP(K25,Árlista!$B:$D,3,0) -> 17 990,-Ft | O27: CO-251057 | P27: 11-18A | Q27: =VLOOKUP(O27,Árlista!$B:$D,3,0) -> 18 960,-Ft
A29: Jellemző motorméretek: | B29: 230V | F29: 400V
A30: 1,5 kW | B30: 10,0A | F30: 3,4A
A31: 2,2 kW | B31: 14,5A | F31: 5,2A
A32: 3,0 kW | B32: - | F32: 7,2A
A33: 4,0 kW | B33: - | F33: 9,6A
A34: 5,5 kW | B34: - | F34: 13,0A
A35: 7,5 kW | B35: - | F35: 16,1A
L38: MDR 43 | M38: MDR 53
G39: MDR Tehermentesítő nyomáskapcsolókhoz | K39: MDR Vezérlő nyomáskapcsolók | O39: MDR Motorvédő relé
F40: Pólusok száma | G40: 2 | H40: Condor nyomáskapcsoló 1 fázisú motorokhoz. Megbizható, hosszú élettartam. Nyomáskülönbség állítással, tehermentesítővel | K40: 2 | L40: Condor vezérlő nyomáskapcsolók | O40: CO-201441 | P40: R3/6,3A | Q40: =VLOOKUP(O40,Árlista!$B:$D,3,0) -> 8 450,-Ft
F41: Feszültség | G41: 230 | K41: 230 | O41: CO-201458 | P41: R3/10A | Q41: =VLOOKUP(O41,Árlista!$B:$D,3,0) -> 8 450,-Ft
F42: Max. motorteljesítmény | G42: 2,2 | K42: 2,2 | O42: CO-201465 | P42: R3/16A | Q42: =VLOOKUP(O42,Árlista!$B:$D,3,0) -> 8 450,-Ft
F43: Csatlakozások | G43: 4 x 1/4" | K43: 1/2" | O43: CO-202042 | P43: R5/4,2A | Q43: =VLOOKUP(O43,Árlista!$B:$D,3,0) -> 7 480,-Ft
F44: Nyomástartomány | G44: 3-12 | K44: 3-12 | O44: CO-202059 | P44: R5/7A | Q44: =VLOOKUP(O44,Árlista!$B:$D,3,0) -> 7 480,-Ft
F45: Nomáskülönbség | G45: 2 | K45: 2 | O45: CO-202066 | P45: R5/10,3A | Q45: =VLOOKUP(O45,Árlista!$B:$D,3,0) -> 8 130,-Ft
F46: Cikkszám / Típus / (Listaár) Nettó ár | G46: CO-200680 | H46: EV 2S | I46: =VLOOKUP(G46,Árlista!$B:$D,3,0) -> 2 270,-Ft | K46: CO-213086 | L46: MDR 53/16 | M46: =VLOOKUP(K46,Árlista!$B:$D,3,0) -> 20 270,-Ft | O46: CO-202073 | P46: R5/14A | Q46: =VLOOKUP(O46,Árlista!$B:$D,3,0) -> 8 130,-Ft
F47: Cikkszám / Típus / (Listaár) Nettó ár | G47: CO-201069 | H47: EV 3S | I47: =VLOOKUP(G47,Árlista!$B:$D,3,0) -> 2 270,-Ft | K47: CO-212812 | L47: MDR 43/11 | M47: =VLOOKUP(K47,Árlista!$B:$D,3,0) -> 15 500,-Ft | O47: CO-202080 | P47: R5/18A | Q47: =VLOOKUP(O47,Árlista!$B:$D,3,0) -> 8 560,-Ft
F48: Cikkszám / Típus / (Listaár) Nettó ár | G48: CO-201878 | H48: EV 5 | I48: =VLOOKUP(G48,Árlista!$B:$D,3,0) -> 3 360,-Ft
G59: MDR 3-16 Nyomáskapcsoló | K59: Nyomásjelado 4-20mA EDS16 | O59: Nyomásjeladó
F60: Pólusok száma | G60: 3 | H60: Condor nyomáskapcsoló 3 fázisú motorokhoz. Megbizható, hosszú élettartam. Nyomáskülönbség állítással, motorvédelemmel és tehermentesítővel szerelve. | L60: Condor analóg jelátalakító. Bemeneti feszültség: 11-30V DC Kimeneti jel: 4-20mA | P60: EDI kapcsolótáblába építhető analóg jelátalakító: 4-20mA EDI kapcsolótáblába építhető vezérlő kapcsoló. Kapcsolási nyomás, és nyomáskülömbség állítással noással 0-10mA
F61: Feszültség | G61: 400V
F62: Max. motorteljesítmény | G62: 11
F63: Csatlakozások | G63: 1/2" + 3x1/4" | K63: 1 x 1/4" | O63: 6 mm
F64: Nyomástartomány | G64: 3-11 | K64: 0-16 bar | O64: 0-16 bar
F65: Nomáskülönbség | G65: 2
F66: Cikkszám / Típus / (Listaár) Nettó ár | G66: CO-253235 | H66: 3/16 16A | I66: =VLOOKUP(G66,Árlista!$B:$D,3,0) -> 18 310,-Ft | K66: CO-260257 | L66: EDS16 | M66: =VLOOKUP(K66,Árlista!$B:$D,3,0) -> 29 340,-Ft | O66: CO-260226 | P66: EDI 16 | Q66: =VLOOKUP(O66,Árlista!$B:$D,3,0) -> 30 410,-Ft
F67: Cikkszám / Típus / (Listaár) Nettó ár | G67: CO-279679 | H67: 3/25 16A | I67: =VLOOKUP(G66,Árlista!$B:$D,3,0) -> 18 310,-Ft | O67: CO-260288 | P67: EDR 16 | Q67: =VLOOKUP(O67,Árlista!$B:$D,3,0) -> 29 340,-Ft
G77: ABAC Nyomáskapcsoló | K77: NE-MA 230V | O77: NE-MA 400V
F78: Pólusok száma | G78: 2 | H78: Made in China… Olcsó, de… | K78: 3 | L78: Már használható... 230V | O78: 3 | P78: 400V Motorvédelem nélküli nyomáskapcsoló.
F79: Feszültség | G79: 230V | K79: 400V | O79: 400V
F80: Max. motorteljesítmény | G80: 2,2 | K80: 11 | O80: 11
F81: Csatlakozások | G81: 1 x 1/4" | K81: 4 x 1/4" | O81: 4 x 1/4"
F82: Nyomástartomány | G82: 3-12 | K82: 3-11 | O82: 3-11
F83: Nomáskülönbség | G83: 2 | K83: 2 | O83: 2
F84: Cikkszám / Típus / (Listaár) Nettó ár | G84: 8973005570 | H84: 230V | I84: =VLOOKUP(G84,Árlista!$B:$D,3,0) -> 2 360,-Ft | K84: KO-PT010002 | L84: 4-6,3A | M84: =VLOOKUP(K84,Árlista!$B:$D,3,0) -> 4 950,-Ft | O84: KO-PT020002 | P84: 2,4-4,2A | Q84: =VLOOKUP(O84,Árlista!$B:$D,3,0) -> 7 430,-Ft

Sheet Visszacsapók
A1: TARTALOM
A2: Árlista
A3: Megrendelő
A4: ABAC dugattyús kompresszorok
A5: ABAC CleanAir fogászati kompresszor
A6: AGRE ipari dugattyús kompresszorok
A7: ALUP SONETTO csavarkomp 2,2-15kW
A8: ALUP SCK csavarkomp 4-75kW
A9: ALUP LARGO, ALLEGRO csavarkompr
A10: ALUP Hűtveszárítók
A11: ALUP szűrők
A12: ALUP SpiralAir -Scroll kompresszor
A13: ALUP dugattyús kompresszorok
A14: OMEGA vonali szűrők
A15: OMEGA ciklonszűrők
A16: OMEGA olaj-víz szétválasztók | F16: Rodcraft | G16: Visszacsapó szelep | K16: Visszacsapó szelep | O16: Visszacsapó szelep -gyári
A17: ABAC sűrítők | F17: Cikkszám / Típus / (Listaár) Nettó ár | G17: KO-RV141212 | H17: KK 1/2" | I17: =VLOOKUP(G17,Árlista!$B:$D,3,0) -> 2 190,-Ft | K17: KO-RV161212 | L17: BK 1/2-1/2 | M17: =VLOOKUP(K17,Árlista!$B:$D,3,0) -> 2 310,-Ft | O17: 6210718900 | P17: 1/2"-3/8" | Q17: =VLOOKUP(O17,Árlista!$B:$D,3,0) -> 3 040,-Ft
A18: CONDOR nyomáskapcsolók | F18: Cikkszám / Típus / (Listaár) Nettó ár | G18: KO-RV141238 | H18: KK 3/8"-1/2" | I18: =VLOOKUP(G18,Árlista!$B:$D,3,0) -> 1 570,-Ft | K18: KO-RV161238 | L18: BK 1/2-3/8 | M18: =VLOOKUP(K18,Árlista!$B:$D,3,0) -> 1 810,-Ft | O18: 6210719200 | P18: 3/4"-3/4"
A19: Tartályok | F19: Cikkszám / Típus / (Listaár) Nettó ár | G19: KO-RV143412 | H19: KK 1/2"-3/4" | I19: =VLOOKUP(G19,Árlista!$B:$D,3,0) -> 2 410,-Ft | K19: KO-RV163412 | L19: BK 3/4-1/2 | M19: =VLOOKUP(K19,Árlista!$B:$D,3,0) -> 3 220,-Ft | O19: 6210718500 | P19: 1"-3/4" | Q19: =VLOOKUP(O19,Árlista!$B:$D,3,0) -> 8 950,-Ft
A20: Egyéb alaktrészek | F20: Cikkszám / Típus / (Listaár) Nettó ár | G20: KO-RV143838 | H20: KK 3/8" | I20: =VLOOKUP(G20,Árlista!$B:$D,3,0) -> 1 470,-Ft | K20: KO-RV163434 | L20: BK 3/4-3/4 | M20: =VLOOKUP(K20,Árlista!$B:$D,3,0) -> 3 220,-Ft | O20: 6210718300 | P20: 1"-1" | Q20: =VLOOKUP(O20,Árlista!$B:$D,3,0) -> 14 700,-Ft
K21: KO-RV200101 | L21: BB 1-1 | M21: =VLOOKUP(K21,Árlista!$B:$D,3,0) -> 5 110,-Ft | O21: 2236110859 | P21: 1/2"-1/2" | Q21: =VLOOKUP(O21,Árlista!$B:$D,3,0) -> 11 260,-Ft
O27: ALGUMITONK1 | P27: Ø17 11mm | Q27: =VLOOKUP(O27,Árlista!$B:$D,3,0) -> 1 060,-Ft
O28: ALGUMITONK3 | P28: Ø24 12,8mm | Q28: =VLOOKUP(O28,Árlista!$B:$D,3,0) -> 2 270,-Ft
O29: ALGUMITONK3 | P29: Ø30 16,2mm | Q29: =VLOOKUP(O29,Árlista!$B:$D,3,0) -> 2 270,-Ft
F36: Rodcraft | G36: Szűrő szabályozó 1/2" | K36: Szűrő szabályozó 3/8" | O36: szabályozó 1/4"
F37: Cikkszám / Típus / (Listaár) Nettó ár | G37: 6214345100 | H37: PU4 1/2 | I37: =VLOOKUP(G37,Árlista!$B:$D,3,0) -> 15 360,-Ft | K37: 6214344200 | L37: Mignon 3/8 | M37: =VLOOKUP(K37,Árlista!$B:$D,3,0) -> 9 940,-Ft | O37: 6214344100 | P37: Micro 1/4 | Q37: =VLOOKUP(O37,Árlista!$B:$D,3,0) -> 9 380,-Ft
F38: Cikkszám / Típus / (Listaár) Nettó ár | K38: KO-FR860038 | L38: 3/8 KO-FR | M38: =VLOOKUP(K38,Árlista!$B:$D,3,0) -> 6 190,-Ft | O38: KO-FR830014 | P38: 1/4 KO-FR | Q38: =VLOOKUP(O38,Árlista!$B:$D,3,0) -> 3 220,-Ft
F39: Cikkszám / Típus / (Listaár) Nettó ár | K39: 8973005916 | L39: 3/8 ABAC | M39: =VLOOKUP(K39,Árlista!$B:$D,3,0) -> 6 750,-Ft | O39: 8973005861 | P39: 1/4 ABAC | Q39: =VLOOKUP(O39,Árlista!$B:$D,3,0) -> 3 760,-Ft
M42: 3/8 és 1/2"
M46: B28/38/B49
M51: A29/A39
F56: Rodcraft | G56: Biztonsági szelep | K56: Levegőszűrő | O56: Levegőszűrő
F57: Cikkszám / Típus / (Listaár) Nettó ár | G57: 6210719500 | H57: 1/4", 8 bar | I57: =VLOOKUP(G57,Árlista!$B:$D,3,0) -> 2 530,-Ft | K57: AB-8973005860 | L57: 3/8" | M57: =VLOOKUP(K57,Árlista!$B:$D,3,0) -> 940,-Ft | O57: 6211452400 | P57: Betét- B5900 | Q57: =VLOOKUP(O57,Árlista!$B:$D,3,0) -> 8 350,-Ft
F58: Cikkszám / Típus / (Listaár) Nettó ár | G58: 6210719900 | H58: 3/8", 11 bar | I58: =VLOOKUP(G58,Árlista!$B:$D,3,0) -> 4 000,-Ft | K58: AL8973035810 | L58: 1/2" | M58: =VLOOKUP(K58,Árlista!$B:$D,3,0) -> 940,-Ft | O58: 2236110427 | P58: B6000 | Q58: =VLOOKUP(O58,Árlista!$B:$D,3,0) -> 15 060,-Ft
F59: Cikkszám / Típus / (Listaár) Nettó ár | G59: 2236100087 | H59: 3/4", 11 bar | I59: =VLOOKUP(G59,Árlista!$B:$D,3,0) -> 10 310,-Ft | K59: 2236111635 | L59: A29/A39 | M59: =VLOOKUP(K59,Árlista!$B:$D,3,0) -> 2 270,-Ft | O59: 2236110428 | P59: B7000 | Q59: =VLOOKUP(O59,Árlista!$B:$D,3,0) -> 17 480,-Ft
F60: Cikkszám / Típus / (Listaár) Nettó ár | G60: KO-RV110012 | H60: 1/2", állíth. | I60: =VLOOKUP(G60,Árlista!$B:$D,3,0) -> 4 130,-Ft | K60: 6211471500 | L60: B28/38/B49 | M60: =VLOOKUP(K60,Árlista!$B:$D,3,0) -> 1 930,-Ft | O60: 8973015500 | P60: Betét B6-7000 | Q60: =VLOOKUP(O60,Árlista!$B:$D,3,0) -> 5 660,-Ft
F61: Cikkszám / Típus / (Listaár) Nettó ár | G61: KO-RV110014 | H61: 1/4", állíth | I61: =VLOOKUP(G61,Árlista!$B:$D,3,0) -> 2 060,-Ft
F62: Cikkszám / Típus / (Listaár) Nettó ár | G62: KO-RV110038 | H62: 3/8", állíth | I62: =VLOOKUP(G62,Árlista!$B:$D,3,0) -> 2 470,-Ft
F72: Rodcraft | G72: Manométer hátsó csatlakozással | K72: Manométer alsó csatlakozással
F73: Cikkszám / Típus / (Listaár) Nettó ár | G73: KO-MN604018012P | H73: D40 1/8" 0-12 | I73: =VLOOKUP(G73,Árlista!$B:$D,3,0) -> 1 181,-Ft | K73: KO-MN654018012R | L73: D40 1/8" 0-12 | M73: =VLOOKUP(K73,Árlista!$B:$D,3,0) -> 1 260,-Ft
F74: Cikkszám / Típus / (Listaár) Nettó ár | G74: KO-MN604018016P | H74: D40 1/8" 0-16 | I74: =VLOOKUP(G74,Árlista!$B:$D,3,0) -> 1 181,-Ft | K74: KO-MN654018016R | L74: D40 1/8" 0-16 | M74: =VLOOKUP(K74,Árlista!$B:$D,3,0) -> 1 260,-Ft
F75: Cikkszám / Típus / (Listaár) Nettó ár | G75: KO-MN605014012P | H75: D50 1/4" 0-12 | I75: =VLOOKUP(G75,Árlista!$B:$D,3,0) -> 1 409,-Ft | K75: KO-MN655014012R | L75: D50 1/4" 0-12 | M75: =VLOOKUP(K75,Árlista!$B:$D,3,0) -> 1 409,-Ft
F76: Cikkszám / Típus / (Listaár) Nettó ár | G76: KO-MN605014016P | H76: D50 1/4" 0-16 | I76: =VLOOKUP(G76,Árlista!$B:$D,3,0) -> 1 409,-Ft | K76: KO-MN655014016R | L76: D50 1/4" 0-16 | M76: =VLOOKUP(K76,Árlista!$B:$D,3,0) -> 1 409,-Ft
F77: Cikkszám / Típus / (Listaár) Nettó ár | G77: KO-MN606314012P | H77: D63 1/4" 0-12 | I77: =VLOOKUP(G77,Árlista!$B:$D,3,0) -> 1 567,-Ft | K77: KO-MN656314012R | L77: D63 1/4" 0-12 | M77: =VLOOKUP(K77,Árlista!$B:$D,3,0) -> 1 567,-Ft
F78: Cikkszám / Típus / (Listaár) Nettó ár | G78: KO-MN606314016P | H78: D63 1/4" 0-16 | I78: =VLOOKUP(G78,Árlista!$B:$D,3,0) -> 1 567,-Ft | K78: KO-MN656314016R | L78: D63 1/4" 0-16 | M78: =VLOOKUP(K78,Árlista!$B:$D,3,0) -> 1 567,-Ft
